Workbook

Sheet 表紙
H2: 令和7年度 那覇市 社会福祉法人・施設指導監査
C4: Ⅲ 保育所運営調書(分園）
D6: 法人 | J6: 名 称 | Z6: 代表者
D7: 保育所 | J7: 名 称
J8: 住所
J9: 電話番号/fax | N9: Tel： | Y9: fax：
J10: メールアドレス
J11: ＨＰアドレス
D12: 分園① | J12: 名 称
J13: 住所
J14: 電話番号/fax | N14: Tel： | Y14: fax：
J15: メールアドレス
J16: ＨＰアドレス
D17: 分園② | J17: 名 称
J18: 住所
J19: 電話番号/fax | N19: Tel： | Y19: fax：
J20: メールアドレス
J21: ＨＰアドレス
D22: 調書記入要領
D23: ※ | E23: 特に指定のあるもの以外は、指導監査調書提出月の初日時点で記入すること。
D24: ※ | E24: 認可定員と利用定員に相違がある場合には特定教育・保育施設利用定員減少届出書等、利用定員を変更したことがわかる書類の写しを添付すること。
D25: ※ | E25: 黄色で着色されているセルは計算式が入っているため、手入力は行わないこと。
R26: 保育所認可年月日 | AE26: 年 | AG26: 月 | AI26: 日 | AM26: 【印刷不要】
R27: 事業開始年月日 | AE27: 年 | AG27: 月 | AI27: 日 | AM27: ※利用定員、認可定員は市町村へ届出ている定員を記載すること。
R28: 建替年月日 | AE28: 年 | AG28: 月 | AI28: 日 | AM28: 認可定員：施設設置に当たり認可(認定)され、またはその後の変更につき適正な手続きを経た定員
Q29: 定員 | S29: 認可定員 | Z29: 名 | AA29: （ | AE29: 年 | AG29: 月 | AI29: 日 | AJ29: ） | AM29: 利用定員：施設設置者の申請または届出(変更含む)により市町村長が確認等を行う定員。運営規程等に規定
S30: （変更年月日）
S31: 利用定員 | Z31: 名 | AA31: （ | AE31: 年 | AG31: 月 | AI31: 日 | AJ31: ） | AM31: ※「利用定員」は、状況の変化等により市町村と調整の上、受入定員を認可定員以下に変更するもので、こうした調整等を行っていない場合は、原則「認可定員＝利用定員」となる。市町村との入所調整等（弾力運用含む）により受け入れている児童数は「現員」となる。
S32: （変更年月日）
S33: 前年度末現在 | Z33: 名
Z36: 実地監査年月日
Z37: 年 月 日
Z38: ※この欄は、記入しないこと。

Sheet 目次（保）
A1: 保育所(分園) 運営調書 | AJ1: 【印刷不要】
A2: 目 次（各ページへリンク）
A4: sheet | C4: 項目 | M4: sheet | O4: 項目 | Y4: sheet | AA4: 項目
A5: No.1 | C5: １ 入所児童の状況 | M5: No.15 | O5: 別表2 正規：園長及び保育士以外の勤務状況 | Y5: No.27 | AA5: (6)感染症等の対策状況
C6: (1)調書提出月初日の児童現員数 | M6: No.15② | O6: 〃 | AA6: (7)受動喫煙防止対策を進めているか
C7: ２ 施設、設備の状況 | M7: No.15③ | O7: 〃 | AA7: 【乳幼児突然死症候群の防止対策】
C8: (1)施設の状況について | M8: No.15④ | O8: 〃 | AA8: (8)乳幼児突然死症候群の防止対策について
A9: No.2 | C9: 〃 | M9: No.16 | O9: 別表3 非正規：保育士の勤務状況 | Y9: No.28 | AA9: 【不適切な保育の未然防止】
A10: No.3 | C10: ３ 給水設備及び昇降機設備等の管理 | M10: No.16② | O10: 〃 | AA10: (9)入所児童に対する不適切な保育の防止等について
C11: (1)飲用水等の管理状況 | M11: No.16③ | O11: 〃 | AA11: 【児童虐待防止対策】
C12: (2)排水及び汚物処理の状況 | M12: No.16④ | O12: 〃 | AA12: (10)児童虐待防止に関する職員研修について
C13: (3)昇降機設備の管理について | M13: No.17 | O13: 別表4 非正規：保育士以外の勤務状況 | AA13: (11)児童虐待の早期発見に努めているか
A14: No.4 | C14: ４ 職員配置の状況 | M14: No.17② | O14: 〃 | AA14: (12)園長への報告体制について
C15: (1)職員数について | M15: No.17③ | O15: 〃 | AA15: (13)関係機関への通告について
C16: (2)保育士の配置基準について | M16: No.17④ | O16: 〃 | AA16: (14)市町村等との連携・協力体制について
A17: No.5 | C17: 職員配置関係 | M17: No.18 | O17: (18)職員の定着促進及び離職防止対策 | AA17: 【安全管理対策】
C18: (3)委託費特定加算分等の配置・加配はあるか | O18: (19)職員研修の状況 | AA18: (15)安全計画の策定状況について
C19: (4)クラス編成の状況 | M19: No.19 | O19: 〃 | AA19: (16)業務継続計画の策定状況について
A20: No.6 | C20: (5)調理員の配置について | M20: No.20 | O20: 〃 | Y20: No.29 | AA20: (17)施設設備面における安全確保について
C21: ５ 施設運営管理の状況 | M21: No.21 | O21: ８ 児童処遇状況 | AA21: (18)所外活動における安全確保について
C22: (1)入所児童等の内訳 | O22: (1)保育指針に基づく全体計画の作成について | Y22: No.30 | AA22: (19)児童の送迎について
C23: (2)定員超過の場合、基準を満たしているか | O23: (2)全体的な計画に基づく指導計画の作成について | AA23: (20)遊具、建物設備等の安全点検について
C24: (3)保育所定員の過去２年間の入所率について | O24: (3)３歳未満児の個別的な計画について | AA24: (21)児童の事故発生の状況
C25: (4)超過120％の場合の市町村との調整 | O25: (4)療養支援対象児、障害児保育の対象児について | AA25: (22)職員の共通理解と所内体制について
A26: No.7 | C26: (5)私的契約児の保育を行っているか | O26: (5)縦割り保育（異年齢保育）について | Y26: No.31 | AA26: １１ 非常災害対策の状況
C27: (6)本年度の開所時間 | O27: (6)指導計画に基づく保育内容の見直し・改善 | AA27: (1)防火管理者は届け出ているか
C28: (7)時間帯による児童・保育士の状況 | O28: (7)児童出欠簿を作成しているか | AA28: (2)消防計画は届出（変更）を適正か
C29: (8)土曜日閉園を行っているか | M29: No.22 | O29: (8)保育の記録について | AA29: (3)避難及び消火訓練の実施状況について
A30: No.8 | C30: (9)日・祝・年末年始以外の一斉休園 | O30: (9)保護者との連絡について | AA30: (4)消防計画の周知、分担表の掲示について
C31: (10)運営規程等の整備・運用について | O31: (10)園だよりの発行について | AA31: (5)消防設備等の定期点検について
C32: (11)保育理念、基本方針、重要事項等の周知 | O32: (11)小学校との連携 | Y32: No.32 | AA32: (6)消防用設備点検結果の報告について
C33: (12)園長（所長）について | M33: No.23 | O33: ９ 給食業務の状況 | AA33: (7)消防署の立入検査は
C34: (13)前年度の職員会議の開催状況について | O34: (1)給食は適切な時間に提供されているか | AA34: (8)非常口等付近に障害物を置いていないか
C35: (14)諸規程、諸帳簿の整備 | O35: (2)給食施設栄養定期報告を行っているか | AA35: (9)転倒防止や落下防止などの耐震対策
A36: No.9 | C36: ６ 給与の状況 | O36: (3)調理業務の形態について | AA36: １２ 保育所の情報提供等の状況
C37: (1)給与規程は整備しているか | O37: (4)調理業務の外部委託について | AA37: (1)地域住民に対しての情報提供
C38: (2)給与規程及び給与表の最終改定は | O38: (5)３歳以上児の給食外部搬入について | AA38: (2)子育て支援及び地域との連携の状況
C39: ７ 職員処遇の状況 | O39: (6)調理従事者等の検便の実施状況 | Y39: No.33 | AA39: １３ 福祉サービスの質の向上のための措置
C40: (1)就業規則は整備しているか | M40: No.24 | O40: (7)調理は清潔に行われているか | AA40: 【福祉サービスに関する苦情解決の仕組み】
C41: (2)所轄労基署へ届け出ているか | O41: (8)調理室内外の特別清掃は | AA41: (1)苦情解決に関する規程等の整備
C42: (3)就業規則と現状に差異はないか | O42: (9)食品及び食器類の消毒・保管は適当か | Y42: No.34 | AA42: 〃
C43: (4)就業規則及び労使協定等の職員への周知 | O43: (10)冷蔵庫及び冷凍庫の温度 | AA43: 【業務の質の評価への取組み】
C44: (5)職員採用手続きについて | O44: (11)検食を行っているか | AA44: (2)保育士等の自己評価について
A45: No.10 | C45: (6)勤務時間について | O45: (12)保存食について | AA45: (3)保育所としての自己評価について
C46: (7)労使協定について | O46: (13)食事計画について | AA46: (4)福祉サービス第三者評価を受審しているか
A47: No.11 | C47: (8)出勤簿、タイムカードの管理について | O47: (14)保育所の食育について
C48: (9)時間外勤務等の超過手当について | M48: No.25 | O48: (15)献立について
C49: (10)年次有給休暇について | O49: (16)アレルギー疾患等児童の給食の実施
C50: (11)労基法等の女性保護規定の適用状況 | O50: (17)スキムミルクを使用しているか
C51: (12)育児・介護休業法の適用状況 | O51: (18)生鮮食品は原則当日に搬入しているか
C52: (13)高年齢者雇用安定法改正法の適用状況 | O52: (19)延長保育時のおやつや夕食の提供
C53: (14)退職共済制度への加入について | O53: (20)食品衛生監視員の立ち入り検査について
A54: No.12 | C54: 別表 職員の勤務割り振り表 | M54: No.26 | O54: １０ 児童の健康管理・安全管理の状況
A55: No.13 | C55: (15)職員の状況（別表１～４） | O55: (1)子どもの健康に関する保健計画の作成
C56: (16)職員の異動等の状況について | O56: (2)必要な医薬品等が備えられているか
C57: (17)職員の健康管理の状況 | O57: (3)嘱託医の配置について
A58: No.14 | C58: 別表1 正規：保育士の勤務状況 | O58: (4)園児の健康診断の実施状況について
A59: No.14② | C59: 〃 | O59: 【感染症・食中毒対策】
A60: No.14③ | C60: 〃 | O60: (5)感染症等の発生の状況
A61: No.14④ | C61: 〃

Sheet (記入例）No1
K1: －保育所運営No.１（分園）－ | AB1: 【記入例】 | AL1: 目次に戻る
B3: 入所児童・施設、設備関係 | AA3: 特 記 事 項
B4: １ 入所児童の状況
C6: (1) 監査調書提出月初日現在の児童現員数を記入すること。 | V6: （ | W6: 令和 | AB6: 年 | AE6: 月 | AF6: 1 | AH6: 日現在）
D7: クラス | H7: ０歳児 | J7: １歳児 | M7: ２歳児 | P7: ３歳児 | S7: ４歳児 | V7: ５歳児 | Y7: 合計 | AB7: 入所率 ％
D9: 現員 | H9: 17 | J9: 15 | K9: 11 | M9: 21 | P9: 21 | S9: 23 | V9: 8 | Y9: =SUM(H9,J9,M9,P9,S9,V9) -> 105 | AB9: ①現員/利用定員 | AG9: =IF(ISERROR(Y9/Y11*100),"",Y9/Y11*100) -> 116.6666667
AB10: ②現員/認可定員 | AG10: =IF(ISERROR(Y9/Y12*100),"",Y9/Y12*100) -> 105
D11: 利用定員 | H11: 15 | J11: 15 | M11: 15 | P11: 15 | S11: 15 | V11: 15 | Y11: =SUM(H11:X11) -> 90
D12: 認可定員 | H12: 15 | J12: 15 | M12: 20 | P12: 20 | S12: 20 | V12: 10 | Y12: =SUM(H12:X12) -> 100
D14: ※1 | E14: 児童の年齢は、本年度初日の前日（3月31日）現在年齢とする。
D15: ※2 | E15: １歳児の現員数欄には、監査調書提出月初日現在で満２歳児を( )に再掲すること。 | AA15: ※ | AB15: 那覇市児童福祉施設の設備及び運営に関する基準等を定める条例(R6年3月22日）条例第9号 第4条の例によるとされる。「児童福祉施設の設備及び運営に関する基準」昭和23年12月29日)(厚生省令第63号)（以下「児童福祉施設の設備と運営基準」という）
D16: ※3 | E16: 記入する児童数は、以下の種別に留意すること。
D17: 現 員： | G17: 市による利用調整に伴い受け入れている児童数
D18: 利用定員： | G18: 施設設置者の申請または届出（変更を含む）により市長が確認等を
G19: 行う定員。運営規程等に規定
D20: 認可定員： | G20: 施設設置に当たり認可（認定）され、またはその後の変更につき適正な手続きを
G21: 経た定員
B23: ２ 施設、設備の状況
C24: (1) 施設の状況について
C25: ※下記①、②の配置と①の各部屋の面積が分かる平面図等を添付すること。 | AB25: 「児童福祉施設の設備と運営基準」32条1号～6号
C26: ※児童数については、１⑴の現員数と一致させること。
AA27: ・
C28: ① 保育室等の面積を記入すること。※色つきのセルには数式が入っています。 | AA28: ・
D29: 室 名 | H29: クラス名 | J29: 面積 ㎡ | M29: 「児童福祉施設の設備と運営基準」 （設備の基準）第32条2号～3号 | AG29: 適否
D30: 乳児室・ほふく室 | E30: 0歳児室 | H30: ひよこ | J30: 56.33 | U30: =SUM(H9:I10) -> 17 | W30: 3.3 | AB30: =U30*W30 -> 56.1 | AE30: ㎡ | AG30: =IF(J30>0,IF(AB30:AB30<=J30,"○","×"),"") -> ○
E31: 1歳児室 | H31: うさぎ | J31: 36.28 | M31: 年度当初 | U31: 0 | W31: 3.3 | AB31: =U31*W31 -> 0 | AE31: ㎡ | AG31: =IF(J31>0,IF(AB31<=J31,"○","×"),"") -> ○
M32: 2歳未満児 | U32: =J9-K9 -> 4 | W32: 3.3 | AB32: =U32*W32 -> 13.2 | AE32: ㎡ | AG32: =IF(J31>0,IF(AB34:AB34<=J31,"○","×"),"") -> ○
M33: 満2歳児 | U33: =K9 -> 11 | W33: 1.98 | AB33: =U33*W33 -> 21.78 | AE33: ㎡
M34: 計 | U34: =U32+U33 -> 15 | W34: 人 | AB34: =AB32+AB33 -> 34.98 | AE34: ㎡
E35: 小計 （部屋数） | H35: 2 | J35: =J30+J31 -> 92.61 | U35: =U30+U34 -> 32 | W35: 人 | AB35: =AB30+AB34 -> 91.08 | AE35: ㎡
D36: 保育室 | E36: 保育室① | H36: うぐいす | J36: 50.17 | L36: ２歳以上児現員 | U36: 21 | W36: 1.98 | AB36: =U36*W36 -> 41.58 | AE36: ㎡ | AG36: =IF(J36>0,IF(AB36:AB36<=J36,"○","×"),"") -> ○
E37: 保育室② | H37: りす | J37: 64.28 | L37: （1歳児室の満2歳児を除く） | U37: 21 | W37: 1.98 | AB37: =U37*W37 -> 41.58 | AE37: ㎡ | AG37: =IF(J37>0,IF(AB37:AB37<=J37,"○","×"),"") -> ○
E38: 保育室③ | H38: きりん | J38: 56.33 | U38: 23 | W38: 1.98 | AB38: =U38*W38 -> 45.54 | AE38: ㎡ | AG38: =IF(J38>0,IF(AB38:AB38<=J38,"○","×"),"") -> ○
E39: 保育室④ | H39: ぞう | J39: 36.28 | U39: 8 | W39: 1.98 | AB39: =U39*W39 -> 15.84 | AE39: ㎡ | AG39: =IF(J39>0,IF(AB39:AB39<=J39,"○","×"),"") -> ○
E40: 小計 | H40: 4 | J40: =SUM(J36:K39) -> 207.06 | S40: 小計 | U40: =SUM(U36:V39) -> 73 | W40: 人 | AB40: =SUM(AB36:AD39) -> 144.54 | AE40: ㎡
D41: 遊戯室 | H41: 1 | J41: 182
D42: 部屋数計 | H42: =SUM(H35,H40,H41) -> 7 | J42: =J35+J40+J41 -> 481.67
D43: 保育室及び遊戯室 | J43: =J41+J40 -> 389.06 | L43: ２歳以上児現員 | U43: =U40 -> 73 | W43: 1.98 | AB43: =U43*W43 -> 144.54 | AE43: ㎡ | AG43: =IF(J43>0,IF(AB43<=J43,"○","×"),"") -> ○
D44: 屋外遊戯場 | J44: 300 | L44: ２歳以上児現員 (1歳児室の満2歳児を含む) | U44: =U40+U33 -> 84 | W44: 3.3 | AB44: =U44*W44 -> 277.2 | AE44: ㎡ | AG44: =IF(J44="","",IF(J44>=0,IF(AB44:AB44<=J44,"○","×"),"")) -> ○
C46: ② 設備運営基準に定める他の設備等を有しているか。 | Y46: （設備と運営基準）
C47: ・ | D47: 医務室（ | H47: 有・ | J47: 無 | K47: ） | L47: ・ | M47: 調理室（ | Q47: 有 ･ | T47: 無 | V47: ） | Y47: ・ | Z47: 第32条1項
C48: ・ | D48: 便 所（ | H48: 有・ | J48: 無 | K48: ） | L48: ・ | M48: 調乳室（ | Q48: 有 ･ | T48: 無 | V48: ）
C49: ・ | D49: 沐浴室（ | H49: 有・ | J49: 無 | K49: ）
C51: ③ 施設の認可面積と現況面積は一致しているか。
C52: ＜「いない」場合＞ | Y52: （児童福祉施設の設置の認可申請）
C53: ④ 市への認可事項変更届は提出しているか。 | Y53: ・ | Z53: 児童福祉法施行規則第37条第6項
D55: 直近の変更届：〔 | M55: 年 | P55: 月 | S55: 日〕

Sheet No1
B2: －保育所運営No.１（分園）－ | AO2: 目次に戻る
B4: 入所児童・施設、設備関係 | AA4: 特 記 事 項
B5: １ 入所児童の状況
C7: (1) 監査調書提出月初日現在の児童現員数を記入すること | W7: （ | X7: 令和 | AB7: 年 | AE7: 月 | AF7: 1 | AH7: 日現在）
D8: クラス | H8: ０歳児 | J8: １歳児 | M8: ２歳児 | P8: ３歳児 | S8: ４歳児 | V8: ５歳児 | Y8: 合計 | AD8: 入所率 ％
D10: 現員 | Y10: =SUM(H10,J10,M10,P10,S10,V10) -> 0 | AD10: ①現員/利用定員 | AI10: =IF(ISERROR(Y10/Y12*100),"",Y10/Y12*100) -> 
AD11: ②現員/認可定員 | AI11: =IF(ISERROR(Y10/Y13*100),"",Y10/Y13*100) -> 
D12: 利用定員 | Y12: =SUM(H12:X12) -> 0
D13: 認可定員 | Y13: =SUM(H13:X13) -> 0
D15: ※1 | E15: 児童の年齢は、本年度初日の前日（3月31日）現在年齢とする。
D16: ※2 | E16: １歳児の現員数欄には、監査調書提出月初日現在で満２歳児を( )に再掲すること。 | AA16: ※ | AB16: 那覇市児童福祉施設の設備及び運営に関する基準等を定める条例(R6年3月22日）条例第9号 第4条の例によるとされる。「児童福祉施設の設備及び運営に関する基準」昭和23年12月29日)(厚生省令第63号)（以下「児童福祉施設の設備と運営基準」という）
D17: ※3 | E17: 記入する児童数は、以下の種別に留意すること。
D18: 現 員： | G18: 市による利用調整に伴い受け入れている児童数
D19: 利用定員： | G19: 施設設置者の申請または届出（変更を含む）により市長が確認等を
G20: 行う定員。運営規程等に規定
D21: 認可定員： | G21: 施設設置に当たり認可（認定）され、またはその後の変更につき適正な
G22: 手続きを経た定員
B24: ２ 施設、設備の状況
C25: (１) 施設の状況について
C26: ※下記①、②の配置と①の各部屋の面積が分かる平面図等を添付すること
C27: ※児童数については、１⑴の現員数と一致させること
AA28: ・
C29: ① 保育室等の面積を記入すること。※色つきのセルには数式が入っています。 | AA29: ・
D30: 室 名 | H30: クラス名 | J30: 面積 ㎡ | M30: 「児童福祉施設の設備と運営基準」 （設備の基準）第32条2号～3号 | AG30: 適否
D31: 乳児室・ほふく室 | E31: 0歳児室 | U31: =SUM(H10:I11) -> 0 | W31: 3.3 | AB31: =U31*W31 -> 0 | AE31: ㎡ | AG31: =IF(J31>0,IF(AB31:AB31<=J31,"○","×"),"") -> 
E32: 1歳児室 | M32: 年度当初 | U32: 0 | W32: 3.3 | AB32: =U32*W32 -> 0 | AE32: ㎡ | AG32: =IF(J32>0,IF(AB32<=J32,"○","×"),"") -> 
M33: 2歳未満児 | U33: =J10-K10 -> 0 | W33: 3.3 | AB33: =U33*W33 -> 0 | AE33: ㎡ | AG33: =IF(J32>0,IF(AB35:AB35<=J32,"○","×"),"") -> 
M34: 満2歳児 | U34: =K10 -> 0 | W34: 1.98 | AB34: =U34*W34 -> 0 | AE34: ㎡
M35: 計 | U35: =U33+U34 -> 0 | W35: 人 | AB35: =AB33+AB34 -> 0 | AE35: ㎡
E36: 小計 (部屋数) | J36: =J31+J33 -> 0 | U36: =U31+U35 -> 0 | W36: 人 | AB36: =AB31+AB35 -> 0 | AE36: ㎡
D37: 保育室 | E37: 保育室① | L37: ２歳以上児現員 | W37: 1.98 | AB37: =U37*W37 -> 0 | AE37: ㎡ | AG37: =IF(J37>0,IF(AB37:AB37<=J37,"○","×"),"") -> 
E38: 保育室② | L38: （1歳児室の満2歳児を除く） | W38: 1.98 | AB38: =U38*W38 -> 0 | AE38: ㎡ | AG38: =IF(J38>0,IF(AB38:AB38<=J38,"○","×"),"") -> 
E39: 保育室③ | W39: 1.98 | AB39: =U39*W39 -> 0 | AE39: ㎡ | AG39: =IF(J39>0,IF(AB39:AB39<=J39,"○","×"),"") -> 
E40: 保育室④ | W40: 1.98 | AB40: =U40*W40 -> 0 | AE40: ㎡ | AG40: =IF(J40>0,IF(AB40:AB40<=J40,"○","×"),"") -> 
E41: 小計 | J41: =SUM(J37:K40) -> 0 | S41: 小計 | U41: =SUM(U37:V40) -> 0 | W41: 人 | AB41: =SUM(AB37:AD40) -> 0 | AE41: ㎡
D42: 遊戯室
D43: 部屋数計 | H43: =SUM(H36,H41,H42) -> 0 | J43: =J36+J41+J42 -> 0
D44: 保育室及び遊戯室 | J44: =J42+J41 -> 0 | L44: ２歳以上児現員 | U44: =U41 -> 0 | W44: 1.98 | AB44: =U44*W44 -> 0 | AE44: ㎡ | AG44: =IF(J44>0,IF(AB44<=J44,"○","×"),"") -> 
D45: 屋外遊戯場 | L45: ２歳以上児現員 (1歳児室の満2歳児を含む) | U45: =U41+U34 -> 0 | W45: 3.3 | AB45: =U45*W45 -> 0 | AE45: ㎡ | AG45: =IF(J45="","",IF(J45>=0,IF(AB45:AB45<=J45,"○","×"),"")) -> 
C47: ② 設備運営基準に定める他の設備等を有しているか。 | AA47: （設備の基準）
C48: ・ | D48: 医務室（ | H48: 有・ | J48: 無 | K48: ） | L48: ・ | M48: 調理室（ | Q48: 有 ･ | T48: 無 | W48: ） | AA48: ・ | AB48: 「児童福祉施設の設備と運営基準」第32条
C49: ・ | D49: 便 所（ | H49: 有・ | J49: 無 | K49: ） | L49: ・ | M49: 調乳室（ | Q49: 有 ･ | T49: 無 | W49: ）
C50: ・ | D50: 沐浴室（ | H50: 有・ | J50: 無 | K50: ）
C52: ③ 施設の認可面積と現況面積は一致しているか。
C53: ＜「いない」場合＞ | AA53: （児童福祉施設の設置の認可申請）
C54: ④ 市への認可事項変更届は提出しているか。 | AA54: ・ | AB54: 児童福祉法施行規則第37条第6項
D56: 直近の変更届：〔 | M56: 年 | P56: 月 | S56: 日〕

Sheet No2
B2: －保育所運営No.２（分園）－ | AP2: 目次に戻る
B4: 施設、設備関係 | AB4: 特 記 事 項
B5: 【施設の構造】 | AB5: （保育所の設備基準）
C6: ⑤ 施設の階層は、 | L6: 階建て | AB6: ・ | AC6: 「児童福祉施設の設備と運営基準」第32条8号
AB7: ・ | AC7: 「保育室等」とは、乳児室、ほふく室、保育室及び遊戯室をいう。
C8: ⑥ 保育室等が２階以上に設けられているか。
C10: ⑦ ２階以上に保育室等がある場合（共通）
C11: ア 耐火建築物又は準耐火建築物(※1)か。 | AB11: ※1 | AC11: 建築基準法第2条第9号の2(耐火建築物）
AC12: 建築基準法第2条第9号の3(準耐火建築物)
C13: イ 転落事故防止設備はあるか。
AB14: ・
C15: ⑧ ２階に保育室等がある場合 | AB15: ・
C16: ア 常用の屋内階段、屋外階段のどちらかがあるか。
C18: イ 避難用として、屋内避難階段又は特別避難階段に準じた屋内階段 | AB18: ※2 | AC18: 建築基準法施行令第123条第1項、第3項（屋内避難階段、特別避難階段）
D19: (※2)、待避上有効なバルコニー、準耐火構造（※3）の屋外傾斜路・こ
D20: れに準ずる設備、屋外階段のいずれかがあるか。 | AB20: ※3 | AC20: 建築基準法第2条第7号の2（準耐火構造）
C22: ⑨ ３階に保育室等がある場合 | AC22: 「児童福祉施設の設備と運営基準」第32条8号ロ
C23: ア 常用の屋内避難階段又は特別避難階段に準じた屋内階段(※2)、屋外階段
D24: のどちらかがあるか。 | AB24: ※4 | AC24: 建築基準法第2条第7号（耐火構造）
C26: イ 避難用として、屋内避難階段又は特別避難階段に準じた屋内階
D27: 段(※2)、耐火構造（※4）の屋外傾斜路・これに準ずる設備、屋外階 | AB27: ※5 | AC27: 建築基準法施行令第123条第2項(屋外避難階段)
D28: 段のいずれかがあるか。
C30: ⑩ ４階以上に保育室等がある場合
C31: ア 常用の屋内避難階段又は特別避難階段に準じた屋内階段(※2)、
D32: 屋外避難階段(※5)に準じた屋外階段のどちらかがあるか。
C35: イ 避難用として、屋内避難階段又は特別避難階段に準じた屋内階
D36: 段(※2)、耐火構造(※4)の屋外傾斜路、屋外避難階段(※5)に準じ
D37: た屋外階段のいずれかがあるか。
C39: ⑪ ３階以上に保育室がある場合
C40: ア ⑨及び⑩で「ある」場合、階段等は保育室等から歩行距離が３０ | AB40: ・ | AC40: 「児童福祉施設の設備と運営基準」 32条8号ハ
D41: メートル以下であるか。
C43: イ 調理室にスプリンクラー設備その他これに類するもので自動式のもの | AB43: ・ | AC43: 「児童福祉施設の設備と運営基準」 32条8号ニ(1)
D44: が設置されているか。
C46: ウ 調理室に調理用器具の種類に応じて有効な自動消火装置が設けら | AB46: ・ | AC46: 「児童福祉施設の設備と運営基準」 32条8号ニ(2)
D47: られ、かつ、延焼防止のため必要な措置が講じられているか。
C50: エ イ及びウのいずれも「いない」場合、調理室と調理室以外の部分が耐 | AB50: ※6 | AC50: 建築基準法施行令第112条第1項（特定防火設備）
D51: 火構造(※4)の床若しくは壁、又は特定防火設備(※6)で区画されてい
D52: るか。
C54: オ 壁及び天井の室内に面する部分の仕上げは不燃材料であるか。 | AB54: ・ | AC54: 「児童福祉施設の設備と運営基準」 32条8号ホ
C57: カ 非常警報器具又は非常警報設備及び消防機関へ火災を通報する | AB57: ・ | AC57: 「児童福祉施設の設備と運営基準」 32条8号ト
D58: 設備が設けられているか。
C60: キ カーテン、敷物、建具等で可燃性のものについては防炎処理が施さ | AB60: ・ | AC60: 「児童福祉施設の設備と運営基準」 32条8号チ
D61: れているか。

Sheet No3
B2: －保育所運営No.３（分園）－ | AP2: 目次に戻る
B4: 給水設備及び昇降機設備等の管理 | AB4: 特 記 事 項
B6: ３ 給水設備及び昇降機設備等の管理
C8: (1) 飲用水等の管理状況 | AQ8: 【根拠法令・通知等（印刷不要）】
C9: ① 使用水は、次のどれか。 | AB9: ・ | AC9: ｢社会福祉施設における衛生管理について」 (H9.3.31社援施第65号) －「（別添）大量調理施設衛生管理マニュアル」Ⅱ５(2)⑦～⑧ | AQ9: ・ | AR9: 水道法（昭和32年6月15日法律第178号）
G10: 都市水道またはこれに準ずる簡易水道 | AQ10: ○ | AR10: 第34条の２
G11: 井戸水等の自家水 | AR11: 簡易専用水道の設置者は、厚生労働省令で定める基準に従い、その水道を管理しなければならない。
AQ12: ○ | AR12: 第34条の２第２項
C13: ② 「都市水道またはこれに準ずる簡易水道」を使用している場合､ | AB13: ・ | AC13: 「社会福祉施設における飲用井戸及び受水槽の衛生確保について」（平成8.7.19社援施第116号） | AR13: 簡易専用水道の設置者は、当該簡易専用水道の管理について、厚生労働省令の定めるところにより、定期に、地方公共団体の機関又は厚生労働大臣の登録を受けた者の検査を受けなければならない。
D14: 受水槽を設置しているか｡
AQ15: ・ | AR15: 水道法施行規則（昭和32年12月14日厚生省令第45号）
D16: ＜受水槽を設置している場合＞ | AB16: (簡易専用水道の管理） | AQ16: ○ | AR16: 第４章 簡易専用水道
D17: ア 受水槽の有効容量 | M17: → | P17: 10㎥超過（簡易専用水道） | AB17: ・ | AC17: 水道法第34条の2 | AR17: (管理基準) 第55条
P18: 10㎥以下（小規模貯水槽水道） | AB18: ・ | AC18: 水道法施行規則第55条 | AR18: 法第34条の２第１項に規定する厚生労働省令で定める基準は、次に掲げるものとする。
AB19: (小規模貯水槽水道の管理・検査） | AR19: １ 水槽の掃除を毎年一回以上定期に行うこと。 ２ 水槽の点検等有害物、汚水等によつて水が汚染されるのを防止するために必要な措置を講ずること。 ３ 給水栓における水の色、濁り、臭い、味その他の状態により供給する水に異常を認めたときは、水質基準に関する省令の表の上欄に 掲げる事項のうち必要なものについて検査を行うこと。 ４ 供給する水が人の健康を害するおそれがあることを知つたときは、直ちに給水を停止し、かつ、その水を使用することが危険である 旨を関係者に周知させる措置を講ずること。
D20: イ 受水槽の清掃を行っているか。 | AB20: ・ | AC20: 飲用井戸等衛生対策要領の実施について（昭和62年1月29日衛水第12号） 要領４ ２）①及び②
E22: ・行っている場合、実施頻度は | P22: 年 | S22: 回
E24: ・清掃業者名： | AR24: (検査) 第56条
AR25: 法第34条の２第２項の規定による検査は、毎年一回以上定期に行うものとする。
E26: ・清掃した証明書は保管しているか。 | AR26: ２ 検査の方法その他必要な事項については、厚生労働大臣が定めるところによるものとする。
D28: ウ 水質検査を実施しているか。 | AQ28: ・ | AR28: 飲用井戸等衛生対策要領の実施について（昭和62年１月29日衛水第12号）
AR29: 飲用井戸等衛生対策要領
E30: ・検査の依頼先は受水槽の清掃業者と、 | AQ30: ○ | AR30: ４. 衛生確保対策
AR31: ２)飲用井戸等の管理、水質検査等
I32: 依頼先： | AR32: ①飲用井戸等の管理 イ．設置者等は、一般飲用井戸及び業務用飲用井戸の構造（井筒、ケーシング、ポンプ、吸込管、弁類、管類、井戸のふた、水槽等）並びに 井戸周辺の清潔保持等につき定期的に点検を行い、汚染源に対する防護措置を講ずるとともに、これら施設の清潔保持に努めること。 また、小規模受水槽水道にあつては、簡易専用水道の管理基準に準じて管理を行うこと。 ②飲用井戸等の検査 ア ⅱ)小規模受水槽水道における定期の水質検査とは、給水栓における水の色、臭い、味、色度、濁度に関する検査及び残留塩素の有無に 係る水質検査をいう。 イ．定期の水質検査は、一般飲用井戸(設置者が専ら自己の居住の用に供する住宅のみに飲用水を供給するために設置するものを除く。)、 業務用飲用井戸及び小規模受水槽水道にあつては１年以内ごとに１回行うものとするが、これ以外のものにあつても１年以内ごとに１回 行うことが望ましい。
D34: ＜簡易専用水道の場合＞
D35: (ｱ) 法定検査の依頼先： | AB35: ※ | AC35: 受水槽が簡易専用水道に該当する場合→法定検査が必要。 小規模貯水槽水道→各自治体の条例で規制されているが、水道は健康な生活と深く関ることから、小規模貯水槽水道も簡易専用水道に準じた衛生管理を求められる。
D37: (ｲ) 検査回数は、 | K37: 年 | N37: 回
D39: (ｳ) 検査記録･報告書は整備しているか。
C41: ③ 「井戸水等の自家水」を使用している場合、水質検査を行っているか。 | AQ41: ・ | AR41: 浄化槽法第7条
AB42: ・ | AC42: ｢社会福祉施設における衛生管理について」 (平成9年3月31日社援施第65号)－（別添）大量調理施設衛生管理ﾏﾆｭｱﾙⅡ５(2)⑦ 井戸水等を使用する場合は公的検査機関等に依頼して年2回以上の水質検査を行うこと。 | AR42: 浄化槽の新設や構造の変更等を行った場合、使用開始後3か月を経過した日から5か月の間に、水質検査を受けることが義務付けられている。 この検査は、水質等を検査することにより、浄化槽の設置工事が正しく行われたかどうかを判断するものである。
C44: (2) 排水及び汚物処理の状況
C45: ① 排水及び汚物処理の方法は、次のいずれか。 | AQ45: ・ | AR45: 浄化槽法第10条
AA46: ） | AR46: 年1回、保守点検及び清掃することが義務付けられている。
C48: ② 浄化槽を使用している場合、法令で定められている回数の保守 | AQ48: ・ | AR48: 浄化槽法第11条
D49: 点検、清掃、指定検査機関の行う水質検査を実施しているか。 | AB49: ･ | AC49: 浄化槽法第7条、第10条、第11条 | AR49: 設置後の水質検査（法第7条検査）の後、年1回の定期検査を受けることが義務付けられている。この検査は、保守点検及び清掃が正しく行われ、浄化槽が正常に機能しているかどうかを判断するものである。
C52: (3) 昇降機設備の管理について
C53: ① 昇降機設備の設置状況について、該当するものにチェックすること。
AB54: ※ | AC54: ダムウェーター→小荷物専用昇降機
C56: ② 専門業者による定期点検を行っているか。

Sheet (記入例)No4
O1: －保育所運営No.４－ | AN1: 【記入例】 | AT1: 目次に戻る | AY1: 【参考】（印刷不要）
B3: 職員配置関係 | AB3: 特 記 事 項
AY4: ① | AZ4: 産休・育休、病休等で休職中の記入方法
B5: ４ 職員配置の状況（監査調書提出月初日現在） | AY5: ｱ) 正規職員の保育士
AZ6: ・代替職員がいない場合は、カウントしない。
C7: (1) 職員数を記入すること。 | AZ7: ・代替職員がいる場合は、正規職員の欄にカウントし、「代替」に再掲表示する。
D8: (※No14～No17(別表１～別表４)の人数と整合性を持たせること。) | AC8: （監査調書提出月： | AK8: 月初日現在） | AY8: ｲ)保育士以外の職の正規職員
D9: 施設長 | G9: 直接処遇職員（直接保育に携わる職員） | AZ9: 代替職員がいない場合はカウントせず、いる場合は正規職員の欄にカウントする。
G10: 保 育 士 | O10: 幼稚園教諭・小学校教諭・養護教諭 | W10: 子育て支援員 | AY10: ｳ)非正規職員
G11: 正規職員 | K11: 非正規 | O11: 正規職員 | S11: 非正規 | W11: 正規職員 | AA11: 非正規 | AZ11: 代替職員がいない場合はカウントしない
I12: 代替 | Q12: 代替 | AY12: ② | AZ12: 副園長・・・「その他」に計上
D13: 1 | G13: 7 | I13: 1 | K13: 14 | S13: 1 | W13: 1 | AA13: 1 | AY13: ③ | AZ13: 地域子ども・子育て支援交付金や市町村単独補助金など、実施事業で人件費を賄っている職員
AZ14: (No5の(3))･･･｢その他｣に計上
AY15: ④ | AZ15: 看護師・保健師・准看護師(再掲)保育士カウントに該当する場合は、下記の表に入力(ただし、1人に限る)
D16: 看護師・保健師・准看護師 | N16: 調理員 | Z16: その他（保育補助等・用務員） | AH16: 合計 | AY16: ⑤ | AZ16: 常勤換算の算出方法
D17: 正規職員 | G17: 非正規 | K17: (再)保育士ｶｳﾝﾄ 「正規」 | M17: 再)保育士ｶｳﾝﾄ 「非正規」 | N17: 正規職員 | Q17: 非正規 | W17: (再) 栄養士 | Z17: 正規 職員 | AD17: 非正規 | AZ17: ○週40時間労働の場合（参考例）
BA18: 365日÷7日≒52週/年
G19: 1 | N19: 1 | Q19: 3 | Z19: 1 | AD19: 2 | AH19: =SUM(D13:AE14)+SUM(D19:AG20)-I13-Q13-K19-W19-M19 -> 33 | BA19: 40時間×52週＝2,080時間/年
AL20: =G13+O13+K13+S13+W13+AA13+K19 -> 24 | BA20: 2,080時間÷12月≒173時間/月
D21: ＜記入要領＞
D22: ア | E22: 主任保育士は、保育士欄に計上する。 | BK22: 【入力例】
D23: イ | E23: 児童福祉施設の設備及び運営に関する基準（(経過措置) 改正後の第三十三条第二項に規定する保育士の数の算定については、当分の間、当該保育所に勤務する保健師、看護師又は准看護師(以下この項において「看護師等」という。)を、一人に限って、保育士とみなすことができる。ただし、乳児の数が四人未満である保育所については、子育てに関する知識と経験を有する看護師等を配置し、かつ、当該看護師等が保育を行うに当たって当該保育所の保育士による支援を受けることができる体制を確保しなければならない。 | AZ23: （常勤換算計算表） | BL23: （常勤換算計算表）
AZ25: 正規職員所定労働時間 | BD25: 40 | BG25: 時間/週 | BL25: 全保育士労働時間 | BP25: 40 | BS25: 時間/週
AZ27: 全保育士労働時間 | BD27: =BD34 -> 830 | BG27: 時間/週 | BL27: 全保育士労働時間 | BP27: =BP34 -> 665 | BS27: 時間/週
D28: ウ | E28: 児童福祉施の設備と運営に関する基準第95条 当分の間、保育士の数の算定については、幼稚園教諭若しくは小学校教諭又は養護教諭の普通免許状（教育職員免許法第4条第2項に規定する普通免許状をいう。）を有する者を、保育士とみなすことができる。
AZ29: 常勤換算 | BD29: =IF(ISERROR(ROUND(BD27/BD25,1)),"",ROUND(BD27/BD25,1)) -> 20.8 | BG29: 人 | BL29: 常勤換算 | BP29: =IF(ISERROR(ROUND(BP27/BP25,1)),"",ROUND(BP27/BP25,1)) -> 16.6 | BS29: 人
AZ31: 保育士ごとの月労働時間数 (雇用契約による時間数） | BL31: 保育士ごとの月労働時間数 (雇用契約による時間数）
D32: エ | E32: 休職中（産休育休等）の正規職員は、代替職員がいる場合は正規職員欄に計上し、保育士職のみ代替職員を再掲表示する。代替職員がいない場合は計上しない。 休職中（産休育休等）の非正規職員は、代替職員がいる場合は当該代替職員の雇用条件に該当する欄に計上し、代替職員がいない場合は計上しない。
BD33: 労働時間/週 | BP33: 労働時間/週
AZ34: =COUNTA(BD35:BF94) -> 24 | BD34: =SUM(BD35:BF94) -> 830 | BG34: 時間 | BL34: =COUNTA(BP35:BR94) -> 20 | BP34: =SUM(BP35:BR94) -> 665 | BS34: 時間
AZ35: 1 | BD35: 40 | BG35: 時間 | BL35: 1 | BP35: 40 | BS35: 時間
C36: (2) 保育士の配置基準について | AZ36: 2 | BD36: 40 | BG36: 時間 | BL36: 2 | BP36: 40 | BS36: 時間
AB37: ＜(2)①のC 常勤換算人数算出方法＞ | AZ37: 3 | BD37: 40 | BG37: 時間 | BL37: 3 | BP37: 40 | BS37: 時間
D38: ① 必要職員数を満たしているか。（A ＜ C ) | AB38: ※ | AC38: 常勤換算人数＝「(1)の表「保育士」及び「(再)保育士ｶｳﾝﾄ」の1ｶ月の労働時間数（雇用契約による）の合計」÷「正規職員就業規則で定めた1ｶ月の所定労働時間数」（小数点以下の端数処理を行わない）」 | AZ38: 4 | BD38: 40 | BG38: 時間 | BL38: 4 | BP38: 40 | BS38: 時間
E39: A． | F39: 基準配置保育士数： | N39: =T76 -> 15 | P39: 人 | AZ39: 5 | BD39: 40 | BG39: 時間 | BL39: 5 | BP39: 40 | BS39: 時間
E40: B． | F40: 保育士現員数： | N40: =SUM(G13:AK14)+IF(SUM(M19:O20)>0,1)-I13-S13 -> 24 | P40: 人 | AZ40: 6 | BD40: 40 | BG40: 時間 | BL40: 6 | BP40: 40 | BS40: 時間
E41: C． | F41: 常勤換算保育士数： | N41: =BE29 -> 0 | P41: 人 | AZ41: 7 | BD41: 40 | BG41: 時間 | BL41: 7 | BP41: 40 | BS41: 時間
D42: ② 正規職員率について | AZ42: 8 | BD42: 40 | BG42: 時間 | BL42: 8 | BP42: 35 | BS42: 時間
C43: ※分園を設置している園は分園の職員を含む人数で計算し、②に手入力すること。 保育士及び保育士カウント職員(子育て支援員は除く)を基準配置保育士数(基本部分)の合計で除して計算。(右計算式参照) | X43: =IFERROR((G13+O13+K19)/(T80-T74),"") -> 0.4666666667 | AZ43: 9 | BD43: 35 | BG43: 時間 | BL43: 9 | BP43: 35 | BS43: 時間
R44: ① | T44: 正規職員率 | AB44: (計算式) | AF44: 保育士及び保育士カウント(子育て支援員除く)の正規職員率 | AZ44: 10 | BD44: 35 | BG44: 時間 | BL44: 10 | BP44: 35 | BS44: 時間
AZ45: 11 | BD45: 35 | BG45: 時間 | BL45: 11 | BP45: 35 | BS45: 時間
AB46: 正規職員率＝ | AZ46: 12 | BD46: 35 | BG46: 時間 | BL46: 12 | BP46: 35 | BS46: 時間
R47: ② | T47: 正規職員率 | AF47: 基準配置保育士数(基本部分) | AZ47: 13 | BD47: 35 | BG47: 時間 | BL47: 13 | BP47: 35 | BS47: 時間
T48: ※手入力 | AZ48: 14 | BD48: 35 | BG48: 時間 | BL48: 14 | BP48: 25 | BS48: 時間
C49: ＜基準配置保育士数算定表＞ | AB49: ・ | AZ49: 15 | BD49: 35 | BG49: 時間 | BL49: 15 | BP49: 25 | BS49: 時間
D50: 区分 | H50: 基準配置保育士数 | W50: 端数処理等 | AB50: ・ | AC50: 基本分単価に含まれる職員構成（公定価格に関するFAQ_Ver.26_№2） | AZ50: 16 | BD50: 35 | BG50: 時間 | BL50: 16 | BP50: 25 | BS50: 時間
AZ51: 17 | BD51: 35 | BG51: 時間 | BL51: 17 | BP51: 25 | BS51: 時間
C52: 基本部分 | D52: 配置基準 | E52: 0歳児 | H52: 現員 | K52: 17 | M52: 人 ÷ | O52: 3 | Q52: = 保育士 | T52: =IF(K52=0,"",ROUNDDOWN(K52/O52,1)) -> 5.6 | V52: 人 | W52: 小数点第2位切り捨て | AC52: （保育士） | AZ52: 18 | BD52: 35 | BG52: 時間 | BL52: 18 | BP52: 25 | BS52: 時間
AC53: * | AD53: 4歳以上児30人につき1人、3歳児20人につき1人、1～2歳児6人につき1人、乳児3人につき1人配置 | AZ53: 19 | BD53: 35 | BG53: 時間 | BL53: 19 | BP53: 25 | BS53: 時間
E54: 1歳児(注1) | H54: X：現員 | K54: 15 | M54: 人 ÷ | O54: 6 | Q54: = 保育士 | T54: =IF(K54=0,"",ROUNDDOWN(K54/O54,1)) -> 2.5 | V54: 人 | AZ54: 20 | BD54: 25 | BG54: 時間 | BL54: 20 | BP54: 25 | BS54: 時間
AC55: * | AD55: 利用定員90人以下の施設は１人加配 | AZ55: 21 | BD55: 25 | BG55: 時間 | BL55: 21 | BS55: 時間 | BX55: １歳児の職員配置の改善
H56: Y：現員 | M56: 人 ÷ | O56: 5 | Q56: = 保育士 | T56: =IF(K56=0,"",ROUNDDOWN(K56/O56,1)) ->  | V56: 人 | AZ56: 22 | BD56: 25 | BG56: 時間 | BL56: 22 | BS56: 時間 | BX56: 〇 1歳児の職員配置の改善を進めるため、公定価格上の加算配置として、新たに「1歳児配置改善加算」を設置する 〇 具体的には、人材確保や保育の質の向上の観点も踏まえ、職員環境改善を進めている施設・事業所において、1歳児の職員配置を5：1以上に改善した場合に、加算する（令和７年４月～） 【対象】以下の全てを満たす事業所(配置基準が既に5：1以上である小規模C・家庭的保育・居宅訪問型保育を除く) (1) 処遇改善等加算Ⅰ、Ⅱ、Ⅲの全てを取得している (2) 業務においてICTの活用を進めている(①登降園、②計画・記録、④キャッシュレス決済のうち、①及びもう1機能以上の機器を導入し活用している) (3) 施設・事業所の職員の平均経験年数が10年以上
AZ57: 23 | BD57: 25 | BG57: 時間 | BL57: 23 | BS57: 時間
E58: 2歳児 | H58: 現員 | K58: 22 | M58: 人 ÷ | O58: 6 | Q58: = 保育士 | T58: =IF(K58=0,"",ROUNDDOWN(K58/O58,1)) -> 3.6 | V58: 人 | AC58: * | AD58: 保育標準時間認定を受ける子どもを受け入れる施設は | AZ58: 24 | BD58: 25 | BG58: 時間 | BL58: 24 | BS58: 時間
AD59: 1人加配 | AZ59: 25 | BG59: 時間 | BL59: 25 | BS59: 時間
E60: 3歳児 (注2) | H60: X：現員 | M60: 人 ÷ | O60: 20 | Q60: = 保育士 | T60: =IF(K60=0,"",ROUNDDOWN(K60/O60,1)) ->  | V60: 人 | AC60: * | AD60: 上記の定数に加えて非常勤保育士を1人加配 | AZ60: 26 | BG60: 時間 | BL60: 26 | BS60: 時間
AZ61: 27 | BG61: 時間 | BL61: 27 | BS61: 時間
H62: Y：現員 | K62: 21 | M62: 人 ÷ | O62: 15 | Q62: = 保育士 | T62: =IF(K62=0,"",ROUNDDOWN(K62/O62,1)) -> 1.4 | V62: 人 | AB62: （注1）1歳児配置改善加算 | AZ62: 28 | BG62: 時間 | BL62: 28 | BS62: 時間
AC63: 最低基準上の配置基準（1歳児6人につき1人配置）はXに、1歳児配置改善加算を受ける場合（1歳児5人につき1人配置）は、Yに計上すること。 | AZ63: 29 | BG63: 時間 | BL63: 29 | BS63: 時間
E64: 4歳 以上児 (注3) | H64: X：現員 | M64: 人 ÷ | O64: 30 | Q64: = 保育士 | T64: =IF(K64=0,"",ROUNDDOWN(K64/O64,1)) ->  | V64: 人 | AZ64: 30 | BG64: 時間 | BL64: 30 | BS64: 時間
AZ65: 31 | BG65: 時間 | BL65: 31 | BS65: 時間
H66: Y：現員 | M66: 人 ÷ | O66: 25 | Q66: = 保育士 | T66: =IF(K66=0,"",ROUNDDOWN(K66/O66,1)) ->  | V66: 人 | AZ66: 32 | BG66: 時間 | BL66: 32 | BS66: 時間
AB67: （注2）3歳児配置改善加算 | AZ67: 33 | BG67: 時間 | BL67: 33 | BS67: 時間
E68: 小計 | H68: 現員 | K68: =SUM(K52:L67) -> 75 | M68: 人 | Q68: 保育士 | T68: =ROUND(SUM(T52:U67),0) -> 13 | V68: 人 | W68: 小数点第1位四捨五入 | AC68: 最低基準上の配置基準（3歳児20人につき1人配置）はXに、3歳児配置改善加算を受ける場合（3歳児15人以上につき1人配置又は実人数が15人を下回る場合でも要件を満たし加算が適用される場合）は、Yに計上すること。 | AZ68: 34 | BG68: 時間 | BL68: 34 | BS68: 時間
AZ69: 35 | BG69: 時間 | BL69: 35 | BS69: 時間
D70: 加配職員 | H70: 利用定員90名以下の保育所 | Q70: 保育士 | V70: 人 | AZ70: 36 | BG70: 時間 | BL70: 36 | BS70: 時間
AZ71: 37 | BG71: 時間 | BL71: 37 | BS71: 時間
H72: 保育標準時間認定子どもを 受入れる保育所 | Q72: 保育士 | T72: 1 | V72: 人 | AB72: （注3）4歳以上児配置改善加算 | AZ72: 38 | BG72: 時間 | BL72: 38 | BS72: 時間
AC73: 最低基準上の配置基準（4歳以上児30人につき1人配置）はXに、4歳以上児配置改善加算を受ける場合（4歳以上児25人につき1人配置又は実人数が25人を下回る場合でも要件を満たし加算が適用される場合）は、Yに計上すること。 | AZ73: 39 | BG73: 時間 | BL73: 39 | BS73: 時間
C74: 加算部分 | H74: 主任保育士専任加算 | Q74: 保育士 | T74: 1 | V74: 人 | AZ74: 40 | BG74: 時間 | BL74: 40 | BS74: 時間
AZ75: 41 | BG75: 時間 | BL75: 41 | BS75: 時間
C76: 合計 | Q76: 保育士 | T76: =SUM(T68:U75) -> 15 | V76: 人 | W76: ※⑵①A.基準配置保育士数 | AZ76: 42 | BG76: 時間 | BL76: 42 | BS76: 時間
AB77: ※ | AC77: 保育士配置には、無資格保育補助者を含めないこと。 | AZ77: 43 | BG77: 時間 | BL77: 43 | BS77: 時間
C78: ※基本部分 | H78: 全保育所（非常勤職員） | Q78: 保育士 | T78: 1 | V78: 人 | AZ78: 44 | BG78: 時間 | BL78: 44 | BS78: 時間
AB79: ※ | AC79: 太枠外の基本部分について（各市町村にて確認） | AZ79: 45 | BG79: 時間 | BL79: 45 | BS79: 時間
C80: 合計 | Q80: 保育士 | T80: =SUM(T76:U79) -> 16 | V80: 人 | AC80: （保育所の職員配置に係る特例） 第九十四条 保育の需要に応ずるに足りる保育所、認定こども園（子ども・子育て支援法（平成二十四年法律第六十五号）第二十七条第一項の確認を受けたものに限る。）又は家庭的保育事業等が不足していることに鑑み、当分の間、第三十三条第二項ただし書の規定を適用しないことができる。この場合において、同項本文の規定により必要な保育士が一人となる時は、当該保育士に加えて、都道府県知事（指定都市にあつては当該指定都市の市長とし、中核市にあつては当該中核市の市長とする。）が保育士と同等の知識及び経験を有すると認める者を置かなければならない。 | AZ80: 46 | BG80: 時間 | BL80: 46 | BS80: 時間
AZ81: 47 | BG81: 時間 | BL81: 47 | BS81: 時間
AZ82: 48 | BG82: 時間 | BL82: 48 | BS82: 時間
D83: ② 無資格者に「保育士」の名称を使用していないか。 | AZ83: 49 | BG83: 時間 | BL83: 49 | BS83: 時間
AZ84: 50 | BG84: 時間 | BL84: 50 | BS84: 時間
D85: ③ 無資格者が補助的な業務を超えて保育に従事していないか。 | AZ85: 51 | BG85: 時間 | BL85: 51 | BS85: 時間
AZ86: 52 | BG86: 時間 | BL86: 52 | BS86: 時間
AZ87: 53 | BG87: 時間 | BL87: 53 | BS87: 時間
AZ88: 54 | BG88: 時間 | BL88: 54 | BS88: 時間
AZ89: 55 | BG89: 時間 | BL89: 55 | BS89: 時間
AZ90: 56 | BG90: 時間 | BL90: 56 | BS90: 時間
AZ91: 57 | BG91: 時間 | BL91: 57 | BS91: 時間
AZ92: 58 | BG92: 時間 | BL92: 58 | BS92: 時間
AZ93: 59 | BG93: 時間 | BL93: 59 | BS93: 時間
AZ94: 60 | BG94: 時間 | BL94: 60 | BS94: 時間

Sheet No4
C2: －保育所運営No.４（分園）－ | AT2: 目次に戻る | AX2: 【参考】（印刷不要）
C4: 職員配置関係 | AC4: 特 記 事 項 | AW4: 【参考】（印刷不要）
C6: ４ 職員配置の状況 | AW6: ① | AX6: 産休・育休、病休等で休職中の記入方法
D7: (1) 職員数を記入すること。 | AW7: ｱ) 正規職員の保育士
E8: (※No14～No17(別表１～別表４)の人数と整合性を持たせること。) | AD8: （監査調書提出月： | AL8: 月初日現在） | AX8: ・代替職員がいない場合は、カウントしない。
E9: 施設長 | H9: 直接処遇職員（直接保育に携わる職員） | AX9: ・代替職員がいる場合は、正規職員の欄にカウントし、「代替」に再掲表示する。
H10: 保 育 士 | P10: 幼稚園教諭・ 小学校教諭・養護教諭 | X10: 子育て支援員 | AW10: ｲ)保育士以外の職の正規職員
H11: 正規職員 | L11: 非正規 | P11: 正規職員 | T11: 非正規 | X11: 正規職員 | AB11: 非正規 | AX11: 代替職員がいない場合はカウントせず、いる場合は正規職員の欄にカウントする。
J12: 代替 | R12: 代替 | AW12: ｳ)非正規職員
AX13: 代替職員がいない場合はカウントしない。
AW14: ② | AX14: 副園長・・・「その他」に計上
AW15: ③ | AX15: 地域子ども・子育て支援交付金や市町村単独補助金など、実施事業で人件費を賄っている
E16: 看護師・保健師・准看護師 | O16: 調理員 | AA16: その他（保育補助等・用務員） | AI16: 合計 | AX16: 職員(No5の(3))･･･｢その他｣に計上
E17: 正規職員 | H17: 非正規 | L17: (再)保育士ｶｳﾝﾄ 「正規」 | N17: 再)保育士ｶｳﾝﾄ 「非正規」 | O17: 正規職員 | R17: 非正規 | X17: (再) 栄養士 | AA17: 正規 職員 | AE17: 非正規 | AW17: ④ | AX17: 看護師・保健師・准看護師(再掲)保育士カウントに該当する場合は、下記の表に入力(ただし、1人に限る)
AW18: ⑤ | AX18: 常勤換算の算出方法
AI19: =SUM(E13:AF14)+SUM(E19:AF20)-J13-R13-L19-X19-N19 -> 0 | AX19: ○週40時間労働の場合（参考例）
AY20: 365日÷7日≒52週/年
E21: ＜記入要領＞ | AY21: 40時間×52週＝2,080時間/年
E22: ア | F22: 主任保育士は、保育士欄に計上する。 | AY22: 2,080時間÷12月≒173時間/月
E23: イ | F23: 児童福祉施設の設備及び運営に関する基準（(経過措置) 改正後の第33条第2項に規定する保育士の数の算定については、当分の間、当該保育所に勤務する保健師、看護師又は准看護師(以下この項において「看護師等」という。)を、一人に限って、保育士とみなすことができる。ただし、乳児の数が四人未満である保育所については、子育てに関する知識と経験を有する看護師等を配置し、かつ、当該看護師等が保育を行うに当たって当該保育所の保育士による支援を受けることができる体制を確保しなければならない。
E26: ウ | F26: 児童福祉施の設備と運営に関する基準第95条 当分の間、保育士の数の算定については、幼稚園教諭若しくは小学校教諭又は養護教諭の普通免許状（教育職員免許法第4条第2項に規定する普通免許状をいう。）を有する者を、保育士とみなすことができる。
BI28: 【入力例】
AX29: （常勤換算計算表） | BJ29: （常勤換算計算表）
E31: エ | F31: 休職中（産休育休等）の正規職員は、代替職員がいる場合は正規職員欄に計上し、保育士職のみ代替職員を再掲表示する。代替職員がいない場合は計上しない。 休職中（産休育休等）の非正規職員は、代替職員がいる場合は当該代替職員の雇用条件に該当する欄に計上し、代替職員がいない場合は計上しない。 | AX31: 正規職員所定労働時間 | BB31: 40 | BE31: 時間/週 | BJ31: 全保育士労働時間 | BN31: 40 | BQ31: 時間/週
AX33: 全保育士労働時間 | BB33: =BB40 -> 0 | BE33: 時間/週 | BJ33: 全保育士労働時間 | BN33: =BN40 -> 665 | BQ33: 時間/週
AX35: 常勤換算 | BB35: =IF(ISERROR(ROUNDDOWN(BB33/BB31,1)),"",ROUNDDOWN(BB33/BB31,1)) -> 0 | BE35: 人 | BJ35: 常勤換算 | BN35: =IF(ISERROR(ROUND(BN33/BN31,1)),"",ROUNDDOWN(BN33/BN31,1)) -> 16.6 | BQ35: 人
D36: (2) 保育士の配置基準について
AC37: ＜(2)①のC 常勤換算人数算出方法＞ | AX37: 保育士ごとの月労働時間数 (雇用契約による時間数） | BJ37: 保育士ごとの月労働時間数 (雇用契約による時間数）
E38: ① 必要職員数を満たしているか。（A ＜ C ) | AC38: ※ | AD38: 常勤換算人数＝「(1)の表「保育士」及び「(再)保育士カウント」の1ｶ月の労働時間数（雇用契約による）の合計」÷「正規職員就業規則で定めた1ｶ月の所定労働時間数」（小数点以下の端数処理は行わない）」
F39: A． | G39: 基準配置保育士数： | O39: =U76 -> 0 | Q39: 人 | BB39: 労働時間/週 | BN39: 労働時間/週
F40: B． | G40: 保育士現員数： | O40: =SUM(H13:AF14)+IF(SUM(L19:N20)>0,1)-J13-R13 -> 0 | Q40: 人 | AX40: =COUNTA(BB41:BD100) -> 0 | BB40: =SUM(BB41:BD100) -> 0 | BE40: 時間 | BJ40: =COUNTA(BN41:BP100) -> 20 | BN40: =SUM(BN41:BP100) -> 665 | BQ40: 時間
F41: C． | G41: 常勤換算保育士数： | O41: =BB35 -> 0 | Q41: 人 | AX41: 1 | BE41: 時間 | BJ41: 1 | BN41: 40 | BQ41: 時間
E42: ② 正規職員率について | X42: =IFERROR((H13+P13+L19)/(U80-U74),"") -> 0 | AX42: 2 | BE42: 時間 | BJ42: 2 | BN42: 40 | BQ42: 時間
D43: ※分園を設置している園は分園の職員を含む人数で計算し、②に手入力すること。 保育士及び保育士カウント職員(子育て支援員は除く)を基準配置保育士数(基本部分)の合計で除して計算。 (右計算式参照) | S43: ① | T43: 正規職員率 | AC43: (計算式) | AX43: 3 | BE43: 時間 | BJ43: 3 | BN43: 40 | BQ43: 時間
AG44: 保育士及び保育士カウント(子育て支援員除く)の正規職員 | AX44: 4 | BE44: 時間 | BJ44: 4 | BN44: 40 | BQ44: 時間
S45: ※分園有り(手入力) | AC45: 正規職員率＝ | AX45: 5 | BE45: 時間 | BJ45: 5 | BN45: 40 | BQ45: 時間
AG46: 基準配置保育士数(基本部分) | AX46: 6 | BE46: 時間 | BJ46: 6 | BN46: 40 | BQ46: 時間
S47: ② | T47: 正規職員率 | AX47: 7 | BE47: 時間 | BJ47: 7 | BN47: 40 | BQ47: 時間
T48: ※手入力 | AX48: 8 | BE48: 時間 | BJ48: 8 | BN48: 35 | BQ48: 時間
D49: ＜基準配置保育士数算定表＞ | AX49: 9 | BE49: 時間 | BJ49: 9 | BN49: 35 | BQ49: 時間
E50: 区分 | I50: 基準配置保育士数 | X50: 端数処理等 | AC50: ・ | AD50: 基本分単価に含まれる職員構成（公定価格に関するFAQ_Ver.26_№2） | AX50: 10 | BE50: 時間 | BJ50: 10 | BN50: 35 | BQ50: 時間
AX51: 11 | BE51: 時間 | BJ51: 11 | BN51: 35 | BQ51: 時間
D52: 基本部分 | E52: 配置基準 | F52: 0歳児 | I52: 現員 | N52: 人 ÷ | P52: 3 | R52: = 保育士 | U52: =IF(L52=0,"",ROUNDDOWN(L52/P52,1)) ->  | W52: 人 | X52: 小数点第2位 切り捨て | AD52: （保育士） | AX52: 12 | BE52: 時間 | BJ52: 12 | BN52: 35 | BQ52: 時間
AD53: * | AE53: 4歳以上児30人につき1人、3歳児20人につき1人、1～2歳児6人につき1人、乳児3人につき1人配置 | AX53: 13 | BE53: 時間 | BJ53: 13 | BN53: 35 | BQ53: 時間
F54: 1歳児(注1) | I54: X：現員 | N54: 人 ÷ | P54: 6 | R54: = 保育士 | U54: =IF(L54=0,"",ROUNDDOWN(L54/P54,1)) ->  | W54: 人 | AX54: 14 | BE54: 時間 | BJ54: 14 | BN54: 25 | BQ54: 時間
AD55: * | AE55: 利用定員90人以下の施設は１人加配 | AX55: 15 | BE55: 時間 | BJ55: 15 | BN55: 25 | BQ55: 時間
I56: Y：現員 | N56: 人 ÷ | P56: 5 | R56: = 保育士 | U56: =IF(L56=0,"",ROUNDDOWN(L56/P56,1)) ->  | W56: 人 | AX56: 16 | BE56: 時間 | BJ56: 16 | BN56: 25 | BQ56: 時間
AX57: 17 | BE57: 時間 | BJ57: 17 | BN57: 25 | BQ57: 時間
F58: 2歳児 | I58: 現員 | N58: 人 ÷ | P58: 6 | R58: = 保育士 | U58: =IF(L58=0,"",ROUNDDOWN(L58/P58,1)) ->  | W58: 人 | AD58: * | AE58: 保育標準時間認定を受ける子どもを受け入れる施設は | AX58: 18 | BE58: 時間 | BJ58: 18 | BN58: 25 | BQ58: 時間
AE59: 1人加配 | AX59: 19 | BE59: 時間 | BJ59: 19 | BN59: 25 | BQ59: 時間
F60: 3歳児 (注2) | I60: X：現員 | N60: 人 ÷ | P60: 20 | R60: = 保育士 | U60: =IF(L60=0,"",ROUNDDOWN(L60/P60,1)) ->  | W60: 人 | AD60: * | AE60: 上記の定数に加えて非常勤保育士を1人加配 | AX60: 20 | BE60: 時間 | BJ60: 20 | BN60: 25 | BQ60: 時間
AX61: 21 | BE61: 時間 | BJ61: 21 | BQ61: 時間 | BV61: １歳児の職員配置の改善
I62: Y：現員 | N62: 人 ÷ | P62: 15 | R62: = 保育士 | U62: =IF(L62=0,"",ROUNDDOWN(L62/P62,1)) ->  | W62: 人 | AC62: （注1）1歳児配置改善加算 | AX62: 22 | BE62: 時間 | BJ62: 22 | BQ62: 時間 | BV62: 〇 1歳児の職員配置の改善を進めるため、公定価格上の加算配置として、新たに「1歳児配置改善加算」を設置する 〇 具体的には、人材確保や保育の質の向上の観点も踏まえ、職員環境改善を進めている施設・事業所において、1歳児の職員配置を5：1以上に改善した場合に、加算する（令和７年４月～） 【対象】以下の全てを満たす事業所(配置基準が既に5：1以上である小規模C・家庭的保育・居宅訪問型保育を除く) (1) 処遇改善等加算Ⅰ、Ⅱ、Ⅲの全てを取得している (2) 業務においてICTの活用を進めている(①登降園、②計画・記録、④キャッシュレス決済のうち、①及びもう1機能以上の機器を導入し活用している) (3) 施設・事業所の職員の平均経験年数が10年以上
AD63: 最低基準上の配置基準（1歳児6人につき1人配置）はXに、1歳児配置改善加算を受ける場合（1歳児5人につき1人配置）は、Yに計上すること。 | AX63: 23 | BE63: 時間 | BJ63: 23 | BQ63: 時間
F64: 4歳 以上児 (注3) | I64: X：現員 | N64: 人 ÷ | P64: 30 | R64: = 保育士 | U64: =IF(L64=0,"",ROUNDDOWN(L64/P64,1)) ->  | W64: 人 | AX64: 24 | BE64: 時間 | BJ64: 24 | BQ64: 時間
AX65: 25 | BE65: 時間 | BJ65: 25 | BQ65: 時間
I66: Y：現員 | N66: 人 ÷ | P66: 25 | R66: = 保育士 | U66: =IF(L66=0,"",ROUNDDOWN(L66/P66,1)) ->  | W66: 人 | AX66: 26 | BE66: 時間 | BJ66: 26 | BQ66: 時間
AC67: （注2）3歳児配置改善加算 | AX67: 27 | BE67: 時間 | BJ67: 27 | BQ67: 時間
F68: 小計 | I68: 現員 | L68: =SUM(L52:M67) -> 0 | N68: 人 | R68: 保育士 | U68: =ROUND(SUM(U52:V67),0) -> 0 | W68: 人 | X68: 小数点第1位 四捨五入 | AD68: 最低基準上の配置基準（3歳児20人につき1人配置）はXに、3歳児配置改善加算を受ける場合（3歳児15人以上につき1人配置又は実人数が15人を下回る場合でも要件を満たし加算が適用される場合）は、Yに計上すること。 | AX68: 28 | BE68: 時間 | BJ68: 28 | BQ68: 時間
AX69: 29 | BE69: 時間 | BJ69: 29 | BQ69: 時間
E70: 加配職員 | I70: 利用定員90名以下の保育所 | R70: 保育士 | W70: 人 | AX70: 30 | BE70: 時間 | BJ70: 30 | BQ70: 時間
AX71: 31 | BE71: 時間 | BJ71: 31 | BQ71: 時間
I72: 保育標準時間認定子どもを 受入れる保育所 | R72: 保育士 | W72: 人 | AC72: （注3）4歳以上児配置改善加算 | AX72: 32 | BE72: 時間 | BJ72: 32 | BQ72: 時間
AD73: 最低基準上の配置基準（4歳以上児30人につき1人配置）はXに、4歳以上児配置改善加算を受ける場合（4歳以上児25人につき1人配置又は実人数が25人を下回る場合でも要件を満たし加算が適用される場合）は、Yに計上すること。 | AX73: 33 | BE73: 時間 | BJ73: 33 | BQ73: 時間
D74: 加算部分 | I74: 主任保育士専任加算 | R74: 保育士 | W74: 人 | AX74: 34 | BE74: 時間 | BJ74: 34 | BQ74: 時間
AX75: 35 | BE75: 時間 | BJ75: 35 | BQ75: 時間
D76: 合計 | R76: 保育士 | U76: =SUM(U68:V75) -> 0 | W76: 人 | X76: ⑵①A.基準配置保育士数 | AX76: 36 | BE76: 時間 | BJ76: 36 | BQ76: 時間
AC77: ※ | AD77: 保育士配置には、無資格保育補助者を含めないこと。 | AX77: 37 | BE77: 時間 | BJ77: 37 | BQ77: 時間
D78: ※基本部分 | I78: 全保育所（非常勤職員） | R78: 保育士 | U78: 1 | W78: 人 | AX78: 38 | BE78: 時間 | BJ78: 38 | BQ78: 時間
AC79: ※ | AD79: 太枠外の基本部分について（各市町村にて確認） | AX79: 39 | BE79: 時間 | BJ79: 39 | BQ79: 時間
D80: 合計 | R80: 保育士 | U80: =SUM(U76:V79) -> 1 | W80: 人 | AD80: 「児童福祉施設の設備と運営基準」 第93条 | AX80: 40 | BE80: 時間 | BJ80: 40 | BQ80: 時間
AD81: （保育所の職員配置に係る特例） 第九十四条 保育の需要に応ずるに足りる保育所、認定こども園（子ども・子育て支援法（平成二十四年法律第六十五号）第二十七条第一項の確認を受けたものに限る。）又は家庭的保育事業等が不足していることに鑑み、当分の間、第三十三条第二項ただし書の規定を適用しないことができる。この場合において、同項本文の規定により必要な保育士が一人となる時は、当該保育士に加えて、都道府県知事（指定都市にあつては当該指定都市の市長とし、中核市にあつては当該中核市の市長とする。）が保育士と同等の知識及び経験を有すると認める者を置かなければならない。 | AX81: 41 | BE81: 時間 | BJ81: 41 | BQ81: 時間
AX82: 42 | BE82: 時間 | BJ82: 42 | BQ82: 時間
AX83: 43 | BE83: 時間 | BJ83: 43 | BQ83: 時間
E84: ③ 無資格者に「保育士」の名称を使用していないか。 | AX84: 44 | BE84: 時間 | BJ84: 44 | BQ84: 時間
AX85: 45 | BE85: 時間 | BJ85: 45 | BQ85: 時間
E86: ④ 無資格者が補助的な業務を超えて保育に従事していないか。 | AX86: 46 | BE86: 時間 | BJ86: 46 | BQ86: 時間
AX87: 47 | BE87: 時間 | BJ87: 47 | BQ87: 時間
AX88: 48 | BE88: 時間 | BJ88: 48 | BQ88: 時間
AX89: 49 | BE89: 時間 | BJ89: 49 | BQ89: 時間
AX90: 50 | BE90: 時間 | BJ90: 50 | BQ90: 時間
AX91: 51 | BE91: 時間 | BJ91: 51 | BQ91: 時間
AX92: 52 | BE92: 時間 | BJ92: 52 | BQ92: 時間
AX93: 53 | BE93: 時間 | BJ93: 53 | BQ93: 時間
AX94: 54 | BE94: 時間 | BJ94: 54 | BQ94: 時間
AX95: 55 | BE95: 時間 | BJ95: 55 | BQ95: 時間
AX96: 56 | BE96: 時間 | BJ96: 56 | BQ96: 時間
AX97: 57 | BE97: 時間 | BJ97: 57 | BQ97: 時間
AX98: 58 | BE98: 時間 | BJ98: 58 | BQ98: 時間
AX99: 59 | BE99: 時間 | BJ99: 59 | BQ99: 時間
AX100: 60 | BE100: 時間 | BJ100: 60 | BQ100: 時間

Sheet 記入例No5
A1: －保育所運営No.５（分園）－ | AS1: 目次に戻る
AM2: 【記入例】 | BS2: !!必須チェック項目!!
B3: 職員配置関係 | AH3: 特 記 事 項
C4: (3) 前頁の４(1)の配置職員のうち、委託費特定加算分や子ども・子育て支援 | AS4: ＜分園設置の保育所の記入方法＞ (3)は、保育所の状況を中心園で記入。 (4)は、中心園、分園ごとに記入してください。 | BU4: １歳児配置改善加算（必須ﾁｪｯｸ）
D5: 交付金対象事業等での配置・加配はあるか。（主任保育士専任加算を除く） | AH5: ※監査調書提出時の状況について記入してください。 | BS5: TRUE | BX5: なし・・・1歳児X
BS6: FALSE | BX6: あり・・・1歳児Y
C7: ○ 「ある」場合 ※下記以外の加算については、空欄に追記してください。
D8: 加算名 | N8: 対象職員名 | V8: 事 業 名 | AJ8: 対象職員名 | BU8: ３歳児配置改善加算（必須ﾁｪｯｸ）
F9: 療育支援加算（A） | X9: 延長保育事業 | BS9: FALSE | BX9: なし・・・3歳児X
F10: 療育支援加算（B) | X10: 一時預かり事業 | AS10: （例） | BS10: TRUE | BX10: あり・・・3歳児Y
F11: 休日保育加算 | X11: 放課後児童健全育成事業 | AT11: 365日÷7日≒52週/年 | BS11: FALSE
F12: 夜間保育加算 | X12: 病児保育事業 | AD12: (病児対応型) | AS12: ○週40時間労働の場合 | BF12: ○週37.5時間労働の場合 | BS12: TRUE | BU12: ４歳以上児配置改善加算（必須ﾁｪｯｸ）
F13: 高齢者等活躍促進加算 | X13: 地域子育て支援・拠点事業 | AT13: 40時間×52週＝2,080時間/年 | BG13: 37.5時間×52週＝1,950時間/年 | BS13: TRUE | BX13: なし・・・4歳以上児X
F14: ( | M14: ） | X14: その他（ | AI14: ） | AT14: 2,080時間÷12月≒173時間/月 | BG14: 1,950時間÷12月≒163時間/月 | BX14: あり・・・4歳以上児Y
C16: (4) クラス編成の状況 | AS16: ＜参考※色つきセルには計算式が入っています。＞
D17: (※No14～No17(別表１～別表４)保育従事者の人数、氏名と整合性を持たせること。) | BS17: (削除厳禁)
C18: ① クラス編成の状況を(年齢の低いクラス順に記入すること。） | BD18: 【入力例】
D19: クラス名 | I19: 面積 | L19: 児童数 | Z19: 基準 配置 保育士 | AC19: 保育士数 | AI19: 担任保育士氏名 （加配含む） | AS19: （常勤換算計算表） | BE19: （常勤換算計算表）
L20: 0歳 | N20: 1歳 | P20: 2歳 | R20: 3歳 | T20: 4歳 | V20: 5歳 | X20: 計 | AC20: 計 | AF20: 常勤 | AG20: 短時間 | AS20: 正規職員所定労働時間 | AW20: 40 | AZ20: 時間/週 | BE20: 正規職員所定労働時間 | BI20: 40 | BL20: 時間/週
AF21: A | AG21: B
AG22: 常勤換算 | AS22: クラス毎のBの労働時間 | AW22: =AW29 -> 44 | AZ22: 時間/週 | BE22: クラス毎のBの労働時間 | BI22: =BI29 -> 114 | BL22: 時間/週
B23: (例) | I23: ㎡ | L23: 0 | N23: 1 | P23: 0 | R23: 0 | T23: 0 | V23: 0 | X23: =SUM(L23:W23) -> 1 | Z23: 人 | AC23: 人 | AF23: 人 | AG23: 人 | AI23: A | AJ23: 山田
D24: うさぎ | I24: 90.6 | N24: 14 | X24: =SUM(L24:W25) -> 14 | Z24: =IF(X24=0,"",ROUNDDOWN(L24/3,1)+ROUNDDOWN((N24+P24)/6,1)+ROUNDDOWN(R24/15,1)+ROUNDDOWN((T24+V24)/25,1)) -> 2.3 | AC24: =IF(AF24+AG25=0,"",AF24+AG25) -> 3.8 | AF24: 1 | AG24: 4 | AI24: B | AJ24: 大城(30h)、平良(30h) | AS24: 常勤換算 | AW24: =IF(ISERROR(AW22/AW20),"",ROUNDDOWN(AW22/AW20,1)) -> 1.1 | AZ24: 人 | BE24: 常勤換算 | BI24: =IF(ISERROR(BI22/BI20),"",ROUNDDOWN(BI22/BI20,1)) -> 2.8 | BL24: 人
AG25: 2.8 | AJ25: 金城(26h)、田中(26h)
D26: ひよこ | I26: 50 | L26: 0 | N26: 0 | P26: 0 | R26: 0 | T26: 0 | V26: 0 | X26: =SUM(L26:W26) -> 0 | Z26: =ROUNDDOWN(L27/3,1)+IF(BS5=TRUE,ROUNDDOWN(N27/6,1),ROUNDDOWN(N27/5,1))+ROUNDDOWN(P27/6,1)+IF(BS9=TRUE,ROUNDDOWN(R27/20,1),ROUNDDOWN(R27/15,1))+IF(BS11=TRUE,ROUNDDOWN((T27+V27)/30,1),ROUNDDOWN((T27+V27)/25,1)) -> 3.3 | AC26: =IF(ISERROR(AF26+AG28),"",ROUNDDOWN(AF26+AG28,1)) -> 3.5 | AF26: 2 | AG26: 2 | AI26: A | AJ26: 糸満、平良 | AS26: 保育士Bの週労働時間数 (雇用契約による時間数） | BE26: 保育士Bの週労働時間数 (雇用契約による時間数）
L27: 6 | N27: 8 | X27: =SUM(L27:W28) -> 14 | AI27: B | AJ27: 大城(35h)
AG28: 1.5 | AJ28: 大田(25h) | AW28: 労働時間 | BI28: 労働時間
D29: めだか | I29: 52 | L29: 0 | N29: 0 | P29: 0 | R29: 0 | T29: 0 | V29: 0 | X29: =SUM(L29:W29) -> 0 | Z29: =ROUNDDOWN(L30/3,1)+IF(BS8=TRUE,ROUNDDOWN(N30/6,1),ROUNDDOWN(N30/5,1))+ROUNDDOWN(P30/6,1)+IF(BS12=TRUE,ROUNDDOWN(R30/20,1),ROUNDDOWN(R30/15,1))+IF(BS14=TRUE,ROUNDDOWN((T30+V30)/30,1),ROUNDDOWN((T30+V30)/25,1)) -> 3.4 | AC29: =IF(ISERROR(AF29+AG31),"",ROUNDDOWN(AF29+AG31,1)) -> 3.1 | AF29: 2 | AG29: 2 | AI29: A | AJ29: 石垣、南風原 | AS29: =COUNTA(AW30:AY35) -> 2 | AW29: =SUM(AW30:AY44) -> 44 | AZ29: 時間 | BE29: =COUNTA(BI30:BK44) -> 4 | BI29: =SUM(BI30:BK44) -> 114 | BL29: 時間
L30: 5 | N30: 9 | X30: =SUM(L30:W31) -> 14 | AI30: B | AJ30: 名護(24h)、石川(20h) | AS30: 1 | AW30: 24 | AZ30: 時間 | BE30: 1 | BI30: 40 | BL30: 時間
AG31: 1.1 | AS31: 2 | AW31: 20 | AZ31: 時間 | BE31: 2 | BI31: 34 | BL31: 時間
D32: うさぎ | I32: 53.2 | L32: 0 | N32: 0 | P32: 0 | R32: 0 | T32: 0 | V32: 0 | X32: =SUM(L32:W32) -> 0 | Z32: =ROUNDDOWN(L33/3,1)+IF(BS11=TRUE,ROUNDDOWN(N33/6,1),ROUNDDOWN(N33/5,1))+ROUNDDOWN(P33/6,1)+IF(BS15=TRUE,ROUNDDOWN(R33/20,1),ROUNDDOWN(R33/15,1))+IF(BS17=TRUE,ROUNDDOWN((T33+V33)/30,1),ROUNDDOWN((T33+V33)/25,1)) -> 3.7 | AC32: =IF(ISERROR(AF32+AG34),"",ROUNDDOWN(AF32+AG34,1)) -> 3.9 | AF32: 2 | AG32: 2 | AI32: A | AJ32: 山田、宮城 | AS32: 3 | AZ32: 時間 | BE32: 3 | BI32: 20 | BL32: 時間
N33: 2 | P33: 20 | X33: =SUM(L33:W34) -> 22 | AI33: B | AJ33: 田中(38h)、仲田(38h) | AS33: 4 | AZ33: 時間 | BE33: 4 | BI33: 20 | BL33: 時間
AG34: 1.9 | AS34: 5 | AZ34: 時間 | BE34: 5 | BL34: 時間
D35: りす | I35: 46.6 | L35: 0 | N35: 0 | P35: 0 | R35: 1 | T35: 0 | V35: 0 | X35: =SUM(L35:W35) -> 1 | Z35: =ROUNDDOWN(L36/3,1)+IF(BS14=TRUE,ROUNDDOWN(N36/6,1),ROUNDDOWN(N36/5,1))+ROUNDDOWN(P36/6,1)+IF(BS18=TRUE,ROUNDDOWN(R36/20,1),ROUNDDOWN(R36/15,1))+IF(BS20=TRUE,ROUNDDOWN((T36+V36)/30,1),ROUNDDOWN((T36+V36)/25,1)) -> 1.5 | AC35: =IF(ISERROR(AF35+AG37),"",ROUNDDOWN(AF35+AG37,1)) -> 2.5 | AF35: 1 | AG35: 2 | AI35: A | AJ35: 浦添 | AS35: 6 | AZ35: 時間 | BE35: 6 | BL35: 時間
R36: 23 | X36: =SUM(L36:W37) -> 23 | AI36: B | AJ36: 西原(35h) | AS36: 7 | AZ36: 時間 | BE36: 7 | BL36: 時間
AG37: 1.5 | AJ37: 与那城(25h) | AS37: 8 | AZ37: 時間 | BE37: 8 | BL37: 時間
D38: うぐいす | I38: 48 | L38: 0 | N38: 0 | P38: 0 | R38: 0 | T38: 0 | V38: 0 | X38: =SUM(L38:W38) -> 0 | Z38: =ROUNDDOWN(L39/3,1)+IF(BS17=TRUE,ROUNDDOWN(N39/6,1),ROUNDDOWN(N39/5,1))+ROUNDDOWN(P39/6,1)+IF(BS21=TRUE,ROUNDDOWN(R39/20,1),ROUNDDOWN(R39/15,1))+IF(BS23=TRUE,ROUNDDOWN((T39+V39)/30,1),ROUNDDOWN((T39+V39)/25,1)) -> 0.8 | AC38: =IF(ISERROR(AF38+AG40),"",ROUNDDOWN(AF38+AG40,1)) -> 1 | AF38: 1 | AI38: A | AJ38: 鈴木 | AS38: 9 | AZ38: 時間 | BE38: 9 | BL38: 時間
T39: 22 | X39: =SUM(L39:W40) -> 22 | AI39: B | AS39: 10 | AZ39: 時間 | BE39: 10 | BL39: 時間
AG40: 0 | AS40: 11 | AZ40: 時間 | BE40: 11 | BL40: 時間
D41: きりん | I41: 48 | L41: 0 | N41: 0 | P41: 0 | R41: 0 | T41: 0 | V41: 0 | X41: =SUM(L41:W41) -> 0 | Z41: =ROUNDDOWN(L42/3,1)+IF(BS20=TRUE,ROUNDDOWN(N42/6,1),ROUNDDOWN(N42/5,1))+ROUNDDOWN(P42/6,1)+IF(BS24=TRUE,ROUNDDOWN(R42/20,1),ROUNDDOWN(R42/15,1))+IF(BS26=TRUE,ROUNDDOWN((T42+V42)/30,1),ROUNDDOWN((T42+V42)/25,1)) -> 0.5 | AC41: =IF(ISERROR(AF41+AG43),"",ROUNDDOWN(AF41+AG43,1)) -> 1 | AF41: 1 | AI41: A | AJ41: 金城 | AS41: 12 | AZ41: 時間 | BE41: 12 | BL41: 時間
V42: 14 | X42: =SUM(L42:W43) -> 14 | AI42: B | AS42: 13 | AZ42: 時間 | BE42: 13 | BL42: 時間
AG43: 0 | AS43: 14 | AZ43: 時間 | BE43: 14 | BL43: 時間
L44: 0 | N44: 0 | P44: 0 | R44: 0 | T44: 0 | V44: 0 | X44: =SUM(L44:W44) -> 0 | Z44: =ROUNDDOWN(L45/3,1)+IF(BS23=TRUE,ROUNDDOWN(N45/6,1),ROUNDDOWN(N45/5,1))+ROUNDDOWN(P45/6,1)+IF(BS27=TRUE,ROUNDDOWN(R45/20,1),ROUNDDOWN(R45/15,1))+IF(BS29=TRUE,ROUNDDOWN((T45+V45)/30,1),ROUNDDOWN((T45+V45)/25,1)) -> 0 | AC44: =IF(ISERROR(AF44+AG46),"",ROUNDDOWN(AF44+AG46,1)) -> 0 | AI44: A | AS44: 15 | AZ44: 時間 | BE44: 15 | BL44: 時間
X45: =SUM(L45:W46) -> 0 | AI45: B | AS45: 【参考通知】（印刷不用）
AG46: 0 | AS46: 「保育所等における短時間勤務の保育士の取扱いについて」(R3.3.19 子発0319第1号)
D47: 計 | I47: =IF(SUM(I26:K46)=0,"",SUM(I26:K46)) -> 297.8 | L47: =SUM(L26,L29,L32,L35,L38,L41,L44) -> 0 | N47: =SUM(N26,N29,N32,N35,N38,N41,N44) -> 0 | P47: =SUM(P26,P29,P32,P35,P38,P41,P44) -> 0 | R47: =SUM(R26,R29,R32,R35,R38,R41,R44) -> 1 | T47: =SUM(T26,T29,T32,T35,T38,T41,T44) -> 0 | V47: =SUM(V26,V29,V32,V35,V38,V41,V44) -> 0 | X47: =SUM(L47:W47) -> 1 | Z47: =ROUND(SUM(Z26:AB46),0) -> 13 | AC47: =IF(ISERROR(AF47+AG49),"",ROUNDDOWN(AF47+AG49,1)) -> 15 | AF47: =SUM(AF26:AF46) -> 9 | AG47: =SUM(AG26,AG29,AG32,AG35,AG38,AG41,AG44) -> 8 | AS47: ① | AT47: 常勤の保育士が各組・各グループに１名以上（乳児を含む各組・各グループであって当該組・グループに係る最低基準上の保育士定数が２名以上の場合は、１名以上ではなく２名以上）配置されていること。 ただし、令和２年度以降の各年４月１日時点のいずれかの待機児童数が１人以上であり、かつ、その要因が管内の保育所等において空き定員があるにもかかわらず、常勤の保育祖の確保が困難であることにより、当該保育所等の利用を希望する子どもを受け入れることが出来ないためと判断している市町村（特別区を含む。以下同じ。）において、待機児童解消のため当該市町村がやむを得ないと認める場合に限り、当該子どもを受け入れるのに不足する常勤の保育士のの限りにおいて、1名の常勤の保育士に代えて２名の短時間勤務の保育士を充てても差し支えないものであること。その際当該市町村においては、上記の判断に当たり管内の保育関係者と認識の共有を図るとともに、当該保育所等において、適切に常勤の保育士の募集等常勤の保育士を確保するため取組を行っているか確認すること。常勤の保育士の募集を適切に実施しているかを確認する際には、例えば、当該保育所等に勤務する常勤の保育士よりも著しく低い処遇水準での募集が行われていないことや、ハローワークや職業紹介事業者等を通じて広く求人活動を一定期間行っていることその他適切な方法により募集を行っていることを確認することが考えられること。なお、常勤の保育士が各組・各グループに１名以上（乳児を含む各組・各グループであって当該組・グループに係る最低基準上の保育士定数が２名以上の場合は、１名以上でなはく２名以上）配置されていることが原則であり、望ましいことに変わりはないため、常勤の保育士の確保が可能となった場合は、各組・グループに１名以上常勤の保育士を配置し、上記のただし書きの取扱いについては、早期に解消を図り、当該業務に当たっていた短時間勤務の保育士の業務内容の見直しを行うこと。
L48: =SUM(L27,L30,L33,L36,L39,L42,L45) -> 11 | N48: 19 | P48: 20 | R48: 23 | T48: 22 | V48: 14 | X48: =SUM(L48:W49) -> 109
AG49: =ROUNDDOWN(SUM(AG28,AG31,AG34,AG37,AG40,AG43,AG46),0) -> 6
D50: フリー保育士 | AC50: =IF(ISERROR(AF50+AG52),"",ROUNDDOWN(AF50+AG52,1)) -> 0 | AI50: A
AI51: B
AG52: 0
D53: 子育て支援員等 | AC53: =IF(ISERROR(AF53+AG55),"",ROUNDDOWN(AF53+AG55,1)) -> 0 | AI53: A
AI54: B
AG55: 0
D56: ＜記入要領＞ | O56: ※「基準配置保育士」は、前頁４（2）の表とは必ずしも一致しない。
D57: (ｱ) | F57: 「児童数」欄の児童年齢は本年度初日の前日（3月31日）現在年齢。障害児数を（ ）に再掲すること。
D58: (ｲ) | F58: 「保育士数」「担任保育士氏名（加配含む）」のA：常勤、B：短時間 ※正規・非正規を問わず
F59: 「常勤保育士」とは、以下に該当する者をいい、「短時間勤務の保育士」とは次のいずれにも該当しないものをいう。
F60: ① 当該保育所等の就業規則において定められている常勤の従業者が勤務すべき時間数（１か月に勤務すべき時間数が
G61: 120時間以上であるものに限る。）に達している者。 | AS61: ② | AT61: 常勤保育士に代えて短時間勤務保育士を充てる場合の勤務時間数が、常勤保育士を充てる場合の勤務時間数を上回ること。
F62: ② ①以外の者であって、１日６時間以上かつ月20日以上勤務するもの。
D63: (ｳ) | F63: 「保育士数」と「担任保育士氏名」は、A～Cごとに一致させること。フリー保育士は最下段に記入すること。 | AT63: 保育所等におけるスポットワーク（いわゆるスキマバイト）により採用された保育士の取扱いについて（通知）
D64: (ｴ) | F64: 子育て支援員等は、各クラスの担任保育士には含めないこと。 | AT64: こ成保第131号 令和7年2月14日
D65: (ｵ) | F65: 担任保育士氏名を記入するB欄の氏名の後に( )書きで週平均労働時間を記入すること。 | AT65: https://www.cfa.go.jp/assets/contents/node/basic_page/field_ref_resources/e4b817c9-5282-4ccc-b0d5-ce15d7b5018c/4bd444ad/20250225_policies_hoiku_134.pdf
D66: (ｶ) | F66: 定数上の保育士の取扱いに関しては、こどもを長時間にわたり保育できる常勤保育士であることが原則であり、望ましいことと
F67: されていることを踏まえると、スポットワーク（いわゆるスキマバイト）により | AH67: ・ | AI67: 「保育所等におけるスポットワーク（いわゆるスキマバイト）により採用された保育士の取扱いについて（通知）」(R7.2.14こ成保発第131号)
F68: 採用された保育士を最低基準上の保育士定数の一部に充てることは望ましくない。
C69: ② 各クラスには常勤保育士(A)を各1名以上配置しているか。 | AS69: ※公定価格に関するFAQ Ver.26 No.218 公定価格における配置基準や加算算定上の定数の一部に短時間勤務（常勤（各施設・事業所の就業規則において定められている常勤の従業者が勤務すべき時間数に達している者）以外の者。）の教育・保育従事者を充てることができます。なお、設備運営基準等において、学級担任は原則常勤専任であることとされています。 ※公定価格に関するFAQ Ver.26 No.219 公定価格における配置基準や加算算定上の定数の一部に短時間勤務（常勤（各施設・事業所の就業規則において定められている常勤の従業者が勤務すべき時間数に達している者）以外の者。）の教育・保育従事者を充てることができます。なお、「保育所等における常勤保育士及び短時間保育士の定義について」（令和５年４月21日付こ成保２１）において、短時間勤務の保育士を充てる場合の取扱いを示しています。 ※公定価格に関するFAQ Ver.26 No.220 当該通知は、最低基準上の保育士定数に充てられる常勤の保育士及び短時間勤務の保育士について、改めて定義を示したものです。 他方で、公定価格の取り扱いについては、留意事項通知で示しているところであり、各施設・事業所の就業規則等で定めた常勤職員の１か月の勤務時間数に達しない者について、常勤換算を行うこととしています。 この取り扱いについては、今般の通知による変更は無く、従前のとおり、以下の算式により常勤職員数に換算することとします。 ＜常勤換算値を算出するための算式＞ 常勤以外の職員の1か月の勤務時間数の合計 ÷ 各施設・事業所の就業規則等で定めた常勤職員の１か月の勤務時間数 ＝ 常勤換算値(小数点以下の端数処理を行わ ない)
C71: ③ 0歳児クラスで基準保育士数が2名以上の場合、常勤保育士(A)を2名以上配置 | AH71: ・ | AI71: 「保育所等における常勤保育士及び短時間保育士の定義について（通知）」 (R5.4.21こ成保発第21号)
D72: しているか。

Sheet No5
A2: －保育所運営No.５（分園）－ | AS2: 目次に戻る
BR3: !!必須チェック項目!!
B4: 職員配置関係 | AH4: 特 記 事 項
C5: (3) 前頁の４(1)の配置職員のうち、委託費特定加算分や子ども・子育て支援 | AS5: ＜分園設置の保育所の記入方法＞ (3)は、保育所の状況を中心園で記入。 (4)は、中心園、分園ごとに記入してください。 | BT5: １歳児配置改善加算（必須ﾁｪｯｸ）
D6: 交付金対象事業等での配置・加配はあるか。（主任保育士専任加算を除く） | AH6: ※監査調書提出時の状況について記入してください。 | BR6: FALSE | BW6: なし・・・1歳児X
BR7: FALSE | BW7: あり・・・1歳児Y
C8: ○ 「ある」場合 ※下記以外の加算については、空欄に追記してください。
D9: 加算名 | N9: 対象職員名 | V9: 事 業 名 | AJ9: 対象職員名 | BT9: ３歳児配置改善加算（必須ﾁｪｯｸ）
F10: 療育支援加算（A） | X10: 延長保育事業 | BR10: FALSE | BW10: なし・・・3歳児X
F11: 療育支援加算（B) | X11: 一時預かり事業 | AS11: （例） | BR11: FALSE | BW11: あり・・・3歳児Y
F12: 休日保育加算 | X12: 放課後児童健全育成事業 | AT12: 365日÷7日≒52週/年 | BR12: FALSE
F13: 夜間保育加算 | X13: 病児保育事業 | AS13: ○週40時間労働の場合 | BF13: ○週37.5時間労働の場合 | BR13: FALSE | BT13: ４歳以上児配置改善加算（必須ﾁｪｯｸ）
F14: 高齢者等活躍促進加算 | X14: 地域子育て支援・拠点事業 | AT14: 40時間×52週＝2,080時間/年 | BG14: 37.5時間×52週＝1,950時間/年 | BW14: なし・・・4歳以上児X
F15: ( | M15: ） | X15: その他（ | AI15: ） | AT15: 2,080時間÷12月≒173時間/月 | BG15: 1,950時間÷12月≒163時間/月 | BW15: あり・・・4歳以上児Y
C17: (4) クラス編成の状況 | AS17: ＜参考※色つきセルには計算式が入っています。＞
D18: (※No14～No17(別表１～別表４)保育従事者の人数、氏名と整合性を持たせること。) | BR18: (削除厳禁)
C19: ① クラス編成の状況を(年齢の低いクラス順に記入すること。） | BD19: 【入力例】
D20: クラス名 | I20: 面積 | L20: 児童数 | Z20: 基準 配置 保育士 | AC20: 保育士数 | AI20: 担任保育士氏名 （加配含む） | AS20: （常勤換算計算表） | BE20: （常勤換算計算表）
L21: 0歳 | N21: 1歳 | P21: 2歳 | R21: 3歳 | T21: 4歳 | V21: 5歳 | X21: 計 | AC21: 計 | AF21: 常勤 | AG21: 短時間 | AS21: 正規職員所定労働時間 | AW21: 40 | AZ21: 時間/週 | BE21: 正規職員所定労働時間 | BI21: 40 | BL21: 時間/週
AF22: A | AG22: B
AG23: 常勤換算 | AS23: クラス毎のBの労働時間 | AW23: =AW30 -> 0 | AZ23: 時間/週 | BE23: クラス毎のBの労働時間 | BI23: =BI30 -> 114 | BL23: 時間/週
D24: (例) | I24: ㎡ | L24: 0 | N24: 1 | P24: 0 | R24: 0 | T24: 0 | V24: 0 | X24: =SUM(L24:W24) -> 1 | Z24: 人 | AC24: 人 | AF24: 人 | AG24: 人 | AI24: A | AJ24: 山田
D25: うさぎ | I25: 90.6 | N25: 14 | X25: =SUM(L25:W26) -> 14 | Z25: =IF(X25=0,"",ROUNDDOWN(L25/3,1)+ROUNDDOWN((N25+P25)/6,1)+ROUNDDOWN(R25/15,1)+ROUNDDOWN((T25+V25)/25,1)) -> 2.3 | AC25: =IF(AF25+AG26=0,"",AF25+AG26) -> 3.8 | AF25: 1 | AG25: 4 | AI25: B | AJ25: 大城(30h)、平良(30h) | AS25: 常勤換算 | AW25: =IF(ISERROR(AW23/AW21),"",ROUNDDOWN(AW23/AW21,1)) -> 0 | AZ25: 人 | BE25: 常勤換算 | BI25: =IF(ISERROR(BI23/BI21),"",ROUNDDOWN(BI23/BI21,1)) -> 2.8 | BL25: 人
AG26: 2.8 | AJ26: 金城(26h)、田中(26h)
L27: 0 | N27: 0 | P27: 0 | R27: 0 | T27: 0 | V27: 0 | X27: =SUM(L27:W27) -> 0 | Z27: =ROUNDDOWN(L28/3,1)+IF(BR6=TRUE,ROUNDDOWN(N28/6,1),ROUNDDOWN(N28/5,1))+ROUNDDOWN(P28/6,1)+IF(BR10=TRUE,ROUNDDOWN(R28/20,1),ROUNDDOWN(R28/15,1))+IF(BR12=TRUE,ROUNDDOWN((T28+V28)/30,1),ROUNDDOWN((T28+V28)/25,1)) -> 0 | AC27: =IF(ISERROR(AF27+AG29),"",ROUNDDOWN(AF27+AG29,1)) -> 0 | AI27: A | AS27: 保育士Bの週労働時間数 (雇用契約による時間数） | BE27: 保育士Bの週労働時間数 (雇用契約による時間数）
X28: =SUM(L28:W29) -> 0 | AI28: B
AG29: 0 | AW29: 労働時間 | BI29: 労働時間
L30: 0 | N30: 0 | P30: 0 | R30: 0 | T30: 0 | V30: 0 | X30: =SUM(L30:W30) -> 0 | Z30: =ROUNDDOWN(L31/3,1)+IF(BR9=TRUE,ROUNDDOWN(N31/6,1),ROUNDDOWN(N31/5,1))+ROUNDDOWN(P31/6,1)+IF(BR13=TRUE,ROUNDDOWN(R31/20,1),ROUNDDOWN(R31/15,1))+IF(BR15=TRUE,ROUNDDOWN((T31+V31)/30,1),ROUNDDOWN((T31+V31)/25,1)) -> 0 | AC30: =IF(ISERROR(AF30+AG32),"",ROUNDDOWN(AF30+AG32,1)) -> 0 | AI30: A | AS30: =COUNTA(AW31:AY36) -> 0 | AW30: =SUM(AW31:AY45) -> 0 | AZ30: 時間 | BE30: =COUNTA(BI31:BK45) -> 4 | BI30: =SUM(BI31:BK45) -> 114 | BL30: 時間
X31: =SUM(L31:W32) -> 0 | AI31: B | AS31: 1 | AZ31: 時間 | BE31: 1 | BI31: 40 | BL31: 時間
AG32: 0 | AS32: 2 | AZ32: 時間 | BE32: 2 | BI32: 34 | BL32: 時間
L33: 0 | N33: 0 | P33: 0 | R33: 0 | T33: 0 | V33: 0 | X33: =SUM(L33:W33) -> 0 | Z33: =ROUNDDOWN(L34/3,1)+IF(BR12=TRUE,ROUNDDOWN(N34/6,1),ROUNDDOWN(N34/5,1))+ROUNDDOWN(P34/6,1)+IF(BR16=TRUE,ROUNDDOWN(R34/20,1),ROUNDDOWN(R34/15,1))+IF(BR18=TRUE,ROUNDDOWN((T34+V34)/30,1),ROUNDDOWN((T34+V34)/25,1)) -> 0 | AC33: =IF(ISERROR(AF33+AG35),"",ROUNDDOWN(AF33+AG35,1)) -> 0 | AI33: A | AS33: 3 | AZ33: 時間 | BE33: 3 | BI33: 20 | BL33: 時間
X34: =SUM(L34:W35) -> 0 | AI34: B | AS34: 4 | AZ34: 時間 | BE34: 4 | BI34: 20 | BL34: 時間
AG35: 0 | AS35: 5 | AZ35: 時間 | BE35: 5 | BL35: 時間
L36: 0 | N36: 0 | P36: 0 | R36: 0 | T36: 0 | V36: 0 | X36: =SUM(L36:W36) -> 0 | Z36: =ROUNDDOWN(L37/3,1)+IF(BR15=TRUE,ROUNDDOWN(N37/6,1),ROUNDDOWN(N37/5,1))+ROUNDDOWN(P37/6,1)+IF(BR19=TRUE,ROUNDDOWN(R37/20,1),ROUNDDOWN(R37/15,1))+IF(BR21=TRUE,ROUNDDOWN((T37+V37)/30,1),ROUNDDOWN((T37+V37)/25,1)) -> 0 | AC36: =IF(ISERROR(AF36+AG38),"",ROUNDDOWN(AF36+AG38,1)) -> 0 | AI36: A | AS36: 6 | AZ36: 時間 | BE36: 6 | BL36: 時間
X37: =SUM(L37:W38) -> 0 | AI37: B | AS37: 7 | AZ37: 時間 | BE37: 7 | BL37: 時間
AG38: 0 | AS38: 8 | AZ38: 時間 | BE38: 8 | BL38: 時間
L39: 0 | N39: 0 | P39: 0 | R39: 0 | T39: 0 | V39: 0 | X39: =SUM(L39:W39) -> 0 | Z39: =ROUNDDOWN(L40/3,1)+IF(BR18=TRUE,ROUNDDOWN(N40/6,1),ROUNDDOWN(N40/5,1))+ROUNDDOWN(P40/6,1)+IF(BR22=TRUE,ROUNDDOWN(R40/20,1),ROUNDDOWN(R40/15,1))+IF(BR24=TRUE,ROUNDDOWN((T40+V40)/30,1),ROUNDDOWN((T40+V40)/25,1)) -> 0 | AC39: =IF(ISERROR(AF39+AG41),"",ROUNDDOWN(AF39+AG41,1)) -> 0 | AI39: A | AS39: 9 | AZ39: 時間 | BE39: 9 | BL39: 時間
X40: =SUM(L40:W41) -> 0 | AI40: B | AS40: 10 | AZ40: 時間 | BE40: 10 | BL40: 時間
AG41: 0 | AS41: 11 | AZ41: 時間 | BE41: 11 | BL41: 時間
L42: 0 | N42: 0 | P42: 0 | R42: 0 | T42: 0 | V42: 0 | X42: =SUM(L42:W42) -> 0 | Z42: =ROUNDDOWN(L43/3,1)+IF(BR21=TRUE,ROUNDDOWN(N43/6,1),ROUNDDOWN(N43/5,1))+ROUNDDOWN(P43/6,1)+IF(BR25=TRUE,ROUNDDOWN(R43/20,1),ROUNDDOWN(R43/15,1))+IF(BR27=TRUE,ROUNDDOWN((T43+V43)/30,1),ROUNDDOWN((T43+V43)/25,1)) -> 0 | AC42: =IF(ISERROR(AF42+AG44),"",ROUNDDOWN(AF42+AG44,1)) -> 0 | AI42: A | AS42: 12 | AZ42: 時間 | BE42: 12 | BL42: 時間
X43: =SUM(L43:W44) -> 0 | AI43: B | AS43: 13 | AZ43: 時間 | BE43: 13 | BL43: 時間
AG44: 0 | AS44: 14 | AZ44: 時間 | BE44: 14 | BL44: 時間
L45: 0 | N45: 0 | P45: 0 | R45: 0 | T45: 0 | V45: 0 | X45: =SUM(L45:W45) -> 0 | Z45: =ROUNDDOWN(L46/3,1)+IF(BR24=TRUE,ROUNDDOWN(N46/6,1),ROUNDDOWN(N46/5,1))+ROUNDDOWN(P46/6,1)+IF(BR28=TRUE,ROUNDDOWN(R46/20,1),ROUNDDOWN(R46/15,1))+IF(BR30=TRUE,ROUNDDOWN((T46+V46)/30,1),ROUNDDOWN((T46+V46)/25,1)) -> 0 | AC45: =IF(ISERROR(AF45+AG47),"",ROUNDDOWN(AF45+AG47,1)) -> 0 | AI45: A | AS45: 15 | AZ45: 時間 | BE45: 15 | BL45: 時間
X46: =SUM(L46:W47) -> 0 | AI46: B | AS46: 【参考通知】（印刷不用）
AG47: 0 | AS47: 「保育所等における短時間勤務の保育士の取扱いについて」(R3.3.19 子発0319第1号)
D48: 計 | I48: =IF(SUM(I27:K47)=0,"",SUM(I27:K47)) ->  | L48: =SUM(L27,L30,L33,L36,L39,L42,L45) -> 0 | N48: =SUM(N27,N30,N33,N36,N39,N42,N45) -> 0 | P48: =SUM(P27,P30,P33,P36,P39,P42,P45) -> 0 | R48: =SUM(R27,R30,R33,R36,R39,R42,R45) -> 0 | T48: =SUM(T27,T30,T33,T36,T39,T42,T45) -> 0 | V48: =SUM(V27,V30,V33,V36,V39,V42,V45) -> 0 | X48: =SUM(X27,X30,X33,X36,X39,X42,X45) -> 0 | Z48: =ROUND(SUM(Z27:AB47),0) -> 0 | AC48: =ROUND(SUM(AC27:AE47),0) -> 0 | AG48: =SUM(AG27,AG30,AG33,AG36,AG39,AG42,AG45) -> 0 | AS48: ① | AT48: 常勤の保育士が各組・各グループに１名以上（乳児を含む各組・各グループであって当該組・グループに係る最低基準上の保育士定数が２名以上の場合は、１名以上ではなく２名以上）配置されていること。 ただし、令和２年度以降の各年４月１日時点のいずれかの待機児童数が１人以上であり、かつ、その要因が管内の保育所等において空き定員があるにもかかわらず、常勤の保育祖の確保が困難であることにより、当該保育所等の利用を希望する子どもを受け入れることが出来ないためと判断している市町村（特別区を含む。以下同じ。）において、待機児童解消のため当該市町村がやむを得ないと認める場合に限り、当該子どもを受け入れるのに不足する常勤の保育士のの限りにおいて、1名の常勤の保育士に代えて２名の短時間勤務の保育士を充てても差し支えないものであること。その際当該市町村においては、上記の判断に当たり管内の保育関係者と認識の共有を図るとともに、当該保育所等において、適切に常勤の保育士の募集等常勤の保育士を確保するため取組を行っているか確認すること。常勤の保育士の募集を適切に実施しているかを確認する際には、例えば、当該保育所等に勤務する常勤の保育士よりも著しく低い処遇水準での募集が行われていないことや、ハローワークや職業紹介事業者等を通じて広く求人活動を一定期間行っていることその他適切な方法により募集を行っていることを確認することが考えられること。なお、常勤の保育士が各組・各グループに１名以上（乳児を含む各組・各グループであって当該組・グループに係る最低基準上の保育士定数が２名以上の場合は、１名以上でなはく２名以上）配置されていることが原則であり、望ましいことに変わりはないため、常勤の保育士の確保が可能となった場合は、各組・グループに１名以上常勤の保育士を配置し、上記のただし書きの取扱いについては、早期に解消を図り、当該業務に当たっていた短時間勤務の保育士の業務内容の見直しを行うこと。
L49: =SUM(L28,L31,L34,L37,L40,L43,L46) -> 0 | N49: 0 | P49: 0 | R49: 0 | T49: 0 | V49: 0 | X49: 0
AG50: 0
D51: フリー保育士 | AC51: =IF(ISERROR(AF51+AG53),"",ROUNDDOWN(AF51+AG53,1)) -> 0 | AI51: A
AI52: B
AG53: 0
D54: 子育て支援員等 | AC54: =IF(ISERROR(AF54+AG56),"",ROUNDDOWN(AF54+AG56,1)) -> 0 | AI54: A
AI55: B
AG56: 0
D57: ＜記入要領＞ | O57: ※「基準配置保育士」は、前頁４（2）の表とは必ずしも一致しない。
D58: (ｱ) | F58: 「児童数」欄の児童年齢は本年度初日の前日（3月31日）現在年齢。障害児数を（ ）に再掲すること。
D59: (ｲ) | F59: 「保育士数」「担任保育士氏名（加配含む）」のA：常勤、B：短時間 ※正規・非正規を問わず
F60: 「常勤保育士」とは、以下に該当する者をいい、「短時間勤務の保育士」とは次のいずれにも該当しないものをいう。
F61: ① 当該保育所等の就業規則において定められている常勤の従業者が勤務すべき時間数（１か月に勤務すべき時間数が
G62: 120時間以上であるものに限る。）に達している者。 | AS62: ② | AT62: 常勤保育士に代えて短時間勤務保育士を充てる場合の勤務時間数が、常勤保育士を充てる場合の勤務時間数を上回ること。
F63: ② ①以外の者であって、１日６時間以上かつ月20日以上勤務するもの。
D64: (ｳ) | F64: 「保育士数」と「担任保育士氏名」は、A～Cごとに一致させること。フリー保育士は最下段に記入すること。 | AT64: 保育所等におけるスポットワーク（いわゆるスキマバイト）により採用された保育士の取扱いについて（通知）
D65: (ｴ) | F65: 子育て支援員等は、各クラスの担任保育士には含めないこと。 | AT65: こ成保第131号 令和7年2月14日
D66: (ｵ) | F66: 担任保育士氏名を記入するB欄の氏名の後に( )書きで週平均労働時間を記入すること。 | AT66: https://www.cfa.go.jp/assets/contents/node/basic_page/field_ref_resources/e4b817c9-5282-4ccc-b0d5-ce15d7b5018c/4bd444ad/20250225_policies_hoiku_134.pdf
D67: (ｶ) | F67: 定数上の保育士の取扱いに関しては、こどもを長時間にわたり保育できる常勤保育士であることが原則であり、望ましいこととされていることを踏まえると、スポットワーク（いわゆるスキマバイト）により採用された保育士を最低基準上の保育士定数の一部に充てることは望ましくない。
AH68: ・ | AI68: 「保育所等におけるスポットワーク（いわゆるスキマバイト）により採用された保育士の取扱いについて（通知）」(R7.2.14こ成保発第131号)
C70: ② 各クラスには常勤保育士(A)を各1名以上配置しているか。 | AS70: ※公定価格に関するFAQ Ver.26 No.218 公定価格における配置基準や加算算定上の定数の一部に短時間勤務（常勤（各施設・事業所の就業規則において定められている常勤の従業者が勤務すべき時間数に達している者）以外の者。）の教育・保育従事者を充てることができます。なお、設備運営基準等において、学級担任は原則常勤専任であることとされています。 ※公定価格に関するFAQ Ver.26 No.219 公定価格における配置基準や加算算定上の定数の一部に短時間勤務（常勤（各施設・事業所の就業規則において定められている常勤の従業者が勤務すべき時間数に達している者）以外の者。）の教育・保育従事者を充てることができます。なお、「保育所等における常勤保育士及び短時間保育士の定義について」（令和５年４月21日付こ成保２１）において、短時間勤務の保育士を充てる場合の取扱いを示しています。 ※公定価格に関するFAQ Ver.26 No.220 当該通知は、最低基準上の保育士定数に充てられる常勤の保育士及び短時間勤務の保育士について、改めて定義を示したものです。 他方で、公定価格の取り扱いについては、留意事項通知で示しているところであり、各施設・事業所の就業規則等で定めた常勤職員の１か月の勤務時間数に達しない者について、常勤換算を行うこととしています。 この取り扱いについては、今般の通知による変更は無く、従前のとおり、以下の算式により常勤職員数に換算することとします。 ＜常勤換算値を算出するための算式＞ 常勤以外の職員の1か月の勤務時間数の合計 ÷ 各施設・事業所の就業規則等で定めた常勤職員の１か月の勤務時間数 ＝ 常勤換算値(小数点以下の端数処理を行わ ない)
C72: ③ 0歳児クラスで基準保育士数が2名以上の場合、常勤保育士(A)を2名以上配置 | AH72: ・ | AI72: 「保育所等における常勤保育士及び短時間保育士の定義について（通知）」 (R5.4.21こ成保発第21号)
D73: しているか。

Sheet No6
B2: －保育所運営No.６（分園）－ | AN2: 目次に戻る
B4: 施設運営管理関係 | AC4: 特記事項
C5: (5) 調理員の配置について | AB5: （調理員） | AO5: ＜分園設置の保育所の記入方法＞ 中心園のみで記入する設問・・・(5) 中心園、分園それぞれで記入する設問 ・・・５ (1)～(2)
C6: ① 必要職員数を満たしているか。 | AB6: ・ | AC6: 利用定員40人以下の施設は１人、41人以上150人以下の施設は2人、151人以上の施設は3人（うち１人は非常勤）
C8: ② 委託費の栄養管理加算を受けているか。
D10: 〈いる場合〉 | H10: 栄養士の雇用形態
B14: ５ 施設運営管理の状況 | AB14: ・ | AC14: 委託費の栄養管理加算を受ける場合は、栄養士の配置が必要。
C15: (1) 入所児童等の内訳を記入すること。
C17: ①前年度分 | H17: 4月1日現在利用定員： | Q17: 人、変更後利用定員： | Z17: 人（ | AC17: 月 | AE17: 日変更）
E19: ０歳児 | I19: １歳児 | M19: ２歳児 | Q19: ３歳児 | U19: ４歳児 | Y19: ５歳児 | AC19: 児童数 | AG19: 合計
E20: 入 | G20: 一 | I20: 入 | K20: 一 | M20: 入 | O20: 一 | Q20: 入 | S20: 一 | U20: 入 | W20: 一 | Y20: 入 | AA20: 一 | AC20: 入 | AE20: 一
C21: 4 | AC21: =SUM(E21,I21,M21,Q21,U21,Y21) -> 0 | AE21: =SUM(G21,K21,O21,S21,W21,AA21) -> 0 | AG21: =SUM(AC21:AF21) -> 0
C22: 5 | AC22: 0 | AE22: 0 | AG22: 0
C23: 6 | AC23: 0 | AE23: 0 | AG23: 0
C24: 7 | AC24: 0 | AE24: 0 | AG24: 0
C25: 8 | AC25: 0 | AE25: 0 | AG25: 0
C26: 9 | AC26: 0 | AE26: 0 | AG26: 0
C27: 10 | AC27: 0 | AE27: 0 | AG27: 0
C28: 11 | AC28: 0 | AE28: 0 | AG28: 0
C29: 12 | AC29: 0 | AE29: 0 | AG29: 0
C30: 1 | AC30: 0 | AE30: 0 | AG30: 0
C31: 2 | AC31: 0 | AE31: 0 | AG31: 0
C32: 3 | AC32: 0 | AE32: 0 | AG32: 0
C33: 前年 度計 | E33: =SUM(E21:F32) -> 0 | G33: =SUM(G21:H32) -> 0 | I33: =SUM(I21:J32) -> 0 | K33: =SUM(K21:L32) -> 0 | M33: =SUM(M21:N32) -> 0 | O33: =SUM(O21:P32) -> 0 | Q33: =SUM(Q21:R32) -> 0 | S33: =SUM(S21:T32) -> 0 | U33: =SUM(U21:V32) -> 0 | W33: =SUM(W21:X32) -> 0 | Y33: =SUM(Y21:Z32) -> 0 | AA33: =SUM(AA21:AB32) -> 0 | AC33: (A) | AE33: =SUM(AE21:AF32) -> 0 | AG33: =AC34+AE33 -> 0
AC34: =SUM(AC21:AD32) -> 0
C35: ＜記入方法＞ | G35: ・ | H35: 入 ： 児童福祉法第24条による委託児童数 一 ： 一時預かり事業及び特定保育の児童数（自主事業を含む）
G36: ・ | H36: 入所児童数については、毎月初日の在籍児童数を記入すること。
G37: ・ | H37: 一時預かり児童等の数については、当該月の一日平均の利用児童数を記入すること。
C39: ②前年度入所率は利用定員の範囲内か。
E40: （Ａ）÷（利用定員×月数）×100＝ | T40: ％ | V40: →
C42: ③本年度分 | G42: (ｱ) | H42: 4月1日現在利用定員： | Q42: 人、変更後利用定員： | Z42: 人（ | AC42: 月 | AE42: 日変更）
E44: ０歳児 | I44: １歳児 | M44: ２歳児 | Q44: ３歳児 | U44: ４歳児 | Y44: ５歳児 | AC44: 児童数 | AG44: 合計
E45: 入 | G45: 一 | I45: 入 | K45: 一 | M45: 入 | O45: 一 | Q45: 入 | S45: 一 | U45: 入 | W45: 一 | Y45: 入 | AA45: 一 | AC45: 入 | AE45: 一
C46: 4 | AC46: =SUM(E46,I46,M46,Q46,U46,Y46) -> 0 | AE46: =SUM(G46,K46,O46,S46,W46,AA46) -> 0 | AG46: =SUM(AC46:AF46) -> 0
C47: 5 | AC47: =SUM(E47,I47,M47,Q47,U47,Y47) -> 0 | AE47: 0 | AG47: 0
C48: 6 | AC48: 0 | AE48: =SUM(G48,K48,O48,S48,W48,AA48) -> 0 | AG48: =SUM(AC48:AF48) -> 0
C49: 7 | AC49: 0 | AE49: 0 | AG49: 0
C50: 8 | AC50: 0 | AE50: 0 | AG50: 0
C51: 9 | AC51: 0 | AE51: 0 | AG51: 0
C52: 10 | AC52: 0 | AE52: 0 | AG52: 0
C53: 11 | AC53: 0 | AE53: 0 | AG53: 0
C54: 12 | AC54: 0 | AE54: 0 | AG54: 0
C55: 1 | AC55: 0 | AE55: 0 | AG55: 0
C56: 2 | AC56: 0 | AE56: 0 | AG56: 0
C57: 3 | AC57: 0 | AE57: 0 | AG57: 0
C58: 本年度計 | E58: =SUM(E46:F57) -> 0 | G58: =SUM(G46:H57) -> 0 | I58: =SUM(I46:J57) -> 0 | K58: =SUM(K46:L57) -> 0 | M58: =SUM(M46:N57) -> 0 | O58: =SUM(O46:P57) -> 0 | Q58: =SUM(Q46:R57) -> 0 | S58: =SUM(S46:T57) -> 0 | U58: =SUM(U46:V57) -> 0 | W58: =SUM(W46:X57) -> 0 | Y58: =SUM(Y46:Z57) -> 0 | AA58: =SUM(AA46:AB57) -> 0 | AC58: (B) | AE58: =SUM(AE46:AF57) -> 0 | AG58: =AC59+AE58 -> 0
AC59: =SUM(AC46:AD57) -> 0
C60: ＜記入方法＞ | G60: ・ | H60: 入 ： 児童福祉法第24条による委託児童数 一 ： 一時預かり事業の児童数（自主事業を含む）
G61: ・ | H61: 入所児童数については、毎月初日の在籍児童数を監査調書提出月まで記入すること。
G62: ・ | H62: 一時預かり事業の児童数は、当該月の一日平均の利用児童数を監査調書提出月まで記入すること。
C64: ④入所率について
D65: (ｱ) 入所率は利用定員の範囲内か。
E66: （B）÷（利用定員×月数）×100＝ | S66: ％ | U66: →
C68: (2) 定員を超えて入所している場合、設備運営基準(面積・保育士
D69: 配置)を満たしているか。 | AB69: ・ | AC69: 「保育所への入所の円滑化について」 ( H10.2.13 児保第3号) | AP69: ＜分園設置の保育所の記入方法＞
C71: (3) 過去２年間の利用定員の入所率について（中心園と分園の合算利用定員） | AB71: (参考) | AP71: 中心園のみで記入する設問・・・(3)､(4)
AC72: 「特定教育・保育等に要する費用の額の算定に関する基準等の実施上の留意事項について」平成28年8月23日府子本第571号28文科初第727号雇児発0823第1号_別紙２_Ｖ(乗除調整部分)
C73: ・ | D73: 前々年度 | G73: （ | K73: ％ | L73: ） | M73: ・ | N73: 前年度 | Q73: （ | U73: ％ | V73: ）
C75: (4) (3)で過去２年間の入所率が各年度120%超過入所している場合、市町村
D76: 保育事業課と利用定員等の見直しを調整しているか。

Sheet No7
B2: －保育所運営No.７（分園）－ | AP2: 目次に戻る
B4: 施設運営管理関係 | AD4: 特 記 事 項
C5: (5) 私的契約児の保育を行っているか。 | AD5: ※ | AE5: 定員超過の範囲 | AQ5: ＜分園設置の保育所の記入方法＞ 中心園、分園それぞれで記入する設問 ・・・(5)～(8)
AD6: ・ | AE6: 施設の設備、職員数が定員を超えて入所した児童数に照らし、設備運営基準等をみたしていること。ただし、私的契約児の受け入れは、定員の範囲内であること。
D8: ・「いる」場合、利用定員の範囲内で受け入れているか。
C11: (6) 本年度の開所時間
D12: 区分 | M12: 平 日 | V12: 土 曜 日 | AE12: 日曜日・祝日等
D13: 開所時間 | O13: ： | Q13: ～ | S13: ： | X13: ： | Z13: ～ | AB13: ： | AG13: ： | AI13: ～ | AK13: ：
D15: 【標準時間認定】
D16: 利用可能時間範囲 | O16: ： | Q16: ～ | S16: ： | X16: ： | Z16: ～ | AB16: ： | AG16: ： | AI16: ～ | AK16: ：
D17: 延長保育 | J17: 早朝 | O17: ： | Q17: ～ | S17: ： | X17: ： | Z17: ～ | AB17: ： | AG17: ： | AI17: ～ | AK17: ：
J18: 夕方 | O18: ： | Q18: ～ | S18: ： | X18: ： | Z18: ～ | AB18: ： | AG18: ： | AI18: ～ | AK18: ：
D20: 【短時間認定】
D21: 利用可能時間範囲 | O21: ： | Q21: ～ | S21: ： | X21: ： | Z21: ～ | AB21: ： | AG21: ： | AI21: ～ | AK21: ：
O22: ： | Q22: ～ | S22: ： | X22: ： | Z22: ～ | AB22: ： | AG22: ： | AI22: ～ | AK22: ：
D23: 延長保育 | J23: 早朝 | O23: ： | Q23: ～ | S23: ： | X23: ： | Z23: ～ | AB23: ： | AG23: ： | AI23: ～ | AK23: ：
O24: ： | Q24: ～ | S24: ： | X24: ： | Z24: ～ | AB24: ： | AG24: ： | AI24: ～ | AK24: ：
J25: 夕方 | O25: ： | Q25: ～ | S25: ： | X25: ： | Z25: ～ | AB25: ： | AG25: ： | AI25: ～ | AK25: ：
O26: ： | Q26: ～ | S26: ： | X26: ： | Z26: ～ | AB26: ： | AG26: ： | AI26: ～ | AK26: ：
C28: (7) 時間帯による児童・保育士の状況
D29: 児童・保育士の状況 | M29: 時間帯における在籍児童数（年齢別） | AB29: 保育士等
D30: 保育時間帯 | M30: 0歳 | O30: 1歳 | Q30: 2歳 | S30: 3歳 | U30: 4歳 | W30: 5歳 | Y30: 計 | AB30: 実配置保育士数 | AH30: 基準配置保育士数 | AT30: =IF(AR31=0,"",ROUNDDOWN(AF31/3,1)+ROUNDDOWN((AH31+AJ31)/6,1)+ROUNDDOWN(AL31/20,1)+ROUNDDOWN((AN31+AP31)/30,1)) -> 
D31: ①平日 | E31: 開所時間前 | Y31: =SUM(M31:X31) -> 0 | AE31: 0 | AH31: =IF(IF(Y31=0,"",ROUNDDOWN(M31/3,1)+ROUNDDOWN((O31+Q31)/6,1)+ROUNDDOWN(S31/20,1)+ROUNDDOWN((U31+W31)/30,1))<2,2,IF(Y31=0,"",ROUNDDOWN(M31/3,1)+ROUNDDOWN((O31+Q31)/6,1)+ROUNDDOWN(S31/20,1)+ROUNDDOWN((U31+W31)/30,1))) -> 
E32: 開所時間 | I32: ～ | J32: 08:00:00 | Y32: =SUM(M32:X32) -> 0 | AE32: 0 | AH32: =IF(IF(Y32=0,"",ROUNDDOWN(M32/3,1)+ROUNDDOWN((O32+Q32)/6,1)+ROUNDDOWN(S32/20,1)+ROUNDDOWN((U32+W32)/30,1))<2,2,IF(Y32=0,"",ROUNDDOWN(M32/3,1)+ROUNDDOWN((O32+Q32)/6,1)+ROUNDDOWN(S32/20,1)+ROUNDDOWN((U32+W32)/30,1))) -> 
G33: 08:00:00 | I33: ～ | J33: 09:00:00 | Y33: 0 | AE33: 0
G34: 09:00:00 | I34: ～ | J34: 12:00:00 | Y34: 0 | AE34: 0
G35: 12:00:00 | I35: ～ | J35: 14:00:00 | Y35: 0 | AE35: 0
G36: 14:00:00 | I36: ～ | J36: 16:00:00 | Y36: 0 | AE36: 0
G37: 16:00:00 | I37: ～ | J37: 17:00:00 | Y37: 0 | AE37: 0 | AQ37: 「児童福祉施設の設備と運営基準」第96条 第94条の事情に鑑み、当分の間、一日につき八時間を超えて開所する保育所において、開所時間を通じて必要となる保育士の総数が、当該保育所に係る利用定員の総数に応じて置かなければならない保育士の数を超えるときは、第33条第二項に規定する保育士の数の算定については、都道府県知事（指定都市にあつては当該指定都市の市長とし、中核市にあつては当該中核市の市長とする。）が保育士と同等の知識及び経験を有すると認める者(那覇市は子育て支援員）を開所時間を通じて必要となる保育士の総数から利用定員の総数に応じて置かなければならない保育士の数を差し引いて得た数の範囲で、保育士とみなすことができる。
G38: 17:00:00 | I38: ～ | J38: 18:00:00 | Y38: 0 | AE38: 0
G39: 18:00:00 | I39: ～ | J39: 19:00:00 | Y39: =SUM(M39:X39) -> 0 | AE39: 0 | AH39: =IF(IF(Y39=0,"",ROUNDDOWN(M39/3,1)+ROUNDDOWN((O39+Q39)/6,1)+ROUNDDOWN(S39/20,1)+ROUNDDOWN((U39+W39)/30,1))<2,2,IF(Y39=0,"",ROUNDDOWN(M39/3,1)+ROUNDDOWN((O39+Q39)/6,1)+ROUNDDOWN(S39/20,1)+ROUNDDOWN((U39+W39)/30,1))) -> 
G40: 19:00:00 | I40: ～ | J40: 閉所 | Y40: =SUM(M40:X40) -> 0 | AE40: 0
E41: 夜間 | G41: 19:00:00 | I41: ～ | J41: 22:00:00 | Y41: 0 | AE41: 0
E42: 保育 | G42: 22:00:00 | I42: ～ | J42: 06:00:00 | Y42: 0 | AE42: 0
D43: ②土曜日 | E43: 開所時間前 | Y43: 0 | AE43: 0
E44: 開所時間 | I44: ～ | J44: 08:00:00 | Y44: 0 | AE44: 0
G45: 08:00:00 | I45: ～ | J45: 09:00:00 | Y45: 0 | AE45: 0
G46: 09:00:00 | I46: ～ | J46: 12:00:00 | Y46: 0 | AE46: 0
G47: 12:00:00 | I47: ～ | J47: 13:00:00 | Y47: 0 | AE47: 0
G48: 13:00:00 | I48: ～ | J48: 16:00:00 | Y48: 0 | AE48: 0
G49: 16:00:00 | I49: ～ | J49: 17:00:00 | Y49: 0 | AE49: 0
G50: 17:00:00 | I50: ～ | J50: 18:00:00 | Y50: 0 | AE50: 0
G51: 18:00:00 | I51: ～ | J51: 19:00:00 | Y51: =SUM(M51:X51) -> 0 | AE51: 0
G52: 19:00:00 | I52: ～ | J52: 閉所 | Y52: 0 | AE52: 0
E53: 夜間 | G53: 19:00:00 | I53: ～ | J53: 22:00:00 | Y53: 0 | AE53: 0 | AH53: =IF(IF(Y53=0,"",ROUNDDOWN(M53/3,1)+ROUNDDOWN((O53+Q53)/6,1)+ROUNDDOWN(S53/20,1)+ROUNDDOWN((U53+W53)/30,1))<2,2,IF(Y53=0,"",ROUNDDOWN(M53/3,1)+ROUNDDOWN((O53+Q53)/6,1)+ROUNDDOWN(S53/20,1)+ROUNDDOWN((U53+W53)/30,1))) -> 
E54: 保育 | G54: 22:00:00 | I54: ～ | J54: 06:00:00 | Y54: =SUM(M54:X54) -> 0 | AE54: 0 | AH54: =IF(IF(Y54=0,"",ROUNDDOWN(M54/3,1)+ROUNDDOWN((O54+Q54)/6,1)+ROUNDDOWN(S54/20,1)+ROUNDDOWN((U54+W54)/30,1))<2,2,IF(Y54=0,"",ROUNDDOWN(M54/3,1)+ROUNDDOWN((O54+Q54)/6,1)+ROUNDDOWN(S54/20,1)+ROUNDDOWN((U54+W54)/30,1))) -> 
D55: ＜記入方法＞
D56: ・ | E56: 時間帯による児童数は、監査調書提出月前月の平均児童数（標準時間認定・ | AE56: 「児童福祉施設の設備と運営基準]第33条1項、2項
E57: 短時間認定を区別しない）を記入すること。 | AD57: ・
D58: ・ | E58: 実配置保育士数欄の( )には、みなし保育士(看護師、幼稚園教諭、小学校教諭、 | AE58: 当該保育士の数は、保育所１につき２人を下回ることはできない。
E59: 養護教諭、子育て支援員等)を再掲すること。
C60: (8) 土曜日閉園（半日閉園を含む）を行っているか。
D61: ・ | E61: 土曜日閉園をしている場合、該当するものにチェックすること。 | AD61: ※ | AE61: 保育所の休園は、日曜、祝日及び年末年始以外は、原則認められない。

Sheet No12
B2: －保育所運営No.１２（分園）－ | AY2: 目次に戻る
B3: 別表 職員の勤務割り振り表 （監査調書提出月の勤務割り振り表を記入すること。）※既存資料の添付でも可 | AF3: （監査調書提出月： | AN3: 月初日現在）
G4: ※既存資料を添付する場合は、職名、各記号にあった勤務時間及び実働時間がわかる資料を合わせて提供すること。
B5: 氏 名 | G5: 職 名 | K5: 日 | L5: 1 | M5: 2 | N5: 3 | O5: 4 | P5: 5 | Q5: 6 | R5: 7 | S5: 8 | T5: 9 | U5: 10 | V5: 11 | W5: 12 | X5: 13 | Y5: 14 | Z5: 15 | AA5: 16 | AB5: 17 | AC5: 18 | AD5: 19 | AE5: 20 | AF5: 21 | AG5: 22 | AH5: 23 | AI5: 24 | AJ5: 25 | AK5: 26 | AL5: 27 | AM5: 28 | AN5: 29 | AO5: 30 | AP5: 31 | AQ5: 実働時間 | AZ5: （印刷不要）
K6: 曜日 | AZ6: 沖縄県児童福祉施設の設備及び運営に関する基準を定める条例施行規則附則
G7: 施設長 | AZ7: （保育所の職員配置に係る特例）
G8: 保育士 | AZ8: 第８項 保育の需要に応ずるに足りる保育所、認定こども園（子ども・子育て支援法（平成24年法律
G9: 〃 | BB9: 第65号）第27条第１項の確認を受けたものに限る。）又は家庭的保育事業等が不足していることに
G10: 〃 | BB10: 鑑み、当分の間、第16条ただし書の規定を適用しないことができる。この場合において、同条本文
G11: 〃 | BB11: の規定により必要な保育士が１人となる時は、当該保育士に加えて、知事が保育士と同等の知識及
G12: 〃 | BB12: び経験を有すると認める者を置かなければならない。
G13: 〃 | AZ13: 第９項 前項の事情に鑑み、当分の間、第16条に規定する保育士の数の算定については、次の各号のいず
G14: 〃 | BB14: れかに該当する場合に限り、当該各号に規定する者を、保育士とみなすことができる。
G15: 〃 | BB15: (１) 幼稚園教諭の普通免許状（教育職員免許法（昭和24年法律第147号）第４条第２項に規定する
BC16: 普通免許状をいう。次号及び第３号において同じ。）を有する者が満３歳以上の幼児の保育に
BC17: 従事する場合
BB18: (２) 小学校教諭の普通免許状を有する者が保育士とともに満３歳以上満５歳に満たない幼児の
BC19: 保育に従事する場合又は満５歳以上の幼児の保育に従事する場合
BB20: (３) 養護教諭の普通免許状を有する者が保育士とともに満３歳以上の幼児の保育に従事する場合
G26: 子育て支援員
G27: 子育て支援員
G30: 調理員
G31: 〃
G32: 事務員
C35: 記号 | F35: 勤務形態 | M35: 時 間 帯 | Z35: 実働時間 | AI35: ＜分園設置の保育所の記入方法＞ 中心園、分園それぞれ別葉で作成して下さい。※既存資料の添付でも可。 ただし、勤務形態（ローテーション）がわかるものであること。）
C36: ・ | D36: Ａ | F36: （ | G36: 平常 | J36: ） | K36: 勤務 | M36: 午前 | P36: 時 | R36: 分 | S36: ～ | T36: 午後 | W36: 時 | Y36: 分 | Z36: 実働 | AB36: （ | AE36: ） | AF36: 時間
C37: ・ | D37: Ｂ | F37: （ | J37: ） | K37: 勤務 | M37: 午前 | P37: 時 | R37: 分 | S37: ～ | T37: 午後 | W37: 時 | Y37: 分 | Z37: 実働 | AB37: （ | AE37: ） | AF37: 時間
C38: ・ | D38: Ｃ | F38: （ | J38: ） | K38: 勤務 | M38: 午前 | P38: 時 | R38: 分 | S38: ～ | T38: 午後 | W38: 時 | Y38: 分 | Z38: 実働 | AB38: （ | AE38: ） | AF38: 時間
C39: ・ | D39: Ｄ | F39: （ | J39: ） | K39: 勤務 | M39: 午前 | P39: 時 | R39: 分 | S39: ～ | T39: 午後 | W39: 時 | Y39: 分 | Z39: 実働 | AB39: （ | AE39: ） | AF39: 時間
C40: ・ | D40: Ｅ | F40: （ | J40: ） | K40: 勤務 | M40: 午前 | P40: 時 | R40: 分 | S40: ～ | T40: 午後 | W40: 時 | Y40: 分 | Z40: 実働 | AB40: （ | AE40: ） | AF40: 時間
C41: ・ | D41: Ｆ | F41: （ | J41: ） | K41: 勤務 | M41: 午前 | P41: 時 | R41: 分 | S41: ～ | T41: 午後 | W41: 時 | Y41: 分 | Z41: 実働 | AB41: （ | AE41: ） | AF41: 時間
D42: ～
D44: ※記入要領 勤務形態（Ａ～ ）を上記の表に記入すること。

Sheet No14
B2: －保育所運営No.１４（分園）－ | BU2: 目次に戻る
B4: 別表１ 正規職員：保育士の勤務状況及び給与支給状況 | BC4: （監査調書提出月： | BL4: 月初日現在）
A6: 数式があります → 削 除 厳 禁 → | B6: 番号 | C6: 分園 ・ その他の事業 | F6: 職名 | J6: 氏 名 | O6: 年齢 | P6: 保育士資格の登録 | Q6: 最終 学歴 | T6: 経 験 年 数 | AC6: 給 与 状 況 （本年度監査調書提出月分） | BF6: 前年度 有給休暇 | BI6: 退職共済加入 | BJ6: 備考
T8: 現施設経験 | Y8: その他の施設の経験年数B | AA8: 計 A＋B | AC8: 本 俸 （円） | AK8: 諸手当 D (円) | BC8: 合計 | BF8: 取得 日数 | BJ8: 親族関係、雇用形態変更時期、職種変更時期、代替職員、兼務の状況、派遣職員、法人内異動等
T9: 採 用(異 動) 年月日 | W9: 勤 続 年数A | AC9: 前年度 | AG9: 本年度 C | AK9: 給与改善 | AN9: 処遇改善Ⅰ | AQ9: 管理職 | AT9: 扶養 | AW9: 時間外 | AZ9: 小計
F10: 雇用 形態 | H10: 週平均 労働時間 | J10: 担当クラス | AG10: 直近月 | AK10: 特殊業務 | AN10: 処遇改善Ⅱ | AQ10: 主任加算 | AT10: 住居 | AW10: 市町村補助 | BF10: 所定 日数
AC11: （ | AD11: 格付 | AF11: ） | AG11: （ | AH11: 格付 | AJ11: ） | AN11: 処遇改善Ⅲ | AQ11: 役職加算 | AT11: 通勤 | AW11: その他 | BC11: (C+D)
B12: 0 | C12: 分園 | F12: 主任保育士 | J12: 例示 | O12: 34 | P12: 有 | Q12: 短大 | T12: H18 | W12: 7 | X12: 年 | Y12: 3 | Z12: 年 | AA12: 11 | AB12: 年 | AC12: 例示 | AK12: 7380 | AN12: 10000 | AT12: 6000 | AZ12: =SUM(AK12:AY14) -> 104080 | BC12: =AG13+AZ12 -> 288580 | BF12: 2 | BI12: ◯ | BJ12: 理事長の長女
J13: 保育 薫 | AC13: 182000 | AG13: 184500 | AK13: 9200 | AN13: 39000 | AQ13: 15000 | AT13: 10000 | AW13: 3000 | BJ13: H24/4/1職種変更 | BV13: コメント
J14: うさぎ組 | T14: 2025-04-01 | W14: 6 | X14: 月 | Y14: 10 | Z14: 月 | AA14: 4 | AB14: 月 | AC14: （ | AD14: 2-11 | AF14: ） | AG14: （ | AH14: 2-12 | AJ14: ） | AT14: 4500 | BF14: 20 | BV14: 繰り越し分含む
A15: =IF(F15="","","○") ->  | B15: 1 | X15: 年 | Z15: 年 | AB15: 年 | AZ15: =SUM(AK15:AY17) -> 0 | BC15: =IF(AG15+AZ15=0,"",AG15+AZ15) -> 
X17: 月 | Z17: 月 | AB17: 月 | AC17: （ | AF17: ） | AG17: （ | AJ17: ）
A18: =IF(F18="","","○") ->  | B18: 2 | X18: 年 | Z18: 年 | AB18: 年 | AZ18: =SUM(AK18:AY20) -> 0 | BC18: =IF(AG18+AZ18=0,"",AG18+AZ18) -> 
X20: 月 | Z20: 月 | AB20: 月 | AC20: （ | AF20: ） | AJ20: ）
A21: =IF(F21="","","○") ->  | B21: 3 | X21: 年 | Z21: 年 | AB21: 年 | AZ21: =SUM(AK21:AY23) -> 0 | BC21: =IF(AG21+AZ21=0,"",AG21+AZ21) -> 
X23: 月 | Z23: 月 | AB23: 月 | AC23: （ | AF23: ） | AG23: （ | AJ23: ）
A24: =IF(F24="","","○") ->  | B24: 4 | X24: 年 | Z24: 年 | AB24: 年 | AZ24: =SUM(AK24:AY26) -> 0 | BC24: =IF(AG24+AZ24=0,"",AG24+AZ24) -> 
X26: 月 | Z26: 月 | AB26: 月 | AC26: （ | AF26: ） | AG26: （ | AJ26: ）
A27: =IF(F27="","","○") ->  | B27: 5 | X27: 年 | Z27: 年 | AB27: 年 | AZ27: =SUM(AK27:AY29) -> 0 | BC27: =IF(AG27+AZ27=0,"",AG27+AZ27) -> 
X29: 月 | Z29: 月 | AB29: 月 | AC29: （ | AF29: ） | AG29: （ | AJ29: ）
A30: =IF(F30="","","○") ->  | B30: 6 | X30: 年 | Z30: 年 | AB30: 年 | AZ30: =SUM(AK30:AY32) -> 0 | BC30: =IF(AG30+AZ30=0,"",AG30+AZ30) -> 
X32: 月 | Z32: 月 | AB32: 月 | AC32: （ | AF32: ） | AG32: （ | AJ32: ）
A33: =IF(F33="","","○") ->  | B33: 7 | X33: 年 | Z33: 年 | AB33: 年 | AZ33: =SUM(AK33:AY35) -> 0 | BC33: =IF(AG33+AZ33=0,"",AG33+AZ33) -> 
X35: 月 | Z35: 月 | AB35: 月 | AC35: （ | AF35: ） | AG35: （ | AJ35: ）
A36: =IF(F36="","","○") ->  | B36: 8 | X36: 年 | Z36: 年 | AB36: 年 | AZ36: =SUM(AK36:AY38) -> 0 | BC36: =IF(AG36+AZ36=0,"",AG36+AZ36) -> 
X38: 月 | Z38: 月 | AB38: 月 | AC38: （ | AF38: ） | AG38: （ | AJ38: ）
B40: ○保育士の平均経験年数、平均給与及び有給休暇の状況を記入すること。 | BI40: 給 与 対象人数 | BM40: 年 休 取得率 | BS40: ※削除厳禁
C41: 小計 | G41: =SUM(H17,H20,H23,H26,H29,H32,H35,H38) -> 0 | X41: 年 | Z41: 年 | AB41: 年 | AC41: =ROUND(AVERAGE(AC15:AF38),0) ->  | AG41: =ROUND(AVERAGE(AG15:AJ38),0) ->  | AN41: =ROUND(SUM(AN15:AP38)/BI41,0) ->  | AZ41: =ROUND(SUM(AZ15:BB38)/BI41,0) ->  | BC41: =ROUND(AVERAGE(BC15:BE38),0) ->  | BF41: =ROUND(AVERAGE(BF15,BF18,BF21,BF24,BF27,BF30,BF33,BF36),0) ->  | BI41: =COUNTIF(F15:I38,BS41)+COUNTIF(F15:I38,BS42)+COUNTIF(F15:I38,BV43)+COUNTIF(F15:I38,BV44) -> 0 | BM41: =ROUND(BF41/BF42*100,1) ->  | BS41: 主任保育士
X42: 月 | Z42: 月 | AB42: 月 | BF42: =ROUND(AVERAGE(BF17,BF20,BF23,BF26,BF29,BF32,BF35,BF38),0) ->  | BS42: 副主任保育士
B43: （注） | H43: 1． | I43: 本表は、当該年度監査調書提出月現在で記入すること。（年度途中の休職・退職者についてはNo13-(16)に記入してください。） | BV43: 保育士
H44: 2． | I44: 「諸手当」欄には、支給されている全ての手当の名称及び金額を記入すること。「給与改善費」を「本俸」に込めている場合は記入不用。「処遇改善Ⅰ」は、処遇改善等加算のうち賃金改善要求分を毎月の諸手当として支給する場合に記入すること。 | BV44: 看護師
H46: 3． | I46: 「備考」欄には、法人役員及び施設長と親族関係にある者の続柄（例：「園長の妻」「理事長の長男」「理事の次女」等）、職種変更・正職員化等について記入すること。
H47: 4． | I47: 本園、分園及びその他事業を入力すること。なお、その他事業（放課後児童健全育成事業や地域子育て支援拠点事業）を兼務している場合、備考欄に記載すること。
H48: 5． | I48: 正規職員で短時間勤務の職員等であれば備考に週平均労働時間を記入すること。
B49: －保育所運営No.１４-２（分園）－
B51: 別表１ 正規職員：保育士の勤務状況及び給与支給状況 | BC51: （監査調書提出月： | BL51: 月初日現在）
B53: 番号 | C53: 分園 ・ その他の事業 | F53: 職名 | J53: 氏 名 | O53: 年齢 | P53: 保育士資格の登録 | Q53: 最終 学歴 | T53: 経 験 年 数 | AC53: 給 与 状 況 （本年度監査調書提出月分） | BF53: 前年度 有給休暇 | BI53: 退職共済加入 | BJ53: 備考
T55: 現施設経験 | Y55: その他の施設の経験年数B | AA55: 計 A＋B | AC55: 本 俸 （円） | AK55: 諸手当 D (円) | BC55: 合計 | BF55: 取得 日数 | BJ55: 親族関係、雇用形態変更時期、職種変更時期、代替職員、兼務の状況、派遣職員、法人内異動等
T56: 採 用(異 動) 年月日 | W56: 勤 続 年数A | AC56: 前年度 | AG56: 本年度 C | AK56: 給与改善 | AN56: 処遇改善Ⅰ | AQ56: 管理職 | AT56: 扶養 | AW56: 時間外 | AZ56: 小計
F57: 雇用 形態 | H57: 週平均 労働時間 | J57: 担当クラス | AG57: 直近月 | AK57: 特殊業務 | AN57: 処遇改善Ⅱ | AQ57: 主任加算 | AT57: 住居 | AW57: 市町村補助 | BF57: 所定 日数
AC58: （ | AD58: 格付 | AF58: ） | AG58: （ | AH58: 格付 | AJ58: ） | AN58: 処遇改善Ⅲ | AQ58: 役職加算 | AT58: 通勤 | AW58: その他 | BC58: (C+D)
A59: =IF(F59="","","○") ->  | B59: 9 | X59: 年 | Z59: 年 | AB59: 年 | AZ59: =SUM(AK59:AY61) -> 0 | BC59: =IF(AG59+AZ59=0,"",AG59+AZ59) -> 
X61: 月 | Z61: 月 | AB61: 月 | AC61: （ | AF61: ） | AG61: （ | AJ61: ）
A62: =IF(F62="","","○") ->  | B62: 10 | X62: 年 | Z62: 年 | AB62: 年 | AZ62: =SUM(AK62:AY64) -> 0 | BC62: =IF(AG62+AZ62=0,"",AG62+AZ62) -> 
X64: 月 | Z64: 月 | AB64: 月 | AC64: （ | AF64: ） | AJ64: ）
A65: =IF(F65="","","○") ->  | B65: 11 | X65: 年 | Z65: 年 | AB65: 年 | AZ65: =SUM(AK65:AY67) -> 0 | BC65: =IF(AG65+AZ65=0,"",AG65+AZ65) -> 
X67: 月 | Z67: 月 | AB67: 月 | AC67: （ | AF67: ） | AG67: （ | AJ67: ）
A68: =IF(F68="","","○") ->  | B68: 12 | X68: 年 | Z68: 年 | AB68: 年 | AZ68: =SUM(AK68:AY70) -> 0 | BC68: =IF(AG68+AZ68=0,"",AG68+AZ68) -> 
X70: 月 | Z70: 月 | AB70: 月 | AC70: （ | AF70: ） | AG70: （ | AJ70: ）
A71: =IF(F71="","","○") ->  | B71: 13 | X71: 年 | Z71: 年 | AB71: 年 | AZ71: =SUM(AK71:AY73) -> 0 | BC71: =IF(AG71+AZ71=0,"",AG71+AZ71) -> 
X73: 月 | Z73: 月 | AB73: 月 | AC73: （ | AF73: ） | AG73: （ | AJ73: ）
A74: =IF(F74="","","○") ->  | B74: 14 | X74: 年 | Z74: 年 | AB74: 年 | AZ74: =SUM(AK74:AY76) -> 0 | BC74: =IF(AG74+AZ74=0,"",AG74+AZ74) -> 
X76: 月 | Z76: 月 | AB76: 月 | AC76: （ | AF76: ） | AG76: （ | AJ76: ）
A77: =IF(F77="","","○") ->  | B77: 15 | X77: 年 | Z77: 年 | AB77: 年 | AZ77: =SUM(AK77:AY79) -> 0 | BC77: =IF(AG77+AZ77=0,"",AG77+AZ77) -> 
X79: 月 | Z79: 月 | AB79: 月 | AC79: （ | AF79: ） | AG79: （ | AJ79: ）
A80: =IF(F80="","","○") ->  | B80: 16 | X80: 年 | Z80: 年 | AB80: 年 | AZ80: =SUM(AK80:AY82) -> 0 | BC80: =IF(AG80+AZ80=0,"",AG80+AZ80) -> 
X82: 月 | Z82: 月 | AB82: 月 | AC82: （ | AF82: ） | AG82: （ | AJ82: ）
A83: =IF(F83="","","○") ->  | B83: 17 | X83: 年 | Z83: 年 | AB83: 年 | AZ83: =SUM(AK83:AY85) -> 0 | BC83: =IF(AG83+AZ83=0,"",AG83+AZ83) -> 
X85: 月 | Z85: 月 | AB85: 月 | AC85: （ | AF85: ） | AG85: （ | AJ85: ）
B87: ○保育士の平均経験年数、平均給与及び有給休暇の状況を記入すること。 | BI87: 給 与 対象人数 | BM87: 年 休 取得率 | BS87: ※削除厳禁
C88: 小計 | F88: =SUM(H61,H64,H67,H70,H73,H76,H79,H82,H85) -> 0 | X88: 年 | Z88: 年 | AB88: 年 | AC88: =ROUND(AVERAGE(AC59:AF85),0) ->  | AG88: =ROUND(AVERAGE(AG59:AJ85),0) ->  | AN88: =ROUND(SUM(AN59:AP85)/BI88,0) ->  | AZ88: =ROUND(SUM(AZ59:BB85)/BI88,0) ->  | BC88: =ROUND(AVERAGE(BC59:BE85),0) ->  | BF88: =ROUND(AVERAGE(BF59,BF62,BF65,BF68,BF71,BF74,BF77,BF80,BF83),0) ->  | BI88: =COUNTIF(F59:I85,BS88)+COUNTIF(F59:I85,BS89)+COUNTIF(F59:I85,BS90)+COUNTIF(F59:I85,BS91) -> 0 | BM88: =ROUND(BF88/BF89*100,1) ->  | BS88: 主任保育士
X89: 月 | Z89: 月 | AB89: 月 | BF89: =ROUND(AVERAGE(BF61,BF64,BF67,BF70,BF73,BF76,BF79,BF82,BF85),0) ->  | BS89: 副主任保育士
C90: 累計 | F90: =SUM(G41,F88) -> 0 | X90: 年 | Z90: 年 | AB90: 年 | AC90: =ROUND(SUMIF(A$15:A85,#REF!,AC$15:AF85)/$BI90,0) ->  | AE90: =ROUND(SUMIF(A$15:A85,#REF!,AH$15:AI85)/$BF90,0) ->  | AG90: =ROUND(SUMIF(A$15:$A85,#REF!,AG$15:AJ85)/$BI90,0) ->  | AI90: =ROUND(SUMIF(E$15:E85,D88,AL$15:AM85)/$BF90,0) ->  | AN90: =ROUND(SUMIF(A$15:A85,#REF!,AN$15:AP85)/$BE94,0) ->  | AZ90: =ROUND(SUMIF(A$15:A85,#REF!,AZ$15:BB85)/$BI90,0) ->  | BC90: =ROUND(SUMIF(A$15:A85,#REF!,BC$15:BE85)/$BI90,0) ->  | BF90: =ROUND(AVERAGE(BF15,BF18,BF21,BF24,BF27,BF30,BF33,BF36,BF59,BF62,BF65,BF68,BF71,BF74,BF77,BF80,BF83),0) ->  | BI90: =SUM(BI41,BI88) -> 0 | BM90: =ROUND(BF90/BF91*100,1) ->  | BS90: 保育士
X91: 月 | Z91: 月 | AB91: 月 | BF91: =ROUND(AVERAGE(BF17,BF20,BF23,BF26,BF29,BF32,BF35,BF38,BF61,BF64,BF67,BF70,BF73,BF76,BF79,BF82,BF85),0) ->  | BS91: 看護師
B92: （注） | H92: 1． | I92: 本表は、当該年度監査調書提出月現在で記入すること。（年度途中の休職・退職者についてはNo13-(16)に記入してください。） | BS92: 保育士
H93: 2． | I93: 「諸手当」欄には、支給されている全ての手当の名称及び金額を記入すること。「給与改善費」を「本俸」に込めている場合は記入不用。「処遇改善Ⅰ」は、処遇改善等加算のうち賃金改善要求分を毎月の諸手当として支給する場合に記入すること。 | BS93: 看護師
H95: 3． | I95: 「備考」欄には、法人役員及び施設長と親族関係にある者の続柄（例：「園長の妻」「理事長の長男」「理事の次女」等）、職種変更・正職員化等について記入すること。
H96: 4． | I96: 本園、分園及びその他事業を入力すること。なお、その他事業（放課後児童健全育成事業や地域子育て支援拠点事業）を兼務している場合、備考欄に記載すること。
H97: 5． | I97: 正規職員で短時間勤務の職員等であれば備考に週平均労働時間を記入すること。
B99: －保育所運営No.１４-３（分園）－
B101: 別表１ 正規職員：保育士の勤務状況及び給与支給状況 | BC101: （監査調書提出月： | BL101: 月初日現在）
B103: 番号 | C103: 分園 ・ その他の事業 | F103: 職名 | J103: 氏 名 | O103: 年齢 | P103: 保育士資格の登録 | Q103: 最終 学歴 | T103: 経 験 年 数 | AC103: 給 与 状 況 （本年度監査調書提出月分） | BF103: 前年度 有給休暇 | BI103: 退職共済加入 | BJ103: 備考
T105: 現施設経験 | Y105: その他の施設の経験年数B | AA105: 計 A＋B | AC105: 本 俸 （円） | AK105: 諸手当 D (円) | BC105: 合計 | BF105: 取得 日数 | BJ105: 親族関係、雇用形態変更時期、職種変更時期、代替職員、兼務の状況、派遣職員、法人内異動等
T106: 採 用(異 動) 年月日 | W106: 勤 続 年数A | AC106: 前年度 | AG106: 本年度 C | AK106: 給与改善 | AN106: 処遇改善Ⅰ | AQ106: 管理職 | AT106: 扶養 | AW106: 時間外 | AZ106: 小計
F107: 雇用 形態 | H107: 週平均 労働時間 | J107: 担当クラス | AG107: 直近月 | AK107: 特殊業務 | AN107: 処遇改善Ⅱ | AQ107: 主任加算 | AT107: 住居 | AW107: 市町村補助 | BF107: 所定 日数
AC108: （ | AD108: 格付 | AF108: ） | AG108: （ | AH108: 格付 | AJ108: ） | AN108: 処遇改善Ⅲ | AQ108: 役職加算 | AT108: 通勤 | AW108: その他 | BC108: (C+D)
A109: =IF(F109="","","○") ->  | B109: 18 | X109: 年 | Z109: 年 | AB109: 年 | AZ109: =SUM(AK109:AY111) -> 0 | BC109: =IF(AG109+AZ109=0,"",AG109+AZ109) -> 
X111: 月 | Z111: 月 | AB111: 月 | AC111: （ | AF111: ） | AG111: （ | AJ111: ）
A112: =IF(F112="","","○") ->  | B112: 19 | X112: 年 | Z112: 年 | AB112: 年 | AZ112: =SUM(AK112:AY114) -> 0 | BC112: =IF(AG112+AZ112=0,"",AG112+AZ112) -> 
X114: 月 | Z114: 月 | AB114: 月 | AC114: （ | AF114: ） | AJ114: ）
A115: =IF(F115="","","○") ->  | B115: 20 | X115: 年 | Z115: 年 | AB115: 年 | AZ115: =SUM(AK115:AY117) -> 0 | BC115: =IF(AG115+AZ115=0,"",AG115+AZ115) -> 
X117: 月 | Z117: 月 | AB117: 月 | AC117: （ | AF117: ） | AG117: （ | AJ117: ）
A118: =IF(F118="","","○") ->  | B118: 21 | X118: 年 | Z118: 年 | AB118: 年 | AZ118: =SUM(AK118:AY120) -> 0 | BC118: =IF(AG118+AZ118=0,"",AG118+AZ118) -> 
X120: 月 | Z120: 月 | AB120: 月 | AC120: （ | AF120: ） | AG120: （ | AJ120: ）
A121: =IF(F121="","","○") ->  | B121: 22 | X121: 年 | Z121: 年 | AB121: 年 | AZ121: =SUM(AK121:AY123) -> 0 | BC121: =IF(AG121+AZ121=0,"",AG121+AZ121) -> 
X123: 月 | Z123: 月 | AB123: 月 | AC123: （ | AF123: ） | AG123: （ | AJ123: ）
A124: =IF(F124="","","○") ->  | B124: 23 | X124: 年 | Z124: 年 | AB124: 年 | AZ124: =SUM(AK124:AY126) -> 0 | BC124: =IF(AG124+AZ124=0,"",AG124+AZ124) -> 
X126: 月 | Z126: 月 | AB126: 月 | AC126: （ | AF126: ） | AG126: （ | AJ126: ）
A127: =IF(F127="","","○") ->  | B127: 24 | X127: 年 | Z127: 年 | AB127: 年 | AZ127: =SUM(AK127:AY129) -> 0 | BC127: =IF(AG127+AZ127=0,"",AG127+AZ127) -> 
X129: 月 | Z129: 月 | AB129: 月 | AC129: （ | AF129: ） | AG129: （ | AJ129: ）
A130: =IF(F130="","","○") ->  | B130: 25 | X130: 年 | Z130: 年 | AB130: 年 | AZ130: =SUM(AK130:AY132) -> 0 | BC130: =IF(AG130+AZ130=0,"",AG130+AZ130) -> 
X132: 月 | Z132: 月 | AB132: 月 | AC132: （ | AF132: ） | AG132: （ | AJ132: ）
A133: =IF(F133="","","○") ->  | B133: 26 | X133: 年 | Z133: 年 | AB133: 年 | AZ133: =SUM(AK133:AY135) -> 0 | BC133: =IF(AG133+AZ133=0,"",AG133+AZ133) -> 
X135: 月 | Z135: 月 | AB135: 月 | AC135: （ | AF135: ） | AG135: （ | AJ135: ）
B137: ○保育士の平均経験年数、平均給与及び有給休暇の状況を記入すること。 | BI137: 給 与 対象人数 | BM137: 年 休 取得率 | BS137: ※削除厳禁
C138: 小計 | F138: =SUM(H111,H114,H117,H120,H123,H126,H129,H132,H135) -> 0 | X138: 年 | Z138: 年 | AB138: 年 | AC138: =ROUND(AVERAGE(AC109:AF135),0) ->  | AG138: =ROUND(AVERAGE(AG109:AJ135),0) ->  | AN138: =ROUND(SUM(AN109:AP135)/BI138,0) ->  | AZ138: =ROUND(SUMIF(A$109:A135,#REF!,AZ$109:BB135)/$BI138,0) ->  | BC138: =ROUND(AVERAGE(BC109:BE135),0) ->  | BF138: =ROUND(AVERAGE(BF109,BF112,BF115,BF118,BF121,BF124,BF127,BF130,BF133),0) ->  | BI138: =COUNTIF(F109:I135,BS138)+COUNTIF(F109:I135,BS139)+COUNTIF(F109:I135,BS140)+COUNTIF(F109:I135,BS141) -> 0 | BM138: =ROUND(BF138/BF139*100,1) ->  | BS138: 主任保育士
X139: 月 | Z139: 月 | AB139: 月 | BF139: =ROUND(AVERAGE(BF111,BF114,BF117,BF120,BF123,BF126,BF129,BF132,BF135),0) ->  | BS139: 副主任保育士
C140: 累計 | F140: =SUM(G41,F88,F138) -> 0 | X140: 年 | Z140: 年 | AB140: 年 | AC140: =ROUND(SUMIF(A$15:A135,#REF!,AC$15:AF135)/$BI140,0) ->  | AE140: =ROUND(SUMIF(A$15:A135,#REF!,AH$15:AI135)/$BF140,0) ->  | AG140: =ROUND(SUMIF(A$15:$A135,#REF!,AG$15:AJ135)/$BI140,0) ->  | AI140: =ROUND(SUMIF(E$15:E135,D138,AL$15:AM135)/$BF140,0) ->  | AN140: =ROUND(SUMIF(A$15:A135,#REF!,AN$15:AP135)/$BI140,0) ->  | AZ140: =ROUND(SUMIF(A$15:A135,#REF!,AZ$15:BB135)/$BI140,0) ->  | BC140: =ROUND(SUMIF(A$15:A135,#REF!,BC$15:BE135)/$BI140,0) ->  | BF140: =ROUND(AVERAGE(BF15,BF18,BF21,BF24,BF27,BF30,BF33,BF36,BF59,BF65,BF68,BF71,BF74,BF77,BF80,BF83,BF62,BF109,BF112,BF115,BF118,BF121,BF124,BF127,BF130,BF133),0) ->  | BI140: =SUM(BI91,BI138) -> 0 | BM140: =ROUND(BF140/BF141*100,1) ->  | BS140: 保育士
X141: 月 | Z141: 月 | AB141: 月 | BF141: =ROUND(AVERAGE(BF17,BF20,BF23,BF26,BF29,BF32,BF35,BF38,BF61,BF67,BF70,BF73,BF76,BF79,BF82,BF85,BF64,BF111,BF114,BF117,BF120,BF123,BF126,BF129,BF132,BF135),0) ->  | BS141: 看護師
B142: （注） | H142: 1． | I142: 本表は、当該年度監査調書提出月現在で記入すること。（年度途中の休職・退職者についてはNo13-(16)に記入してください。） | BV142: 保育士
H143: 2． | I143: 「諸手当」欄には、支給されている全ての手当の名称及び金額を記入すること。「給与改善費」を「本俸」に込めている場合は記入不用。「処遇改善Ⅰ」は、処遇改善等加算のうち賃金改善要求分を毎月の諸手当として支給する場合に記入すること。 | BV143: 看護師
H145: 3． | I145: 「備考」欄には、法人役員及び施設長と親族関係にある者の続柄（例：「園長の妻」「理事長の長男」「理事の次女」等）、職種変更・正職員化等について記入すること。
H146: 4． | I146: 本園、分園及びその他事業を入力すること。なお、その他事業（放課後児童健全育成事業や地域子育て支援拠点事業）を兼務している場合、備考欄に記載すること。
H147: 5． | I147: 正規職員で短時間勤務の職員等であれば備考に週平均労働時間を記入すること。
B149: －保育所運営No.１４-４（分園）－
B151: 別表１ 正規職員：保育士の勤務状況及び給与支給状況 | BC151: （監査調書提出月： | BL151: 月初日現在）
B153: 番号 | C153: 分園 ・ その他の事業 | F153: 職名 | J153: 氏 名 | O153: 年齢 | P153: 保育士資格の登録 | Q153: 最終 学歴 | T153: 経 験 年 数 | AC153: 給 与 状 況 （本年度監査調書提出月分） | BF153: 前年度 有給休暇 | BI153: 退職共済加入 | BJ153: 備考
T155: 現施設経験 | Y155: その他の施設の経験年数B | AA155: 計 A＋B | AC155: 本 俸 （円） | AK155: 諸手当 D (円) | BC155: 合計 | BF155: 取得 日数 | BJ155: 親族関係、雇用形態変更時期、職種変更時期、代替職員、兼務の状況、派遣職員、法人内異動等
T156: 採 用(異 動) 年月日 | W156: 勤 続 年数A | AC156: 前年度 | AG156: 本年度 C | AK156: 給与改善 | AN156: 処遇改善Ⅰ | AQ156: 管理職 | AT156: 扶養 | AW156: 時間外 | AZ156: 小計
F157: 雇用 形態 | H157: 週平均 労働時間 | J157: 担当クラス | AG157: 直近月 | AK157: 特殊業務 | AN157: 処遇改善Ⅱ | AQ157: 主任加算 | AT157: 住居 | AW157: 市町村補助 | BF157: 所定 日数
AC158: （ | AD158: 格付 | AF158: ） | AG158: （ | AH158: 格付 | AJ158: ） | AN158: 処遇改善Ⅲ | AQ158: 役職加算 | AT158: 通勤 | AW158: その他 | BC158: (C+D)
A159: =IF(F159="","","○") ->  | B159: 27 | AZ159: =SUM(AK159:AY161) -> 0 | BC159: =IF(AG159+AZ159=0,"",AG159+AZ159) -> 
A162: =IF(F162="","","○") ->  | B162: 28 | AZ162: =SUM(AK162:AY164) -> 0 | BC162: =IF(AG162+AZ162=0,"",AG162+AZ162) -> 
A165: =IF(F165="","","○") ->  | B165: 29 | X165: 年 | Z165: 年 | AB165: 年 | AZ165: =SUM(AK165:AY167) -> 0 | BC165: =IF(AG165+AZ165=0,"",AG165+AZ165) -> 
X167: 月 | Z167: 月 | AB167: 月 | AC167: （ | AF167: ） | AG167: （ | AJ167: ）
A168: =IF(F168="","","○") ->  | B168: 30 | X168: 年 | Z168: 年 | AB168: 年 | AZ168: =SUM(AK168:AY170) -> 0 | BC168: =IF(AG168+AZ168=0,"",AG168+AZ168) -> 
X170: 月 | Z170: 月 | AB170: 月 | AC170: （ | AF170: ） | AG170: （ | AJ170: ）
A171: =IF(F171="","","○") ->  | B171: 31 | X171: 年 | Z171: 年 | AB171: 年 | AZ171: =SUM(AK171:AY173) -> 0 | BC171: =IF(AG171+AZ171=0,"",AG171+AZ171) -> 
X173: 月 | Z173: 月 | AB173: 月 | AC173: （ | AF173: ） | AG173: （ | AJ173: ）
A174: =IF(F174="","","○") ->  | B174: 32 | X174: 年 | Z174: 年 | AB174: 年 | AZ174: =SUM(AK174:AY176) -> 0 | BC174: =IF(AG174+AZ174=0,"",AG174+AZ174) -> 
X176: 月 | Z176: 月 | AB176: 月 | AC176: （ | AF176: ） | AG176: （ | AJ176: ）
A177: =IF(F177="","","○") ->  | B177: 33 | X177: 年 | Z177: 年 | AB177: 年 | AZ177: =SUM(AK177:AY179) -> 0 | BC177: =IF(AG177+AZ177=0,"",AG177+AZ177) -> 
X179: 月 | Z179: 月 | AB179: 月 | AC179: （ | AF179: ） | AG179: （ | AJ179: ）
A180: =IF(F180="","","○") ->  | B180: 34 | X180: 年 | Z180: 年 | AB180: 年 | AZ180: =SUM(AK180:AY182) -> 0 | BC180: =IF(AG180+AZ180=0,"",AG180+AZ180) -> 
X182: 月 | Z182: 月 | AB182: 月 | AC182: （ | AF182: ） | AG182: （ | AJ182: ）
A183: =IF(F183="","","○") ->  | B183: 35 | X183: 年 | Z183: 年 | AB183: 年 | AZ183: =SUM(AK183:AY185) -> 0 | BC183: =IF(AG183+AZ183=0,"",AG183+AZ183) -> 
X185: 月 | Z185: 月 | AB185: 月 | AC185: （ | AF185: ） | AG185: （ | AJ185: ）
B187: ○保育士の平均経験年数、平均給与及び有給休暇の状況を記入すること。 | BI187: 給 与 対象人数 | BM187: 年 休 取得率 | BS187: ※削除厳禁
C188: 小計 | F188: =SUM(H161,H164,H167,H170,H173,H176,H179,H182,H185) -> 0 | X188: 年 | Z188: 年 | AB188: 年 | AC188: =ROUND(AVERAGE(AC159:AF185),0) ->  | AG188: =ROUND(AVERAGE(AG159:AJ185),0) ->  | AN188: =ROUND(SUM(AN159:AP185)/BI188,0) ->  | AZ188: =ROUND(SUMIF(A$159:A185,#REF!,AZ$159:BB185)/$BI188,0) ->  | BC188: =ROUND(AVERAGE(BC159:BE185),0) ->  | BF188: =ROUND(AVERAGE(BF159,BF162,BF165,BF168,BF171,BF174,BF177,BF180,BF183),0) ->  | BI188: =COUNTIF(F159:I185,BS188)+COUNTIF(F159:I185,BS189)+COUNTIF(F159:I185,BS190)+COUNTIF(F159:I185,BS191) -> 0 | BM188: =ROUND(BF188/BF189*100,1) ->  | BS188: 主任保育士
X189: 月 | Z189: 月 | AB189: 月 | BF189: =ROUND(AVERAGE(BF161,BF164,BF167,BF170,BF173,BF176,BF179,BF182,BF185),0) ->  | BS189: 副主任保育士
C190: 累計 | F190: =SUM(G41,F88,F138,F188) -> 0 | W190: 累計 | AC190: =ROUND(SUMIF(A$15:A185,#REF!,AC$15:AF185)/$BI190,0) ->  | AE190: =ROUND(SUMIF(A$15:A185,#REF!,AH$15:AI185)/$BF190,0) ->  | AG190: =ROUND(SUMIF(A$15:$A185,#REF!,AG$15:AJ185)/$BI190,0) ->  | AI190: =ROUND(SUMIF(E$15:E185,D188,AL$15:AM185)/$BF190,0) ->  | AN190: =ROUND(SUMIF(A$15:A185,#REF!,AN$15:AP185)/$BI190,0) ->  | AZ190: =ROUND(SUMIF(A$15:A185,#REF!,AZ$15:BB185)/$BI190,0) ->  | BC190: =ROUND(SUMIF(A$15:A185,#REF!,BC$15:BE185)/$BI190,0) ->  | BF190: =ROUND(AVERAGE(BF59,BF62,BF65,BF68,BF71,BF74,BF77,BF80,BF83,BF109,BF115,BF118,BF121,BF124,BF127,BF130,BF133,BF112,BF159,BF162,BF165,BF168,BF171,BF174,BF177,BF180,BF183),0) ->  | BI190: =SUM(BI141,BI188) -> 0 | BM190: =ROUND(BF190/BF191*100,1) ->  | BS190: 保育士
BF191: =ROUND(AVERAGE(BF17,BF20,BF23,BF26,BF29,BF32,BF35,BF38,BF61,BF64,BF67,BF70,BF73,BF76,BF79,BF82,BF85,BF111,BF117,BF120,BF123,BF126,BF129,BF132,BF135,BF114,BF161,BF164,BF167,BF170,BF173,BF176,BF179,BF182,BF185),0) ->  | BS191: 看護師
B192: （注） | H192: 1． | I192: 本表は、当該年度監査調書提出月現在で記入すること。（年度途中の休職・退職者についてはNo13-(16)に記入してください。） | BV192: 保育士
H193: 2． | I193: 「諸手当」欄には、支給されている全ての手当の名称及び金額を記入すること。「給与改善費」を「本俸」に込めている場合は記入不用。「処遇改善Ⅰ」は、処遇改善等加算のうち賃金改善要求分を毎月の諸手当として支給する場合に記入すること。 | BV193: 看護師
H195: 3． | I195: 「備考」欄には、法人役員及び施設長と親族関係にある者の続柄（例：「園長の妻」「理事長の長男」「理事の次女」等）、職種変更・正職員化等について記入すること。
H196: 4． | I196: 本園、分園及びその他事業を入力すること。なお、その他事業（放課後児童健全育成事業や地域子育て支援拠点事業）を兼務している場合、備考欄に記載すること。
H197: 5． | I197: 正規職員で短時間勤務の職員等であれば備考に週平均労働時間を記入すること。

Sheet No15
B2: －保育所運営No.１５（分園）－ | BU2: 目次に戻る
B4: 別表２ 正規職員：園長及び保育士以外の職員の勤務状況及び給与支給状況 | BC4: （監査調書提出月： | BL4: 月初日現在）
B6: 番号 | C6: 分園 ・ その他の事業 | F6: 職名 | J6: 氏 名 | O6: 年齢 | P6: 保育士資格の登録 | Q6: 資格の 有 無 | T6: 最終 学歴 | W6: 経 験 年 数 | AF6: 給 与 状 況 （本年度監査調書提出月分） | BI6: 前年度 有給休暇 | BL6: 退職共済加入 | BM6: 備考
W8: 現施設経験 | AB8: その他の施設の経験年数B | AD8: 計 A＋B | AF8: 本 俸 （円） | AN8: 諸手当 D (円) | BF8: 合計 | BI8: 取得 日数 | BM8: 親族関係、雇用形態変更時期、職種変更時期、代替職員、派遣職員、法人内異動等
Q9: 資格の種 類 | W9: 採 用(異 動) 年月日 | Z9: 勤 続 年数A | AF9: 前年度 | AJ9: 本年度 C | AN9: 給与改善 | AQ9: 処遇改善Ⅰ | AT9: 管理職 | AW9: 扶養 | AZ9: 時間外 | BC9: 小計
F10: 雇用 形態 | H10: 週平均 労働時間 | AJ10: 直近月 | AN10: 特殊業務 | AQ10: 処遇改善Ⅱ | AT10: 主任加算 | AW10: 住居 | AZ10: 市町村補助 | BI10: 所定 日数
AF11: （ | AG11: 格付 | AI11: ） | AJ11: （ | AK11: 格付 | AM11: ） | AQ11: 処遇改善Ⅲ | AT11: 役職加算 | AW11: 通勤 | AZ11: その他 | BF11: (C+D)
B12: 0 | C12: 分園 | F12: 園長 | J12: 例示 | O12: 59 | P12: 有 | Q12: 有 | T12: 短大 | W12: S59 | Z12: 31 | AA12: 年 | AB12: 7 | AC12: 年 | AD12: 38 | AE12: 年 | AF12: 例示 | AN12: =AJ13*0.04 -> 13140 | AW12: 6000 | BC12: =SUM(AN12:BB14) -> 60840 | BF12: =AJ13+BC12 -> 389340 | BI12: 2 | BL12: ◯ | BM12: 理事長の妻
J13: 保育 花子 | Q13: 栄養士 | AF13: 324000 | AJ13: 328500 | AN13: 9200 | AT13: 15000 | AW13: 10000 | AZ13: 3000 | BM13: H20/4/1園長就任
W14: 2015-04-01 | Z14: 0 | AA14: 月 | AB14: 6 | AC14: 月 | AD14: 6 | AE14: 月 | AF14: （ | AG14: 1-7 | AI14: ） | AJ14: （ | AK14: 1-8 | AM14: ） | AW14: 4500 | BI14: 40
B15: 1 | AA15: 年 | AC15: 年 | AE15: 年 | BC15: =SUM(AN15:BB17) -> 0 | BF15: =AJ15+BC15 -> 0
AA17: 月 | AC17: 月 | AE17: 月 | AF17: （ | AI17: ） | AJ17: （ | AM17: ）
B18: 2 | AA18: 年 | AC18: 年 | AE18: 年 | BC18: =SUM(AN18:BB20) -> 0 | BF18: =AJ18+BC18 -> 0
AA20: 月 | AC20: 月 | AE20: 月 | AF20: （ | AI20: ） | AJ20: （ | AM20: ）
B21: 3 | AA21: 年 | AC21: 年 | AE21: 年 | BC21: =SUM(AN21:BB23) -> 0 | BF21: =AJ21+BC21 -> 0
AA23: 月 | AC23: 月 | AE23: 月 | AF23: （ | AI23: ） | AJ23: （ | AM23: ）
B24: 4 | AA24: 年 | AC24: 年 | AE24: 年 | BC24: =SUM(AN24:BB26) -> 0 | BF24: =AJ24+BC24 -> 0
AA26: 月 | AC26: 月 | AE26: 月 | AF26: （ | AI26: ） | AJ26: （ | AM26: ）
B27: 5 | AA27: 年 | AC27: 年 | AE27: 年 | BC27: =SUM(AN27:BB29) -> 0 | BF27: =AJ27+BC27 -> 0
AA29: 月 | AC29: 月 | AE29: 月 | AF29: （ | AI29: ） | AJ29: （ | AM29: ）
B30: 6 | AA30: 年 | AC30: 年 | AE30: 年 | BC30: =SUM(AN30:BB32) -> 0 | BF30: =AJ30+BC30 -> 0
AA32: 月 | AC32: 月 | AE32: 月 | AF32: （ | AI32: ） | AJ32: （ | AM32: ）
B33: 7 | AA33: 年 | AC33: 年 | AE33: 年 | BC33: =SUM(AN33:BB35) -> 0 | BF33: =AJ33+BC33 -> 0
AA35: 月 | AC35: 月 | AE35: 月 | AF35: （ | AI35: ） | AJ35: （ | AM35: ）
BC36: =SUM(AN36:BB38) -> 0
B37: ○保育士以外の職員（園長、副園長を除く）の平均経験年数、平均給与及び有給休暇の状況を記入すること。
AA38: 年 | AC38: 年 | AE38: 年
AA39: 月 | AC39: 月 | AE39: 月
B40: （注） | H40: 1． | I40: 本表は、当該年度監査調書提出月現在で記入すること。（年度途中の休職・退職者についてはNo13-(16)に記入してください。）
H41: 2． | I41: 「諸手当」欄には、支給されている全ての手当の名称及び金額を記入すること。「処遇改善Ⅰ」は、処遇改善等加算のうち賃金改善要求分を毎月の諸手当として支給する場合に記入すること。
H42: 3． | I42: 「備考」欄には、法人役員及び施設長と親族関係にある者の続柄（例：「園長の妻」「理事長の長男」「理事の次女」等）、職種変更・正職員化等について記入すること。
H43: 4． | I43: 本園、分園及びその他事業を入力すること。なお、その他事業（放課後児童健全育成事業や地域子育て支援拠点事業）を兼務している場合、備考欄に記載すること。
H44: 5． | I44: 正規職員で短時間勤務の職員等であれば備考に週平均労働時間を記入すること。
B45: －保育所運営No.１５-２（分園）－
B47: 別表２ 正規職員：園長及び保育士以外の職員の勤務状況及び給与支給状況 | BC47: （監査調書提出月： | BL47: 月初日現在）
B49: 番号 | C49: 分園 ・ その他の事業 | F49: 職名 | J49: 氏 名 | O49: 年齢 | P49: 保育士資格の登録 | Q49: 資格の 有 無 | T49: 最終 学歴 | W49: 経 験 年 数 | AF49: 給 与 状 況 （本年度監査調書提出月分） | BI49: 前年度 有給休暇 | BL49: 退職共済加入 | BM49: 備考
W51: 現施設経験 | AB51: その他の施設の経験年数B | AD51: 計 A＋B | AF51: 本 俸 （円） | AN51: 諸手当 D (円) | BF51: 合計 | BI51: 取得 日数 | BM51: 親族関係、雇用形態変更時期、職種変更時期、代替職員、派遣職員、法人内異動等
Q52: 資格の種 類 | W52: 採 用(異 動) 年月日 | Z52: 勤 続 年数A | AF52: 前年度 | AJ52: 本年度 C | AN52: 給与改善 | AQ52: 処遇改善Ⅰ | AT52: 管理職 | AW52: 扶養 | AZ52: 時間外 | BC52: 小計
F53: 雇用 形態 | H53: 週平均 労働時間 | AJ53: 直近月 | AN53: 特殊業務 | AQ53: 処遇改善Ⅱ | AT53: 主任加算 | AW53: 住居 | AZ53: 市町村補助 | BI53: 所定 日数
AF54: （ | AG54: 格付 | AI54: ） | AJ54: （ | AK54: 格付 | AM54: ） | AQ54: 処遇改善Ⅲ | AT54: 役職加算 | AW54: 通勤 | AZ54: その他 | BF54: (C+D)
B55: 8 | AA55: 年 | AC55: 年 | AE55: 年 | BC55: =SUM(AN55:BB57) -> 0 | BF55: =AJ55+BC55 -> 0
AA57: 月 | AC57: 月 | AE57: 月 | AF57: （ | AI57: ） | AJ57: （ | AM57: ）
B58: 9 | AA58: 年 | AC58: 年 | AE58: 年 | BC58: =SUM(AN58:BB60) -> 0 | BF58: =AJ58+BC58 -> 0
AA60: 月 | AC60: 月 | AE60: 月 | AF60: （ | AI60: ） | AJ60: （ | AM60: ）
B61: 10 | AA61: 年 | AC61: 年 | AE61: 年 | BC61: =SUM(AN61:BB63) -> 0 | BF61: =AJ61+BC61 -> 0
AA63: 月 | AC63: 月 | AE63: 月 | AF63: （ | AI63: ） | AJ63: （ | AM63: ）
B64: 11 | AA64: 年 | AC64: 年 | AE64: 年 | BC64: =SUM(AN64:BB66) -> 0 | BF64: =AJ64+BC64 -> 0
AA66: 月 | AC66: 月 | AE66: 月 | AF66: （ | AI66: ） | AJ66: （ | AM66: ）
B67: 12 | AA67: 年 | AC67: 年 | AE67: 年 | BC67: =SUM(AN67:BB69) -> 0 | BF67: =AJ67+BC67 -> 0
AA69: 月 | AC69: 月 | AE69: 月 | AF69: （ | AI69: ） | AJ69: （ | AM69: ）
B70: 13 | AA70: 年 | AC70: 年 | AE70: 年 | BC70: =SUM(AN70:BB72) -> 0 | BF70: =AJ70+BC70 -> 0
AA72: 月 | AC72: 月 | AE72: 月 | AF72: （ | AI72: ） | AJ72: （ | AM72: ）
B73: 14 | AA73: 年 | AC73: 年 | AE73: 年 | BC73: =SUM(AN73:BB75) -> 0 | BF73: =AJ73+BC73 -> 0
AA75: 月 | AC75: 月 | AE75: 月 | AF75: （ | AI75: ） | AJ75: （ | AM75: ）
B76: 15 | AA76: 年 | AC76: 年 | AE76: 年 | BC76: =SUM(AN76:BB78) -> 0 | BF76: =AJ76+BC76 -> 0
AA78: 月 | AC78: 月 | AE78: 月 | AF78: （ | AI78: ） | AJ78: （ | AM78: ）
B79: 16 | AA79: 年 | AC79: 年 | AE79: 年 | BC79: =SUM(AN79:BB81) -> 0 | BF79: =AJ79+BC79 -> 0
AA81: 月 | AC81: 月 | AE81: 月 | AF81: （ | AI81: ） | AJ81: （ | AM81: ）
B82: 17 | AA82: 年 | AC82: 年 | AE82: 年 | BC82: =SUM(AN82:BB84) -> 0 | BF82: =AJ82+BC82 -> 0
AA84: 月 | AC84: 月 | AE84: 月 | AF84: （ | AI84: ） | AJ84: （ | AM84: ）
B86: （注） | H86: 1． | I86: 本表は、当該年度監査調書提出月現在で記入すること。（年度途中の休職・退職者についてはNo13-(16)に記入してください。）
H87: 2． | I87: 「諸手当」欄には、支給されている全ての手当の名称及び金額を記入すること。「処遇改善Ⅰ」は、処遇改善等加算のうち賃金改善要求分を毎月の諸手当として支給する場合に記入すること。
H88: 3． | I88: 「備考」欄には、法人役員及び施設長と親族関係にある者の続柄（例：「園長の妻」「理事長の長男」「理事の次女」等）、職種変更・正職員化等について記入すること。
H89: 4． | I89: 本園、分園及びその他事業を入力すること。なお、その他事業（放課後児童健全育成事業や地域子育て支援拠点事業）を兼務している場合、備考欄に記載すること。
H90: 5． | I90: 正規職員で短時間勤務の職員等であれば備考に週平均労働時間を記入すること。
B92: －保育所運営No.１５-３（分園）－
B94: 別表２ 正規職員：園長及び保育士以外の職員の勤務状況及び給与支給状況 | BC94: （監査調書提出月： | BL94: 月初日現在）
B96: 番号 | C96: 分園 ・ その他の事業 | F96: 職名 | J96: 氏 名 | O96: 年齢 | P96: 保育士資格の登録 | Q96: 資格の 有 無 | T96: 最終 学歴 | W96: 経 験 年 数 | AF96: 給 与 状 況 （本年度監査調書提出月分） | BI96: 前年度 有給休暇 | BL96: 退職共済加入 | BM96: 備考
W98: 現施設経験 | AB98: その他の施設の経験年数B | AD98: 計 A＋B | AF98: 本 俸 （円） | AN98: 諸手当 D (円) | BF98: 合計 | BI98: 取得 日数 | BM98: 親族関係、雇用形態変更時期、職種変更時期、代替職員、派遣職員、法人内異動等
Q99: 資格の種 類 | W99: 採 用(異 動) 年月日 | Z99: 勤 続 年数A | AF99: 前年度 | AJ99: 本年度 C | AN99: 給与改善 | AQ99: 処遇改善Ⅰ | AT99: 管理職 | AW99: 扶養 | AZ99: 時間外 | BC99: 小計
F100: 雇用 形態 | H100: 週平均 労働時間 | AJ100: 直近月 | AN100: 特殊業務 | AQ100: 処遇改善Ⅱ | AT100: 主任加算 | AW100: 住居 | AZ100: 市町村補助 | BI100: 所定 日数
AF101: （ | AG101: 格付 | AI101: ） | AJ101: （ | AK101: 格付 | AM101: ） | AQ101: 処遇改善Ⅲ | AT101: 役職加算 | AW101: 通勤 | AZ101: その他 | BF101: (C+D)
B102: 8 | AA102: 年 | AC102: 年 | AE102: 年 | BC102: =SUM(AN102:BB104) -> 0 | BF102: =AJ102+BC102 -> 0
AA104: 月 | AC104: 月 | AE104: 月 | AF104: （ | AI104: ） | AJ104: （ | AM104: ）
B105: 9 | AA105: 年 | AC105: 年 | AE105: 年 | BC105: =SUM(AN105:BB107) -> 0 | BF105: =AJ105+BC105 -> 0
AA107: 月 | AC107: 月 | AE107: 月 | AF107: （ | AI107: ） | AJ107: （ | AM107: ）
B108: 10 | AA108: 年 | AC108: 年 | AE108: 年 | BC108: =SUM(AN108:BB110) -> 0 | BF108: =AJ108+BC108 -> 0
AA110: 月 | AC110: 月 | AE110: 月 | AF110: （ | AI110: ） | AJ110: （ | AM110: ）
B111: 11 | AA111: 年 | AC111: 年 | AE111: 年 | BC111: =SUM(AN111:BB113) -> 0 | BF111: =AJ111+BC111 -> 0
AA113: 月 | AC113: 月 | AE113: 月 | AF113: （ | AI113: ） | AJ113: （ | AM113: ）
B114: 12 | AA114: 年 | AC114: 年 | AE114: 年 | BC114: =SUM(AN114:BB116) -> 0 | BF114: =AJ114+BC114 -> 0
AA116: 月 | AC116: 月 | AE116: 月 | AF116: （ | AI116: ） | AJ116: （ | AM116: ）
B117: 13 | AA117: 年 | AC117: 年 | AE117: 年 | BC117: =SUM(AN117:BB119) -> 0 | BF117: =AJ117+BC117 -> 0
AA119: 月 | AC119: 月 | AE119: 月 | AF119: （ | AI119: ） | AJ119: （ | AM119: ）
B120: 14 | AA120: 年 | AC120: 年 | AE120: 年 | BC120: =SUM(AN120:BB122) -> 0 | BF120: =AJ120+BC120 -> 0
AA122: 月 | AC122: 月 | AE122: 月 | AF122: （ | AI122: ） | AJ122: （ | AM122: ）
B123: 15 | AA123: 年 | AC123: 年 | AE123: 年 | BC123: =SUM(AN123:BB125) -> 0 | BF123: =AJ123+BC123 -> 0
AA125: 月 | AC125: 月 | AE125: 月 | AF125: （ | AI125: ） | AJ125: （ | AM125: ）
B126: 16 | AA126: 年 | AC126: 年 | AE126: 年 | BC126: =SUM(AN126:BB128) -> 0 | BF126: =AJ126+BC126 -> 0
AA128: 月 | AC128: 月 | AE128: 月 | AF128: （ | AI128: ） | AJ128: （ | AM128: ）
B129: 17 | AA129: 年 | AC129: 年 | AE129: 年 | BC129: =SUM(AN129:BB131) -> 0 | BF129: =AJ129+BC129 -> 0
AA131: 月 | AC131: 月 | AE131: 月 | AF131: （ | AI131: ） | AJ131: （ | AM131: ）
B133: （注） | H133: 1． | I133: 本表は、当該年度監査調書提出月現在で記入すること。（年度途中の休職・退職者についてはNo13-(16)に記入してください。）
H134: 2． | I134: 「諸手当」欄には、支給されている全ての手当の名称及び金額を記入すること。「処遇改善Ⅰ」は、処遇改善等加算のうち賃金改善要求分を毎月の諸手当として支給する場合に記入すること。
H135: 3． | I135: 「備考」欄には、法人役員及び施設長と親族関係にある者の続柄（例：「園長の妻」「理事長の長男」「理事の次女」等）、職種変更・正職員化等について記入すること。
H136: 4． | I136: 本園、分園及びその他事業を入力すること。なお、その他事業（放課後児童健全育成事業や地域子育て支援拠点事業）を兼務している場合、備考欄に記載すること。
H137: 5． | I137: 正規職員で短時間勤務の職員等であれば備考に週平均労働時間を記入すること。
B139: －保育所運営No.１５-４（分園）－
B141: 別表２ 正規職員：園長及び保育士以外の職員の勤務状況及び給与支給状況 | BC141: （監査調書提出月： | BL141: 月初日現在）
B143: 番号 | C143: 分園 ・ その他の事業 | F143: 職名 | J143: 氏 名 | O143: 年齢 | P143: 保育士資格の登録 | Q143: 資格の 有 無 | T143: 最終 学歴 | W143: 経 験 年 数 | AF143: 給 与 状 況 （本年度監査調書提出月分） | BI143: 前年度 有給休暇 | BL143: 退職共済加入 | BM143: 備考
W145: 現施設経験 | AB145: その他の施設の経験年数B | AD145: 計 A＋B | AF145: 本 俸 （円） | AN145: 諸手当 D (円) | BF145: 合計 | BI145: 取得 日数 | BM145: 親族関係、雇用形態変更時期、職種変更時期、代替職員、派遣職員、法人内異動等
Q146: 資格の種 類 | W146: 採 用(異 動) 年月日 | Z146: 勤 続 年数A | AF146: 前年度 | AJ146: 本年度 C | AN146: 給与改善 | AQ146: 処遇改善Ⅰ | AT146: 管理職 | AW146: 扶養 | AZ146: 時間外 | BC146: 小計
F147: 雇用 形態 | H147: 週平均 労働時間 | AJ147: 直近月 | AN147: 特殊業務 | AQ147: 処遇改善Ⅱ | AT147: 主任加算 | AW147: 住居 | AZ147: 市町村補助 | BI147: 所定 日数
AF148: （ | AG148: 格付 | AI148: ） | AJ148: （ | AK148: 格付 | AM148: ） | AQ148: 処遇改善Ⅲ | AT148: 役職加算 | AW148: 通勤 | AZ148: その他 | BF148: (C+D)
B149: 8 | AA149: 年 | AC149: 年 | AE149: 年 | BC149: =SUM(AN149:BB151) -> 0 | BF149: =AJ149+BC149 -> 0
AA151: 月 | AC151: 月 | AE151: 月 | AF151: （ | AI151: ） | AJ151: （ | AM151: ）
B152: 9 | AA152: 年 | AC152: 年 | AE152: 年 | BC152: =SUM(AN152:BB154) -> 0 | BF152: =AJ152+BC152 -> 0
AA154: 月 | AC154: 月 | AE154: 月 | AF154: （ | AI154: ） | AJ154: （ | AM154: ）
B155: 10 | AA155: 年 | AC155: 年 | AE155: 年 | BC155: =SUM(AN155:BB157) -> 0 | BF155: =AJ155+BC155 -> 0
AA157: 月 | AC157: 月 | AE157: 月 | AF157: （ | AI157: ） | AJ157: （ | AM157: ）
B158: 11 | AA158: 年 | AC158: 年 | AE158: 年 | BC158: =SUM(AN158:BB160) -> 0 | BF158: =AJ158+BC158 -> 0
AA160: 月 | AC160: 月 | AE160: 月 | AF160: （ | AI160: ） | AJ160: （ | AM160: ）
B161: 12 | AA161: 年 | AC161: 年 | AE161: 年 | BC161: =SUM(AN161:BB163) -> 0 | BF161: =AJ161+BC161 -> 0
AA163: 月 | AC163: 月 | AE163: 月 | AF163: （ | AI163: ） | AJ163: （ | AM163: ）
B164: 13 | AA164: 年 | AC164: 年 | AE164: 年 | BC164: =SUM(AN164:BB166) -> 0 | BF164: =AJ164+BC164 -> 0
AA166: 月 | AC166: 月 | AE166: 月 | AF166: （ | AI166: ） | AJ166: （ | AM166: ）
B167: 14 | AA167: 年 | AC167: 年 | AE167: 年 | BC167: =SUM(AN167:BB169) -> 0 | BF167: =AJ167+BC167 -> 0
AA169: 月 | AC169: 月 | AE169: 月 | AF169: （ | AI169: ） | AJ169: （ | AM169: ）
B170: 15 | AA170: 年 | AC170: 年 | AE170: 年 | BC170: =SUM(AN170:BB172) -> 0 | BF170: =AJ170+BC170 -> 0
AA172: 月 | AC172: 月 | AE172: 月 | AF172: （ | AI172: ） | AJ172: （ | AM172: ）
B173: 16 | AA173: 年 | AC173: 年 | AE173: 年 | BC173: =SUM(AN173:BB175) -> 0 | BF173: =AJ173+BC173 -> 0
AA175: 月 | AC175: 月 | AE175: 月 | AF175: （ | AI175: ） | AJ175: （ | AM175: ）
B176: 17 | AA176: 年 | AC176: 年 | AE176: 年 | BC176: =SUM(AN176:BB178) -> 0 | BF176: =AJ176+BC176 -> 0
AA178: 月 | AC178: 月 | AE178: 月 | AF178: （ | AI178: ） | AJ178: （ | AM178: ）
B180: （注） | H180: 1． | I180: 本表は、当該年度監査調書提出月現在で記入すること。（年度途中の休職・退職者についてはNo13-(16)に記入してください。）
H181: 2． | I181: 「諸手当」欄には、支給されている全ての手当の名称及び金額を記入すること。「処遇改善Ⅰ」は、処遇改善等加算のうち賃金改善要求分を毎月の諸手当として支給する場合に記入すること。
H182: 3． | I182: 「備考」欄には、法人役員及び施設長と親族関係にある者の続柄（例：「園長の妻」「理事長の長男」「理事の次女」等）、職種変更・正職員化等について記入すること。
H183: 4． | I183: 本園、分園及びその他事業を入力すること。なお、その他事業（放課後児童健全育成事業や地域子育て支援拠点事業）を兼務している場合、備考欄に記載すること。
H184: 5． | I184: 正規職員で短時間勤務の職員等であれば備考に週平均労働時間を記入すること。

Sheet No16
C2: －保育所運営No.１６（分園）－ | BP2: 目次に戻る
C4: 別表３ 非正規職員：保育士（常勤・短時間）の勤務状況及び給与支給状況 | AZ4: （監査調書提出月： | BK4: 月初日現在）
B6: 数式があります → 削 除 厳 禁 → | C6: 番号 | D6: 分園 ・ その他の事業 | G6: 職名 | L6: 氏 名 | Q6: 年齢 | R6: 保育士資格の登録 | S6: 最終 学歴 | V6: 経 験 年 数 | AE6: 給 与 状 況 （本年度監査調書提出月分） | BD6: 前年度 有給休暇 | BG6: 退職共済加入 | BH6: 備考
V8: 現施設経験 | AA8: その他の施設の経験年数B | AC8: 計 A＋B | AE8: 本 俸 （円） | AI8: 諸手当 D (円) | BA8: 合計 | BD8: 取得 日数 | BH8: 親族関係、雇用形態変更時期、職種変更時期、代替職員、兼務の状況、派遣職員、法人内異動等
V9: 採 用(異 動) 年月日 | Y9: 勤 続 年数A | AE9: 前年度 | AG9: 本年度 C 直近月 | AI9: 給与改善 | AL9: 処遇改善Ⅰ | AO9: 管理職 | AR9: 扶養 | AU9: 時間外 | AX9: 小計
G10: 雇用 形態 | J10: 週平均 労働時間 | L10: 担当クラス | AI10: 特殊業務 | AL10: 処遇改善Ⅱ | AO10: 主任加算 | AR10: 住居 | AU10: 市町村補助 | BD10: 所定 日数
AE11: 算定根拠 | AG11: 算定根拠 | AL11: 処遇改善Ⅲ | AO11: 役職加算 | AR11: 通勤 | AU11: その他 | BA11: (C+D)
C12: 0 | D12: 分園 | G12: 保育士 | L12: 例示 | Q12: 32 | R12: 有 | S12: 短大 | V12: H19 | Y12: 8 | Z12: 年 | AA12: 2 | AB12: 年 | AC12: 10 | AD12: 年 | AE12: 155250 | AG12: 162000 | AL12: 10000 | AR12: 6000 | AX12: =SUM(AI12:AW14) -> 94700 | BA12: =AG12+AX12 -> 256700 | BD12: ７ | BG12: ◯
L13: 保育 桜子 | AI13: 7200 | AL13: 39000 | AO13: 15000 | AR13: 10000 | AU13: 3000
G14: 短時間 | J14: 37.5 | L14: うさぎ組 | V14: 2015-04-01 | Y14: 0 | Z14: 月 | AA14: 8 | AB14: 月 | AC14: 8 | AD14: 月 | AE14: 日給 | AF14: 6750 | AG14: 格付表 | AH14: 1-2 | AR14: 4500 | BD14: 40
B15: =IF(G15="","","○") ->  | C15: 1 | Z15: 年 | AB15: 年 | AD15: 年 | AX15: =SUM(AI15:AW17) -> 0 | BA15: =AG15+AX15 -> 0
Z17: 月 | AB17: 月 | AD17: 月
B18: =IF(G18="","","○") ->  | C18: 2 | Z18: 年 | AB18: 年 | AD18: 年 | AX18: =SUM(AI18:AW20) -> 0 | BA18: =AG18+AX18 -> 0
Z20: 月 | AB20: 月 | AD20: 月
B21: =IF(G21="","","○") ->  | C21: 3 | Z21: 年 | AB21: 年 | AD21: 年 | AX21: =SUM(AI21:AW23) -> 0 | BA21: =AG21+AX21 -> 0
Z23: 月 | AB23: 月 | AD23: 月
B24: =IF(G24="","","○") ->  | C24: 4 | Z24: 年 | AB24: 年 | AD24: 年 | AX24: =SUM(AI24:AW26) -> 0 | BA24: =AG24+AX24 -> 0
Z26: 月 | AB26: 月 | AD26: 月
B27: =IF(G27="","","○") ->  | C27: 5 | Z27: 年 | AB27: 年 | AD27: 年 | AX27: =SUM(AI27:AW29) -> 0 | BA27: =AG27+AX27 -> 0
Z29: 月 | AB29: 月 | AD29: 月
B30: =IF(G30="","","○") ->  | C30: 6 | Z30: 年 | AB30: 年 | AD30: 年 | AX30: =SUM(AI30:AW32) -> 0 | BA30: =AG30+AX30 -> 0
Z32: 月 | AB32: 月 | AD32: 月
B33: =IF(G33="","","○") ->  | C33: 7 | Z33: 年 | AB33: 年 | AD33: 年 | AX33: =SUM(AI33:AW35) -> 0 | BA33: =AG33+AX33 -> 0
Z35: 月 | AB35: 月 | AD35: 月
B36: =IF(G36="","","○") ->  | C36: 8 | Z36: 年 | AB36: 年 | AD36: 年 | AX36: =SUM(AI36:AW38) -> 0 | BA36: =AG36+AX36 -> 0
Z38: 月 | AB38: 月 | AD38: 月
B39: =IF(G39="","","○") ->  | C39: 9 | Z39: 年 | AB39: 年 | AD39: 年 | AX39: =SUM(AI39:AW41) -> 0 | BA39: =AG39+AX39 -> 0
Z41: 月 | AB41: 月 | AD41: 月
C43: ○教育及び保育従事者の平均経験年数、平均給与及び有給休暇の状況を記入すること。 | BG43: 給 与 対象人数 | BJ43: 年 休 取得率 | BQ43: ※削除厳禁
A44: ○ | D44: 小計 | G44: =SUM(J17,J20,J23,J26,J29,J32,J35,J38,J41) -> 0 | AE44: =ROUND(SUMIF($B15:$B41,$A44,AE$15:AF$41)/BG44,0) ->  | AG44: =ROUND(SUMIF($B15:$B41,$A44,AG$15:AH$41)/BG44,0) ->  | AL44: =ROUND(SUMIF($B15:$B41,$A44,AL$15:AN$41)/BG44,0) ->  | AX44: =ROUND(SUMIF($B15:$B41,$A44,AX$15:AZ$41)/BG44,0) ->  | BA44: =ROUND(SUMIF($B15:$B41,$A44,BA$15:BC$41)/BG44,0) ->  | BD44: =ROUND(AVERAGE(BD15,BD18,BD21,BD24,BD27,BD30,BD33,BD36,BD39),0) ->  | BG44: =COUNTIF(H15:K41,BT44)+COUNTIF(H15:K41,BT45)+COUNTIF(H15:K41,BT46)+COUNTIF(H15:K41,BT47) -> 0 | BJ44: =ROUND(BD44/BD45*100,1) ->  | BQ44: 主任保育士
BD45: =ROUND(AVERAGE(BD17,BD20,BD23,BD26,BD29,BD32,BD35,BD38,BD41),0) ->  | BQ45: 副主任保育士
F46: （注） | H46: 1． | I46: 本表は、当該年度監査調書提出月現在で記入すること。（年度途中の休職・退職者についてはNo13-(16)に記入してください。） | BQ46: 保育士
H47: 2． | I47: 雇用形態の常勤（正規職員の所定労働時間と同じ労働時間）、短時間（常勤以外の労働時間）を記入すること。 | BQ47: 看護師
H48: 3． | I48: 「諸手当」欄には、支給されている全ての手当の名称及び金額を記入すること。「給与改善費」を「本俸」に込めている場合は記入不用。「処遇改善Ⅰ」は、処遇改善等加算のうち賃金改善要求分を毎月の諸手当として支給する場合に記入すること。
H50: 4． | I50: 「備考」欄には、法人役員及び施設長と親族関係にある者の続柄（例：「園長の妻」「理事長の長男」「理事の次女」等）、職種変更・正職員化等について記入すること。
H51: 5． | I51: 本園、分園及びその他事業を入力すること。なお、その他事業（放課後児童健全育成事業や地域子育て支援拠点事業）を兼務している場合、備考欄に記載すること。
C53: －保育所運営No.１６-２（分園）－
C55: 別表３ 非正規職員：保育士（常勤・短時間）の勤務状況及び給与支給状況 | AZ55: （監査調書提出月： | BK55: 月初日現在）
C57: 番号 | D57: 分園 ・ その他の事業 | G57: 職名 | L57: 氏 名 | Q57: 年齢 | R57: 保育士資格の登録 | S57: 最終 学歴 | V57: 経 験 年 数 | AE57: 給 与 状 況 （本年度監査調書提出月分） | BD57: 前年度 有給休暇 | BG57: 退職共済加入 | BH57: 備考
V59: 現施設経験 | AA59: その他の施設の経験年数B | AC59: 計 A＋B | AE59: 本 俸 （円） | AI59: 諸手当 D (円) | BA59: 合計 | BD59: 取得 日数 | BH59: 親族関係、雇用形態変更時期、職種変更時期、代替職員、兼務の状況、派遣職員、法人内異動等
V60: 採 用(異 動) 年月日 | Y60: 勤 続 年数A | AE60: 前年度 | AG60: 本年度 C 直近月 | AI60: 給与改善 | AL60: 処遇改善Ⅰ | AO60: 管理職 | AR60: 扶養 | AU60: 時間外 | AX60: 小計
G61: 雇用 形態 | J61: 週平均 労働時間 | L61: 担当クラス | AI61: 特殊業務 | AL61: 処遇改善Ⅱ | AO61: 主任加算 | AR61: 住居 | AU61: 市町村補助 | BD61: 所定 日数
AE62: 算定根拠 | AG62: 算定根拠 | AL62: 処遇改善Ⅲ | AO62: 役職加算 | AR62: 通勤 | AU62: その他 | BA62: (C+D)
B63: =IF(G63="","","○") ->  | C63: 10 | Z63: 年 | AB63: 年 | AD63: 年 | AX63: =SUM(AI63:AW65) -> 0 | BA63: =AG63+AX63 -> 0
Z65: 月 | AB65: 月 | AD65: 月
B66: =IF(G66="","","○") ->  | C66: 11 | Z66: 年 | AB66: 年 | AD66: 年 | AX66: =SUM(AI66:AW68) -> 0 | BA66: =AG66+AX66 -> 0
Z68: 月 | AB68: 月 | AD68: 月
B69: =IF(G69="","","○") ->  | C69: 12 | Z69: 年 | AB69: 年 | AD69: 年 | AX69: =SUM(AI69:AW71) -> 0 | BA69: =AG69+AX69 -> 0
Z71: 月 | AB71: 月 | AD71: 月
B72: =IF(G72="","","○") ->  | C72: 13 | Z72: 年 | AB72: 年 | AD72: 年 | AX72: =SUM(AI72:AW74) -> 0 | BA72: =AG72+AX72 -> 0
Z74: 月 | AB74: 月 | AD74: 月
B75: =IF(G75="","","○") ->  | C75: 14 | Z75: 年 | AB75: 年 | AD75: 年 | AX75: =SUM(AI75:AW77) -> 0 | BA75: =AG75+AX75 -> 0
Z77: 月 | AB77: 月 | AD77: 月
B78: =IF(G78="","","○") ->  | C78: 15 | Z78: 年 | AB78: 年 | AD78: 年 | AX78: =SUM(AI78:AW80) -> 0 | BA78: =AG78+AX78 -> 0
Z80: 月 | AB80: 月 | AD80: 月
B81: =IF(G81="","","○") ->  | C81: 16 | Z81: 年 | AB81: 年 | AD81: 年 | AX81: =SUM(AI81:AW83) -> 0 | BA81: =AG81+AX81 -> 0
Z83: 月 | AB83: 月 | AD83: 月
B84: =IF(G84="","","○") ->  | C84: 17 | Z84: 年 | AB84: 年 | AD84: 年 | AX84: =SUM(AI84:AW86) -> 0 | BA84: =AG84+AX84 -> 0
Z86: 月 | AB86: 月 | AD86: 月
B87: =IF(G87="","","○") ->  | C87: 18 | Z87: 年 | AB87: 年 | AD87: 年 | AX87: =SUM(AI87:AW89) -> 0 | BA87: =AG87+AX87 -> 0
Z89: 月 | AB89: 月 | AD89: 月
C91: ○教育及び保育従事者の平均経験年数、平均給与及び有給休暇の状況を記入すること。 | BG91: 給 与 対象人数 | BJ91: 年 休 取得率 | BQ91: ※削除厳禁
A92: ○ | D92: 小計 | G92: =SUM(J65,J68,J71,J74,J77,J80,J83,J86,J89) -> 0 | AE92: =ROUND(SUMIF(C63:C89,B92,AE63:AF89)/BG92,0) ->  | AG92: =ROUND(SUMIF(C63:C89,B92,AG63:AH89)/BG92,0) ->  | AL92: =ROUND(SUMIF(C63:C89,B92,AL63:AN89)/BG92,0) ->  | BA92: =ROUND(SUMIF(C63:C89,B92,BA63:BC89)/BG92,0) ->  | BD92: =ROUND(AVERAGE(BH63,BH66,BH69,BH72,BH75,BH78,BH81,BH84,BH87),0) ->  | BG92: =COUNTIF(H63:K89,BT92)+COUNTIF(H63:K89,BT93)+COUNTIF(H63:K89,BT94)+COUNTIF(H63:K89,BT95) -> 0 | BJ92: =ROUND(BD92/BD93*100,1) ->  | BQ92: 主任保育士
BD93: =ROUND(AVERAGE(BH65,BH68,BH71,BH74,BH77,BH80,BH83,BH86,BH89),0) ->  | BQ93: 副主任保育士
D94: 累計 | G94: =SUM(G44,G92) -> 0 | AE94: =ROUND(SUMIF(C$15:C89,B92,AE$15:AF89)/$BF94,0) ->  | AG94: =ROUND(SUMIF(C$15:C89,B92,AG$15:AH89)/$BF94,0) ->  | AL94: =ROUND(SUMIF(C$15:C89,B92,AL$15:AN89)/$BF94,0) ->  | BA94: =ROUND(SUMIF(C$15:C89,B92,BA$15:BC89)/$BF94,0) ->  | BD94: =ROUND(AVERAGE(BD15,BD18,BD21,BD24,BD27,BD30,BD33,BD36,BD39,BH63,BH66,BH69,BH72,BH75,BH78,BH81,BH84,BH87),0) ->  | BG94: =SUM(BG44,BG92) -> 0 | BJ94: =ROUND(BD94/BD95*100,1) ->  | BQ94: 保育士
BD95: =ROUND(AVERAGE(BD17,BD20,BD23,BD26,BD29,BD32,BD35,BD38,BD41,BH65,BH68,BH71,BH74,BH77,BH80,BH83,BH86,BH89),0) ->  | BQ95: 看護師
F96: （注） | H96: 1． | I96: 本表は、当該年度監査調書提出月現在で記入すること。（年度途中の休職・退職者についてはNo13-(16)に記入してください。） | BQ96: 保育士
H97: 2． | I97: 雇用形態の常勤（正規職員の所定労働時間と同じ労働時間）、短時間（常勤以外の労働時間）を記入すること。 | BQ97: 看護師
H98: 3． | I98: 「諸手当」欄には、支給されている全ての手当の名称及び金額を記入すること。「給与改善費」を「本俸」に込めている場合は記入不用。「処遇改善Ⅰ」は、処遇改善等加算のうち賃金改善要求分を毎月の諸手当として支給する場合に記入すること。
H100: 4． | I100: 「備考」欄には、法人役員及び施設長と親族関係にある者の続柄（例：「園長の妻」「理事長の長男」「理事の次女」等）、職種変更・正職員化等について記入すること。
H101: 5． | I101: 本園、分園及びその他事業を入力すること。なお、その他事業（放課後児童健全育成事業や地域子育て支援拠点事業）を兼務している場合、備考欄に記載すること。
C103: －保育所運営No.１６-３（分園）－
C105: 別表３ 非正規職員：保育士（常勤・短時間）の勤務状況及び給与支給状況 | AZ105: （監査調書提出月： | BK105: 月初日現在）
C107: 番号 | D107: 分園 ・ その他の事業 | G107: 職名 | L107: 氏 名 | Q107: 年齢 | R107: 保育士資格の登録 | S107: 最終 学歴 | V107: 経 験 年 数 | AE107: 給 与 状 況 （本年度監査調書提出月分） | BD107: 前年度 有給休暇 | BG107: 退職共済加入 | BH107: 備考
V109: 現施設経験 | AA109: その他の施設の経験年数B | AC109: 計 A＋B | AE109: 本 俸 （円） | AI109: 諸手当 D (円) | BA109: 合計 | BD109: 取得 日数 | BH109: 親族関係、雇用形態変更時期、職種変更時期、代替職員、兼務の状況、派遣職員、法人内異動等
V110: 採 用(異 動) 年月日 | Y110: 勤 続 年数A | AE110: 前年度 | AG110: 本年度 C 直近月 | AI110: 給与改善 | AL110: 処遇改善Ⅰ | AO110: 管理職 | AR110: 扶養 | AU110: 時間外 | AX110: 小計
G111: 雇用 形態 | J111: 週平均 労働時間 | L111: 担当クラス | AI111: 特殊業務 | AL111: 処遇改善Ⅱ | AO111: 主任加算 | AR111: 住居 | AU111: 市町村補助 | BD111: 所定 日数
AE112: 算定根拠 | AG112: 算定根拠 | AL112: 処遇改善Ⅲ | AO112: 役職加算 | AR112: 通勤 | AU112: その他 | BA112: (C+D)
B113: =IF(G113="","","○") ->  | C113: 19 | Z113: 年 | AB113: 年 | AD113: 年 | AX113: =SUM(AI113:AW115) -> 0 | BA113: =AG113+AX113 -> 0
Z115: 月 | AB115: 月 | AD115: 月
B116: =IF(G116="","","○") ->  | C116: 20 | Z116: 年 | AB116: 年 | AD116: 年 | AX116: =SUM(AI116:AW118) -> 0 | BA116: =AG116+AX116 -> 0
Z118: 月 | AB118: 月 | AD118: 月
B119: =IF(G119="","","○") ->  | C119: 21 | Z119: 年 | AB119: 年 | AD119: 年 | AX119: =SUM(AI119:AW121) -> 0 | BA119: =AG119+AX119 -> 0
Z121: 月 | AB121: 月 | AD121: 月
B122: =IF(G122="","","○") ->  | C122: 22 | Z122: 年 | AB122: 年 | AD122: 年 | AX122: =SUM(AI122:AW124) -> 0 | BA122: =AG122+AX122 -> 0
Z124: 月 | AB124: 月 | AD124: 月
B125: =IF(G125="","","○") ->  | C125: 23 | Z125: 年 | AB125: 年 | AD125: 年 | AX125: =SUM(AI125:AW127) -> 0 | BA125: =AG125+AX125 -> 0
Z127: 月 | AB127: 月 | AD127: 月
B128: =IF(G128="","","○") ->  | C128: 24 | Z128: 年 | AB128: 年 | AD128: 年 | AX128: =SUM(AI128:AW130) -> 0 | BA128: =AG128+AX128 -> 0
Z130: 月 | AB130: 月 | AD130: 月
B131: =IF(G131="","","○") ->  | C131: 25 | Z131: 年 | AB131: 年 | AD131: 年 | AX131: =SUM(AI131:AW133) -> 0 | BA131: =AG131+AX131 -> 0
Z133: 月 | AB133: 月 | AD133: 月
B134: =IF(G134="","","○") ->  | C134: 26 | Z134: 年 | AB134: 年 | AD134: 年 | AX134: =SUM(AI134:AW136) -> 0 | BA134: =AG134+AX134 -> 0
Z136: 月 | AB136: 月 | AD136: 月
B137: =IF(G137="","","○") ->  | C137: 27 | Z137: 年 | AB137: 年 | AD137: 年 | AX137: =SUM(AI137:AW139) -> 0 | BA137: =AG137+AX137 -> 0
Z139: 月 | AB139: 月 | AD139: 月
C141: ○教育及び保育従事者の平均経験年数、平均給与及び有給休暇の状況を記入すること。 | BG141: 給 与 対象人数 | BJ141: 年 休 取得率
A142: ○ | D142: 小計 | G142: =SUM(J115,J118,J121,J124,J127,J130,J133,J136,J139) -> 0 | AE142: =ROUND(SUMIF(C113:C139,B142,AE113:AF139)/BG142,0) ->  | AG142: =ROUND(SUMIF(C113:C139,B142,AG113:AH139)/BG142,0) ->  | AL142: =ROUND(SUMIF(C113:C139,B142,AL113:AN139)/BG142,0) ->  | BA142: =ROUND(SUMIF(C113:C139,B142,BA113:BC139)/BG142,0) ->  | BD142: =ROUND(AVERAGE(BH113,BH116,BH119,BH122,BH125,BH128,BH131,BH134,BH137),0) ->  | BG142: =COUNTIF(H113:K139,BQ142)+COUNTIF(H113:K139,BQ143)+COUNTIF(H113:K139,BQ144)+COUNTIF(H113:K139,BQ145) -> 0 | BJ142: =ROUND(BD142/BD143*100,1) -> 
BD143: =ROUND(AVERAGE(BH115,BH118,BH121,BH124,BH127,BH130,BH133,BH136,BH139),0) -> 
D144: 累計 | G144: =SUM(G94,G142) -> 0 | AE144: =ROUND(SUMIF(C$15:C139,B142,AE$15:AF139)/$BF144,0) ->  | AG144: =ROUND(SUMIF(C$15:C139,B142,AG$15:AH139)/$BF144,0) ->  | AL144: =ROUND(SUMIF(C$15:C139,B142,AL$15:AN139)/$BF144,0) ->  | BA144: =ROUND(SUMIF(C$15:C139,B142,BA$15:BC139)/$BF144,0) ->  | BD144: =ROUND(AVERAGE(BD15,BD18,BD21,BD24,BD27,BD30,BD33,BD36,BD39,BH63,BH66,BH69,BH72,BH75,BH78,BH81,BH84,BH87,BH113,BH116,BH119,BH122,BH125,BH128,BH131,BH134,BH137),0) ->  | BG144: =SUM(BG94,BG142) -> 0 | BJ144: =ROUND(BD144/BD145*100,1) -> 
BD145: =ROUND(AVERAGE(BD17,BD20,BD23,BD26,BD29,BD32,BD35,BD38,BD41,BH65,BH68,BH71,BH74,BH77,BH80,BH83,BH86,BH89,BH115,BH118,BH121,BH124,BH127,BH130,BH133,BH136,BH139),0) -> 
F146: （注） | H146: 1． | I146: 本表は、当該年度監査調書提出月現在で記入すること。（年度途中の休職・退職者についてはNo13-(16)に記入してください。）
H147: 2． | I147: 雇用形態の常勤（正規職員の所定労働時間と同じ労働時間）、短時間（常勤以外の労働時間）を記入すること。
H148: 3． | I148: 「諸手当」欄には、支給されている全ての手当の名称及び金額を記入すること。「給与改善費」を「本俸」に込めている場合は記入不用。「処遇改善Ⅰ」は、処遇改善等加算のうち賃金改善要求分を毎月の諸手当として支給する場合に記入すること。
H150: 4． | I150: 「備考」欄には、法人役員及び施設長と親族関係にある者の続柄（例：「園長の妻」「理事長の長男」「理事の次女」等）、職種変更・正職員化等について記入すること。
H151: 5． | I151: 本園、分園及びその他事業を入力すること。なお、その他事業（放課後児童健全育成事業や地域子育て支援拠点事業）を兼務している場合、備考欄に記載すること。
C153: －保育所運営No.１６-４（分園）－
C155: 別表３ 非正規職員：保育士（常勤・短時間）の勤務状況及び給与支給状況 | AZ155: （監査調書提出月： | BK155: 月初日現在）
C157: 番号 | D157: 分園 ・ その他の事業 | G157: 職名 | L157: 氏 名 | Q157: 年齢 | R157: 保育士資格の登録 | S157: 最終 学歴 | V157: 経 験 年 数 | AE157: 給 与 状 況 （本年度監査調書提出月分） | BD157: 前年度 有給休暇 | BG157: 退職共済加入 | BH157: 備考
V159: 現施設経験 | AA159: その他の施設の経験年数B | AC159: 計 A＋B | AE159: 本 俸 （円） | AI159: 諸手当 D (円) | BA159: 合計 | BD159: 取得 日数 | BH159: 親族関係、雇用形態変更時期、職種変更時期、代替職員、兼務の状況、派遣職員、法人内異動等
V160: 採 用(異 動) 年月日 | Y160: 勤 続 年数A | AE160: 前年度 | AG160: 本年度 C 直近月 | AI160: 給与改善 | AL160: 処遇改善Ⅰ | AO160: 管理職 | AR160: 扶養 | AU160: 時間外 | AX160: 小計
G161: 雇用 形態 | J161: 週平均 労働時間 | L161: 担当クラス | AI161: 特殊業務 | AL161: 処遇改善Ⅱ | AO161: 主任加算 | AR161: 住居 | AU161: 市町村補助 | BD161: 所定 日数
AE162: 算定根拠 | AG162: 算定根拠 | AL162: 処遇改善Ⅲ | AO162: 役職加算 | AR162: 通勤 | AU162: その他 | BA162: (C+D)
B163: =IF(G163="","","○") ->  | C163: 28 | Z163: 年 | AB163: 年 | AD163: 年 | AX163: =SUM(AI163:AW165) -> 0 | BA163: =AG163+AX163 -> 0
Z165: 月 | AB165: 月 | AD165: 月
B166: =IF(G166="","","○") ->  | C166: 29 | Z166: 年 | AB166: 年 | AD166: 年 | AL166: =SUM(AI166:AK168) -> 0 | AX166: =SUM(AI166:AW168) -> 0 | BA166: =AG166+AX166 -> 0
Z168: 月 | AB168: 月 | AD168: 月
B169: =IF(G169="","","○") ->  | C169: 30 | Z169: 年 | AB169: 年 | AD169: 年 | AL169: =SUM(AI169:AK171) -> 0 | AX169: =SUM(AI169:AW171) -> 0 | BA169: =AG169+AX169 -> 0
Z171: 月 | AB171: 月 | AD171: 月
B172: =IF(G172="","","○") ->  | C172: 31 | Z172: 年 | AB172: 年 | AD172: 年 | AL172: =SUM(AI172:AK174) -> 0 | AX172: =SUM(AI172:AW174) -> 0 | BA172: =AG172+AX172 -> 0
Z174: 月 | AB174: 月 | AD174: 月
B175: =IF(G175="","","○") ->  | C175: 32 | Z175: 年 | AB175: 年 | AD175: 年 | AL175: =SUM(AI175:AK177) -> 0 | AX175: =SUM(AI175:AW177) -> 0 | BA175: =AG175+AX175 -> 0
Z177: 月 | AB177: 月 | AD177: 月
B178: =IF(G178="","","○") ->  | C178: 33 | Z178: 年 | AB178: 年 | AD178: 年 | AL178: =SUM(AI178:AK180) -> 0 | AX178: =SUM(AI178:AW180) -> 0 | BA178: =AG178+AX178 -> 0
Z180: 月 | AB180: 月 | AD180: 月
B181: =IF(G181="","","○") ->  | C181: 34 | Z181: 年 | AB181: 年 | AD181: 年 | AL181: =SUM(AI181:AK183) -> 0 | AX181: =SUM(AI181:AW183) -> 0 | BA181: =AG181+AX181 -> 0
Z183: 月 | AB183: 月 | AD183: 月
B184: =IF(G184="","","○") ->  | C184: 35 | Z184: 年 | AB184: 年 | AD184: 年 | AL184: =SUM(AI184:AK186) -> 0 | AX184: =SUM(AI184:AW186) -> 0 | BA184: =AG184+AX184 -> 0
Z186: 月 | AB186: 月 | AD186: 月
B187: =IF(G187="","","○") ->  | C187: 36 | Z187: 年 | AB187: 年 | AD187: 年 | AL187: =SUM(AI187:AK189) -> 0 | AX187: =SUM(AI187:AW189) -> 0 | BA187: =AG187+AX187 -> 0
Z189: 月 | AB189: 月 | AD189: 月
C191: ○教育及び保育従事者の平均経験年数、平均給与及び有給休暇の状況を記入すること。 | BG191: 給 与 対象人数 | BJ191: 年 休 取得率
A192: ○ | D192: 小計 | G192: =SUM(J165,J168,J171,J174,J177,J180,J183,J186,J189) -> 0 | AE192: =ROUND(SUMIF(C163:C189,B192,AE163:AF189)/BG192,0) ->  | AG192: =ROUND(SUMIF(C163:C189,B192,AG163:AH189)/BG192,0) ->  | AL192: =ROUND(SUM(AL163:AN189)/BG192,0) ->  | BA192: =ROUND(SUM(BD163:BG189)/BG192,0) ->  | BD192: =ROUND(AVERAGE(BH163,BH166,BH169,BH172,BH175,BH178,BH181,BH184,BH187),0) ->  | BG192: =COUNTIF(H163:K189,BQ192)+COUNTIF(H163:K189,BQ193)+COUNTIF(H163:K189,BQ194)+COUNTIF(H163:K189,BQ195) -> 0 | BJ192: =ROUND(BD192/BD193*100,1) -> 
BD193: =ROUND(AVERAGE(BH165,BH168,BH171,BH174,BH177,BH180,BH183,BH186,BH189),0) -> 
D194: 累計 | G194: =SUM(G44,G92,G142,G192) -> 0 | AE194: =ROUND(SUMIF(C$15:C189,B192,AE$15:AF189)/$BF194,0) ->  | AG194: =ROUND(SUMIF(C$15:C189,B192,AG$15:AH189)/$BF194,0) ->  | AL194: =ROUND(SUMIF(C$15:C189,B192,AL$15:AN189)/$BF194,0) ->  | BA194: =ROUND(SUMIF(C$15:C189,B192,BD$15:BG189)/$BF194,0) ->  | BD194: =ROUND(AVERAGE(BD15,BD18,BD21,BD24,BD27,BD30,BD33,BD36,BD39,BH63,BH66,BH69,BH72,BH75,BH78,BH81,BH84,BH87,BH113,BH116,BH119,BH122,BH125,BH128,BH131,BH134,BH137,BH163,BH166,BH169,BH172,BH175,BH178,BH181,BH184,BH187),0) ->  | BG194: =SUM(BG144,BG192) -> 0 | BJ194: =ROUND(BD194/BD195*100,1) -> 
BD195: =ROUND(AVERAGE(BD17,BD20,BD23,BD26,BD29,BD32,BD35,BD38,BD41,BH65,BH68,BH71,BH74,BH77,BH80,BH83,BH86,BH89,BH115,BH118,BH121,BH124,BH127,BH130,BH133,BH136,BH139,BH165,BH168,BH171,BH174,BH177,BH180,BH183,BH186,BH189),0) -> 
F196: （注） | H196: 1． | I196: 本表は、当該年度監査調書提出月現在で記入すること。（年度途中の休職・退職者についてはNo13-(16)に記入してください。）
H197: 2． | I197: 雇用形態の常勤（正規職員の所定労働時間と同じ労働時間）、短時間（常勤以外の労働時間）を記入すること。
H198: 3． | I198: 「諸手当」欄には、支給されている全ての手当の名称及び金額を記入すること。「給与改善費」を「本俸」に込めている場合は記入不用。「処遇改善Ⅰ」は、処遇改善等加算のうち賃金改善要求分を毎月の諸手当として支給する場合に記入すること。
H200: 4． | I200: 「備考」欄には、法人役員及び施設長と親族関係にある者の続柄（例：「園長の妻」「理事長の長男」「理事の次女」等）、職種変更・正職員化等について記入すること。
H201: 5． | I201: 本園、分園及びその他事業を入力すること。なお、その他事業（放課後児童健全育成事業や地域子育て支援拠点事業）を兼務している場合、備考欄に記載すること。

Sheet N017
B2: －保育所運営No.１７（分園）－ | BR2: 目次に戻る
B4: 別表４ 非正規職員：保育士以外の職員（常勤・短時間）の勤務状況及び給与支給状況 | BA4: （監査調書提出月： | BL4: 月初日現在）
B6: 番号 | C6: 分園 ・ その他の事業 | F6: 職名 | J6: 氏 名 | O6: 年齢 | P6: 保育士資格の登録 | Q6: 資格の 有 無 | T6: 最終 学歴 | W6: 経 験 年 数 | AF6: 給 与 状 況 （本年度監査調書提出月分） | BE6: 前年度 有給休暇 | BH6: 退職共済加入 | BI6: 備考
W8: 現施設経験 | AB8: その他の施設の経験年数B | AD8: 計 A＋B | AF8: 本 俸 （円） | AJ8: 諸手当 D (円) | BB8: 合計 | BE8: 取得 日数 | BI8: 親族関係、雇用形態変更時期、職種変更時期、代替職員、兼務の状況、派遣職員、法人内異動等
Q9: 資格の種 類 | W9: 採 用 | Z9: 勤 続 年数A | AF9: 前年度 | AH9: 本年度 C 直近月 | AJ9: 給与改善 | AM9: 処遇改善Ⅰ | AP9: 管理職 | AS9: 扶養 | AV9: 時間外 | AY9: 小計
F10: 雇用 形態 | H10: 週平均 労働 時間 | W10: (異 動) | AJ10: 特殊業務 | AM10: 処遇改善Ⅱ | AP10: 主任加算 | AS10: 住居 | AV10: 市町村補助 | BE10: 所定 日数
W11: 年月日 | AF11: 算定根拠 | AH11: 算定根拠 | AM11: 処遇改善Ⅲ | AP11: 役職加算 | AS11: 通勤 | AV11: その他 | BB11: (C+D)
B12: 0 | C12: 分園 | F12: 事務員 | J12: 例示 | O12: 28 | P12: 有 | Q12: 有 | T12: 大学 | W12: H23 | Z12: 4 | AA12: 年 | AB12: 0 | AC12: 年 | AD12: 4 | AE12: 年 | AF12: 156400 | AH12: 162000 | AM12: 6500 | AV12: =850*1.25*6 -> 6375 | AY12: =SUM(AJ12:AX14) -> 22375 | BB12: =AH12+AY12 -> 184375 | BE12: ７ | BH12: ◯
J13: 保育 太郎 | Q13: 簿記1級 | AV13: 3000
F14: 短時間 | H14: 40 | W14: 2015-02-01 | Z14: 2 | AA14: 月 | AB14: 0 | AC14: 月 | AD14: 2 | AE14: 月 | AF14: 時給 | AG14: 850 | AH14: 月給 | AS14: 6500 | BE14: 40
B15: 1 | AA15: 年 | AC15: 年 | AE15: 年 | AY15: =SUM(AJ15:AX17) -> 0 | BB15: =AH15+AY15 -> 0
AA17: 月 | AC17: 月 | AE17: 月
B18: 2 | AA18: 年 | AC18: 年 | AE18: 年 | AY18: =SUM(AJ18:AX20) -> 0 | BB18: =AH18+AY18 -> 0
AA20: 月 | AC20: 月 | AE20: 月
B21: 3 | AA21: 年 | AC21: 年 | AE21: 年 | AY21: =SUM(AJ21:AX23) -> 0 | BB21: =AH21+AY21 -> 0
AA23: 月 | AC23: 月 | AE23: 月
B24: 4 | AA24: 年 | AC24: 年 | AE24: 年 | AY24: =SUM(AJ24:AX26) -> 0 | BB24: =AH24+AY24 -> 0
AA26: 月 | AC26: 月 | AE26: 月
B27: 5 | AA27: 年 | AC27: 年 | AE27: 年 | AY27: =SUM(AJ27:AX29) -> 0 | BB27: =AH27+AY27 -> 0
AA29: 月 | AC29: 月 | AE29: 月
B30: 6 | AA30: 年 | AC30: 年 | AE30: 年 | AY30: =SUM(AJ30:AX32) -> 0 | BB30: =AH30+AY30 -> 0
AA32: 月 | AC32: 月 | AE32: 月
B33: 7 | AA33: 年 | AC33: 年 | AE33: 年 | AY33: =SUM(AJ33:AX35) -> 0 | BB33: =AH33+AY33 -> 0
AA35: 月 | AC35: 月 | AE35: 月
B36: 8 | AA36: 年 | AC36: 年 | AE36: 年 | AY36: =SUM(AJ36:AX38) -> 0 | BB36: =AH36+AY36 -> 0
AA38: 月 | AC38: 月 | AE38: 月
E40: （注） | G40: 1． | H40: 本表は、当該年度監査調書提出月現在で記入すること。（年度途中の休職・退職者についてはNo13-(16)に記入してください。）
G41: 2． | H41: 雇用形態の常勤（正規職員の所定労働時間と同じ労働時間）、短時間（常勤以外の労働時間）を記入すること。
G42: 3． | H42: 「諸手当」欄には、支給されている全ての手当の名称及び金額を記入すること。「処遇改善Ⅰ」は、処遇改善等加算のうち賃金改善要求分を毎月の諸手当として支給する場合に記入すること。
G43: 4． | H43: 「備考」欄には、法人役員及び施設長と親族関係にある者の続柄（例：「園長の妻」「理事長の長男」「理事の次女」等）、職種変更・正職員化等について記入すること。
G44: 5． | H44: 本園、分園及びその他事業を入力すること。なお、その他事業（放課後児童健全育成事業や地域子育て支援拠点事業）を兼務している場合、備考欄に記載すること。
B46: －保育所運営No.１７-２（分園）－
B48: 別表４ 非正規職員：保育士以外の職員（常勤・短時間）の勤務状況及び給与支給状況 | BA48: （監査調書提出月： | BL48: 月初日現在）
B50: 番号 | C50: 分園 ・ その他の事業 | F50: 職名 | J50: 氏 名 | O50: 年齢 | P50: 保育士資格の登録 | Q50: 資格の 有 無 | T50: 最終 学歴 | W50: 経 験 年 数 | AF50: 給 与 状 況 （本年度監査調書提出月分） | BE50: 前年度 有給休暇 | BH50: 退職共済加入 | BI50: 備考
W52: 現施設経験 | AB52: その他の施設の経験年数B | AD52: 計 A＋B | AF52: 本 俸 （円） | AJ52: 諸手当 D (円) | BB52: 合計 | BE52: 取得 日数 | BI52: 親族関係、雇用形態変更時期、職種変更時期、代替職員、兼務の状況、派遣職員、法人内異動等
Q53: 資格の種 類 | W53: 採 用 (異 動) 年月日 | Z53: 勤 続 年数A | AF53: 前年度 | AH53: 本年度 C 直近月 | AJ53: 給与改善 | AM53: 処遇改善Ⅰ | AP53: 管理職 | AS53: 扶養 | AV53: 時間外 | AY53: 小計
F54: 雇用 形態 | H54: 週平均 労働 時間 | AJ54: 特殊業務 | AM54: 処遇改善Ⅱ | AP54: 主任加算 | AS54: 住居 | AV54: 市町村補助 | BE54: 所定 日数
AF55: 算定根拠 | AH55: 算定根拠 | AM55: 処遇改善Ⅲ | AP55: 役職加算 | AS55: 通勤 | AV55: その他 | BB55: (C+D)
B56: 9 | AA56: 年 | AC56: 年 | AE56: 年 | AY56: =SUM(AJ56:AX58) -> 0 | BB56: =AH56+AY56 -> 0
AA58: 月 | AC58: 月 | AE58: 月
B59: 10 | AA59: 年 | AC59: 年 | AE59: 年 | AY59: =SUM(AJ59:AX61) -> 0 | BB59: =AH59+AY59 -> 0
AA61: 月 | AC61: 月 | AE61: 月
B62: 11 | AA62: 年 | AC62: 年 | AE62: 年 | AY62: =SUM(AJ62:AX64) -> 0 | BB62: =AH62+AY62 -> 0
AA64: 月 | AC64: 月 | AE64: 月
B65: 12 | AA65: 年 | AC65: 年 | AE65: 年 | AY65: =SUM(AJ65:AX67) -> 0 | BB65: =AH65+AY65 -> 0
AA67: 月 | AC67: 月 | AE67: 月
B68: 13 | AA68: 年 | AC68: 年 | AE68: 年 | AY68: =SUM(AJ68:AX70) -> 0 | BB68: =AH68+AY68 -> 0
AA70: 月 | AC70: 月 | AE70: 月
B71: 14 | AA71: 年 | AC71: 年 | AE71: 年 | AY71: =SUM(AJ71:AX73) -> 0 | BB71: =AH71+AY71 -> 0
AA73: 月 | AC73: 月 | AE73: 月
B74: 15 | AA74: 年 | AC74: 年 | AE74: 年 | AY74: =SUM(AJ74:AX76) -> 0 | BB74: =AH74+AY74 -> 0
AA76: 月 | AC76: 月 | AE76: 月
B77: 16 | AA77: 年 | AC77: 年 | AE77: 年 | AY77: =SUM(AJ77:AX79) -> 0 | BB77: =AH77+AY77 -> 0
AA79: 月 | AC79: 月 | AE79: 月
B80: 17 | AA80: 年 | AC80: 年 | AE80: 年 | AY80: =SUM(AJ80:AX82) -> 0 | BB80: =AH80+AY80 -> 0
AA82: 月 | AC82: 月 | AE82: 月
B83: 18 | AA83: 年 | AC83: 年 | AE83: 年 | AY83: =SUM(AJ83:AX85) -> 0 | BB83: =AH83+AY83 -> 0
AA85: 月 | AC85: 月 | AE85: 月
E87: （注） | G87: 1． | H87: 本表は、当該年度監査調書提出月現在で記入すること。（年度途中の休職・退職者についてはNo13-(16)に記入してください。）
G88: 2． | H88: 雇用形態の常勤（正規職員の所定労働時間と同じ労働時間）、短時間（常勤以外の労働時間）を記入すること。
G89: 3． | H89: 「諸手当」欄には、支給されている全ての手当の名称及び金額を記入すること。「処遇改善Ⅰ」は、処遇改善等加算のうち賃金改善要求分を毎月の諸手当として支給する場合に記入すること。
G90: 4． | H90: 「備考」欄には、法人役員及び施設長と親族関係にある者の続柄（例：「園長の妻」「理事長の長男」「理事の次女」等）、職種変更・正職員化等について記入すること。
G91: 5． | H91: 本園、分園及びその他事業を入力すること。なお、その他事業（放課後児童健全育成事業や地域子育て支援拠点事業）を兼務している場合、備考欄に記載すること。
B93: －保育所運営No.１７-３（分園）－
B95: 別表４ 非正規職員：保育士以外の職員（常勤・短時間）の勤務状況及び給与支給状況 | BA95: （監査調書提出月： | BL95: 月初日現在）
B97: 番号 | C97: 分園 ・ その他の事業 | F97: 職名 | J97: 氏 名 | O97: 年齢 | P97: 保育士資格の登録 | Q97: 資格の 有 無 | T97: 最終 学歴 | W97: 経 験 年 数 | AF97: 給 与 状 況 （本年度監査調書提出月分） | BE97: 前年度 有給休暇 | BH97: 退職共済加入 | BI97: 備考
W99: 現施設経験 | AB99: その他の施設の経験年数B | AD99: 計 A＋B | AF99: 本 俸 （円） | AJ99: 諸手当 D (円) | BB99: 合計 | BE99: 取得 日数 | BI99: 親族関係、雇用形態変更時期、職種変更時期、代替職員、兼務の状況、派遣職員、法人内異動等
Q100: 資格の種 類 | W100: 採 用 (異 動) 年月日 | Z100: 勤 続 年数A | AF100: 前年度 | AH100: 本年度 C 直近月 | AJ100: 給与改善 | AM100: 処遇改善Ⅰ | AP100: 管理職 | AS100: 扶養 | AV100: 時間外 | AY100: 小計
F101: 雇用 形態 | H101: 週平均 労働 時間 | AJ101: 特殊業務 | AM101: 処遇改善Ⅱ | AP101: 主任加算 | AS101: 住居 | AV101: 市町村補助 | BE101: 所定 日数
AF102: 算定根拠 | AH102: 算定根拠 | AM102: 処遇改善Ⅲ | AP102: 役職加算 | AS102: 通勤 | AV102: その他 | BB102: (C+D)
B103: 19 | AA103: 年 | AC103: 年 | AE103: 年 | AY103: =SUM(AJ103:AX105) -> 0 | BB103: =AH103+AY103 -> 0
AA105: 月 | AC105: 月 | AE105: 月
B106: 20 | AA106: 年 | AC106: 年 | AE106: 年 | AY106: =SUM(AJ106:AX108) -> 0 | BB106: =AH106+AY106 -> 0
AA108: 月 | AC108: 月 | AE108: 月
B109: 21 | AA109: 年 | AC109: 年 | AE109: 年 | AY109: =SUM(AJ109:AX111) -> 0 | BB109: =AH109+AY109 -> 0
AA111: 月 | AC111: 月 | AE111: 月
B112: 22 | AA112: 年 | AC112: 年 | AE112: 年 | AY112: =SUM(AJ112:AX114) -> 0 | BB112: =AH112+AY112 -> 0
AA114: 月 | AC114: 月 | AE114: 月
B115: 23 | AA115: 年 | AC115: 年 | AE115: 年 | AY115: =SUM(AJ115:AX117) -> 0 | BB115: =AH115+AY115 -> 0
AA117: 月 | AC117: 月 | AE117: 月
B118: 24 | AA118: 年 | AC118: 年 | AE118: 年 | AY118: =SUM(AJ118:AX120) -> 0 | BB118: =AH118+AY118 -> 0
AA120: 月 | AC120: 月 | AE120: 月
B121: 25 | AA121: 年 | AC121: 年 | AE121: 年 | AY121: =SUM(AJ121:AX123) -> 0 | BB121: =AH121+AY121 -> 0
AA123: 月 | AC123: 月 | AE123: 月
B124: 26 | AA124: 年 | AC124: 年 | AE124: 年 | AY124: =SUM(AJ124:AX126) -> 0 | BB124: =AH124+AY124 -> 0
AA126: 月 | AC126: 月 | AE126: 月
B127: 27 | AA127: 年 | AC127: 年 | AE127: 年 | AY127: =SUM(AJ127:AX129) -> 0 | BB127: =AH127+AY127 -> 0
AA129: 月 | AC129: 月 | AE129: 月
B130: 28 | AA130: 年 | AC130: 年 | AE130: 年 | AY130: =SUM(AJ130:AX132) -> 0 | BB130: =AH130+AY130 -> 0
AA132: 月 | AC132: 月 | AE132: 月
E134: （注） | G134: 1． | H134: 本表は、当該年度監査調書提出月現在で記入すること。（年度途中の休職・退職者についてはNo13-(16)に記入してください。）
G135: 2． | H135: 雇用形態の常勤（正規職員の所定労働時間と同じ労働時間）、短時間（常勤以外の労働時間）を記入すること。
G136: 3． | H136: 「諸手当」欄には、支給されている全ての手当の名称及び金額を記入すること。「処遇改善Ⅰ」は、処遇改善等加算のうち賃金改善要求分を毎月の諸手当として支給する場合に記入すること。
G137: 4． | H137: 「備考」欄には、法人役員及び施設長と親族関係にある者の続柄（例：「園長の妻」「理事長の長男」「理事の次女」等）、職種変更・正職員化等について記入すること。
G138: 5． | H138: 本園、分園及びその他事業を入力すること。なお、その他事業（放課後児童健全育成事業や地域子育て支援拠点事業）を兼務している場合、備考欄に記載すること。
B140: －保育所運営No.１７-４（分園）－
B142: 別表４ 非正規職員：保育士以外の職員（常勤・短時間）の勤務状況及び給与支給状況 | BA142: （監査調書提出月： | BL142: 月初日現在）
B144: 番号 | C144: 分園 ・ その他の事業 | F144: 職名 | J144: 氏 名 | O144: 年齢 | P144: 保育士資格の登録 | Q144: 資格の 有 無 | T144: 最終 学歴 | W144: 経 験 年 数 | AF144: 給 与 状 況 （本年度監査調書提出月分） | BE144: 前年度 有給休暇 | BH144: 退職共済加入 | BI144: 備考
W146: 現施設経験 | AB146: その他の施設の経験年数B | AD146: 計 A＋B | AF146: 本 俸 （円） | AJ146: 諸手当 D (円) | BB146: 合計 | BE146: 取得 日数 | BI146: 親族関係、雇用形態変更時期、職種変更時期、代替職員、兼務の状況、派遣職員、法人内異動等
Q147: 資格の種 類 | W147: 採 用 (異 動) 年月日 | Z147: 勤 続 年数A | AF147: 前年度 | AH147: 本年度 C 直近月 | AJ147: 給与改善 | AM147: 処遇改善Ⅰ | AP147: 管理職 | AS147: 扶養 | AV147: 時間外 | AY147: 小計
F148: 雇用 形態 | H148: 週平均 労働時間 | AJ148: 特殊業務 | AM148: 処遇改善Ⅱ | AP148: 主任加算 | AS148: 住居 | AV148: 市町村補助 | BE148: 所定 日数
AF149: 算定根拠 | AH149: 算定根拠 | AM149: 処遇改善Ⅲ | AP149: 役職加算 | AS149: 通勤 | AV149: その他 | BB149: (C+D)
B150: 29 | AA150: 年 | AC150: 年 | AE150: 年 | AY150: =SUM(AJ150:AX152) -> 0 | BB150: =AH150+AY150 -> 0
AA152: 月 | AC152: 月 | AE152: 月
B153: 30 | AA153: 年 | AC153: 年 | AE153: 年 | AY153: =SUM(AJ153:AX155) -> 0 | BB153: =AH153+AY153 -> 0
AA155: 月 | AC155: 月 | AE155: 月
B156: 31 | AA156: 年 | AC156: 年 | AE156: 年 | AY156: =SUM(AJ156:AX158) -> 0 | BB156: =AH156+AY156 -> 0
AA158: 月 | AC158: 月 | AE158: 月
B159: 32 | AA159: 年 | AC159: 年 | AE159: 年 | AY159: =SUM(AJ159:AX161) -> 0 | BB159: =AH159+AY159 -> 0
AA161: 月 | AC161: 月 | AE161: 月
B162: 33 | AA162: 年 | AC162: 年 | AE162: 年 | AY162: =SUM(AJ162:AX164) -> 0 | BB162: =AH162+AY162 -> 0
AA164: 月 | AC164: 月 | AE164: 月
B165: 34 | AA165: 年 | AC165: 年 | AE165: 年 | AY165: =SUM(AJ165:AX167) -> 0 | BB165: =AH165+AY165 -> 0
AA167: 月 | AC167: 月 | AE167: 月
B168: 35 | AA168: 年 | AC168: 年 | AE168: 年 | AY168: =SUM(AJ168:AX170) -> 0 | BB168: =AH168+AY168 -> 0
AA170: 月 | AC170: 月 | AE170: 月
B171: 36 | AA171: 年 | AC171: 年 | AE171: 年 | AY171: =SUM(AJ171:AX173) -> 0 | BB171: =AH171+AY171 -> 0
AA173: 月 | AC173: 月 | AE173: 月
B174: 37 | AA174: 年 | AC174: 年 | AE174: 年 | AY174: =SUM(AJ174:AX176) -> 0 | BB174: =AH174+AY174 -> 0
AA176: 月 | AC176: 月 | AE176: 月
B177: 38 | AA177: 年 | AC177: 年 | AE177: 年 | AY177: =SUM(AJ177:AX179) -> 0 | BB177: =AH177+AY177 -> 0
AA179: 月 | AC179: 月 | AE179: 月
E181: （注） | G181: 1． | H181: 本表は、当該年度監査調書提出月現在で記入すること。（年度途中の休職・退職者についてはNo13-(16)に記入してください。）
G182: 2． | H182: 雇用形態の常勤（正規職員の所定労働時間と同じ労働時間）、短時間（常勤以外の労働時間）を記入すること。
G183: 3． | H183: 「諸手当」欄には、支給されている全ての手当の名称及び金額を記入すること。「処遇改善Ⅰ」は、処遇改善等加算のうち賃金改善要求分を毎月の諸手当として支給する場合に記入すること。
G184: 4． | H184: 「備考」欄には、法人役員及び施設長と親族関係にある者の続柄（例：「園長の妻」「理事長の長男」「理事の次女」等）、職種変更・正職員化等について記入すること。
G185: 5． | H185: 本園、分園及びその他事業を入力すること。なお、その他事業（放課後児童健全育成事業や地域子育て支援拠点事業）を兼務している場合、備考欄に記載すること。

Sheet No24
C2: －保育所運営No.２４（分園）－ | AP2: 目次に戻る
C4: 給食業務関係 | AB4: 特 記 事 項 | AP4: チェック項目(参考：印刷不用）
D6: (7) 調理室及び調理従事者は清潔にしているか。 | AP6: ・大量調理施設衛生管理マニュアル(H9.3.24付け衛食第85号別添)
E7: （該当するものを全てチェックすること） | AQ7: Ⅱ 重要管理事項 ５その他 (2)施設設備の管理 ② 施設におけるねずみ、昆虫等の発生状況を１月に１回以上巡回点検するとともに、ねずみ、昆虫の駆除を半年に１回以上（発生を確認した時にはその都度）実施し、その実施記録を１年間保管すること。また、施設及びその周囲は、維持管理を適切に行うことにより、常に良好な状態に保ち、ねずみや昆虫の繁殖場所の排除に努めること。 なお、殺そ剤又は殺虫剤を使用する場合には、食品を汚染しないようその取扱いに十分注意すること。
D8: ① 施設について | AB8: ・ | AC8: 大量調理施設衛生管理マニュアル
AC9: ねずみ、昆虫の駆除を半年に１回以上(発生を確認した時にはその都度)実施し、その実施記録を１年間保管すること。
D12: ② 調理従事者について | AP12: ・学校給食衛生管理基準(H21.4.1 文部科学省告示第64号)
AB13: ・ | AC13: 「児童福祉施設等における衛生管理の強化について」(S39.8.1児発第669号) | AP13: ・HACCPの考え方を取り入れた衛生管理のための手引書（委託給食事業者）令和3年5月初版
AQ14: /公益社団法人日本給食サービス協会・公益社団法人日本メディカル給食協会
D16: (8) 調理室内外の特別清掃は、 | T16: 月 | X16: 回 | AB16: ※ | AC16: 日常清掃は含めない | AX16: このシートは、給食設備を有する分園を設置している保育所は、中心園、分園ごとに作成してください。
D18: (9) 食品及び食器等の消毒・保管は、適切に行っているか。
AC19: ＜温度の目安＞ ・冷蔵庫：5℃以下 ・冷凍庫-20℃以下
D21: (10) 冷蔵庫の温度は、 | N21: ℃ | P21: ・冷凍庫の温度は、 | Y21: ℃
AB22: ・ | AC22: 児童福祉施設等における衛生管理の改善及び食中毒発生の予防について（平成9年6月30日児企第16号）
D23: (11) 検食を行っているか。
D25: ＜「いる」場合＞ | AB25: ※ | AC25: 食事時間前に、調理従事者以外の者が実施すること。
D26: ① 検食時間・検食者の職氏名・検食記録の有無を記入すること。
I27: 検食時間 | L27: 食事開始時間 | O27: 職 名 ・氏 名 | AI27: 検食記録の有無 | AQ27: ・文部科学省告示第六十四号
E28: おやつ | J28: ： | M28: ： | AQ28: 学校給食法（昭和二十九年法律第百六十号）第九条第一項に基づく、学校給食衛生管理基準
E29: 給食 | J29: ： | M29: ： | AQ29: 第３ 調理の過程等における衛生管理に係る衛生管理基準
E30: おやつ | J30: ： | M30: ： | AQ30: （６）検食及び保存食等
AR31: 検食
D32: (12) 保存食は50ｇ程度、-20℃以下で2週間以上冷凍保存しているか。 | AB32: ※ | AC32: 原材料及び調理済み食品(50ｇ程度)を-20℃以下で2週間以上冷凍保存すること。 | AQ32: 一 検食は、学校給食調理場及び共同調理場の受配校において、あらかじめ責任者を定めて児童生徒の摂食開始時間の
AQ33: ３０分前までに行うこと。
AB34: ・ | AC34: 「社会福祉施設における保存食の保存期間等について」(平成8.7.25 社援施第117号) | AQ34: また、異常があった場合には、給食を中止するとともに、共同調理場の受配校においては、速やかに共同調理場に連絡すること。
D35: (13) 食事計画について | AQ35: 二 検食に当たっては、食品の中に人体に有害と思われる異物の混入がないか、調理過程において加熱及び冷却処理が適切に
AQ36: 行われているか、食品の異味、異臭その他の異常がないか、一食分としてそれぞれの食品の量が適当か、味付け、香り、
D37: ① 食事計画（提供する食事の量と質についての計画）を | AB37: ・ | AC37: 児童福祉施設における「食事摂取基準」を活用した食事計画について（令和2.3.31雇児母発0331第1号） | AQ37: 色彩並びに形態等が適切か、及び、児童生徒の嗜好との関連はどのように配慮されているか確認すること。
E38: 立てているか。 | AQ38: 三 検食を行った時間、検食者の意見等検食の結果を記録すること。
D41: ② 給食日誌等に残食記録はあるか。 | AB41: ・ | AC41: 「児童福祉施設における食事の提供に関する援助及び指導について」(令和2.3.31雇児発0331第1号､障発0331第16号)
D43: ③ 子どもの健全な発育・発達を目指し、子どもの身体活動等を
E44: 含めた生活状況や、子どもの栄養状態、摂取量、残食量等を
E45: 把握することにより、給与栄養量の目標の達成度を評価し、
E46: 食事計画の改善に努めているか。
D48: ④ 給食を適正に運営するため、定期的に施設長を含む関係職員に
E49: よる給食会議を実施し、常に施設全体で食事計画・評価を通して | AC49: 保育所におけるアレルギー対応ガイドライン(2019 年改訂版)厚生労働省2019(平成31年4月)
E50: 給食の改善に努めているか。
D52: (14) 保育所の食育について | AB52: ・ | AC52: 保育所保育指針第3章2
D53: ① 保育の計画において､食育の推進（食育の計画）の取り組んでいるか。 | AB53: ・
D55: ＜「いる」場合、具体的に記入すること。＞
D60: ② 食育の計画を立てている場合、その評価及び改善に努めているか。
D62: ＜「いる」場合、具体的な評価方法や改善策について記入すること。＞
D82: ※削除厳禁
D84: 園長
D85: 副園長
D86: 主任保育士
D87: 副主任保育士
D88: 保育士
D89: 看護師
D90: 准看護師
D91: 幼稚園教諭
D92: 小学校教諭
D93: 養護教諭
D94: 子育て支援員
D95: 保育補助
D96: 管理栄養士
D97: 栄養士
D98: 調理師
D99: 調理員
D100: 用務員
D101: 事務長
D102: 事務員

Sheet No25
C2: －保育所運営No.２５（分園）－ | AP2: 目次に戻る
C4: 給食業務関係 | AC4: 特 記 事 項
D6: (15) 献立について
D7: ① 献立の作成は、どのように行っているか。
F8: 市町村が作成したものを利用している。
F9: 市町村が作成したものを一部変更して利用している。
F10: 職員又は委託栄養士が作成している。（下記も併せて記入すること。）
F11: 作成者氏名 | N11: 職 名 | R11: 資 格
D15: ② 献立内容は、変化に富んでいるか。
D17: ③ 献立表は、家庭に配布しているか。
D19: ④ 献立表を変更する場合、管理栄養士等の意見を確認しているか。
D21: ⑤ 献立を変更した場合、保護者へ知らせているか。
D24: (16) アレルギー疾患等児童一人ひとりに応じた給食を実施しているか。
E26: ・ 「いる」場合、どのように実施しているか。
D31: ② 食物アレルギーの児童への除去食等に対応するため、整備して | AC31: ・ | AD31: 保育所保育指針第3章2(2)ｳ
E32: いる書類にチェックすること。
AB35: ）
D37: (17) スキムミルク（(財)児童育成協会から購入）を使用しているか。
E39: ・「いる」場合、受払台帳を整理しているか。
D41: (18) 給食材料の納入は、生鮮食品については、原則として調理当日になっているか。 | AC41: ・ | AD41: 保育所におけるアレルギー対応ガイドライン(2019 年改訂版)厚生労働省2019(平成31年4月)
D44: (19) 延長保育を実施し、おやつや夕食を提供している場合の内容 | AC44: ・ | AD44: 保育所保育指針第3章1(3)(ｳ)
D48: (20) 食品衛生監視員（保健所）の前回の立ち入り検査は、
J49: （検査日 | P49: 年 | S49: 月 | V49: 日）・
D50: ＜「ある」場合＞
D51: ① 指摘改善命令事項の有無：
D52: ② 指摘改善命令事項の内容
D56: ③ 指摘改善命令事項に対する改善状況

Sheet No26
B2: －保育所運営No.２６（分園）－ | AM2: 目次に戻る
B4: 児童の健康管理・安全管理 | AA4: 特 記 事 項
B6: １０ 児童の健康管理・安全管理の状況 | AA6: （健康増進）
C7: (1) 子どもの健康に関する保健計画を作成しているか。 | AA7: ・ | AB7: 保育所保育指針第3章1（2）ア
C10: (2) 医務室等に必要な医療品等が備えられ、その管理を行って | AA10: （衛生管理等）
D11: いるか。 | AA11: ・ | AB11: 「児童福祉施設の設備と運営基準 | AN11: 「児童福祉施設の設備と運営基準
AC12: 第32条 | AN12: 第32条 1 乳児又は満2歳に満たない幼児を入所させる保育所には、乳児室又はほふく室、医務室、調理室及び便所を設けること。
AA14: ・ | AB14: 保育所保育指針第3章1(3)
C15: (3) 嘱託医を配置しているか。 | AA15: ･
AA16: （職員）
C17: (4) 園児の健康診断の実施状況について
E18: ① 園児の健康診断は、入園時及び毎年度2回（そのうち1回は6月30日
F19: までに）実施しているか | AA19: ･ | AB19: 嘱託歯科医師による歯科健康診断の実施 （保育所における嘱託歯科医の設置について昭和58年4月21日児発第284号）
C20: ＜「いる」場合＞
C21: ① 嘱託医契約書は整備されているか。
AA23: ※ | AB23: 嘱託医契約書の記載事項 勤務日時、手当額、業務内容等
C24: ② 嘱託医（内科、歯科）の状況を記入すること。
D25: 氏 名 | J25: 専門科名 | O25: 医療機関名 | X25: 医療機関の住所 | AF25: 年間報酬額（円）
AO31: ・学校保健安全法施行規則第5条
C32: (4) 園児の健康診断の実施状況について | AO32: （時期）
C33: ① 園児の健康診断は、入園時及び毎年度2回（そのうち1回は6月30日 | AO33: 第五条第一項
D34: までに）実施しているか。 | AO34: 法第十三条第一項の健康診断は、毎学年、六月三十日までに行うものとする。ただし、疾病その他
AO35: やむを得ない事由によつて当該期日に健康診断を受けることのできなかつた者に対しては、その事 由の
C36: ② 前年度の実施状況（新設保育所は当年度の監査調書提出月まで） | AA36: （入所した者及び職員の健康診断） | AO36: （事後措置）
L37: １回目 | S37: ２回目 | AA37: ・ | AO37: 第九条第一項
L38: 実施日 | P38: 記録 | S38: 実施日 | W38: 記録 | AA38: ※ | AB38: 少なくとも年に2回の定期健康診断を学校保健安全法に規定する健康診断に準じて行うこと。 | AO38: 学校においては、法第十三条第一項の健康診断を行つたときは、二十一日 以内にその結果を幼児、児童又は生徒に
D39: 内科検診 | AO39: あつては当該幼児、児童又は生徒及びその保護者（学校教育法（昭和二十二年法律第二十六号）第十六条に規定する
D40: 歯科検診 | AO40: 保護者をいう。）に、学生にあつては当該学生に通知するとともに、次の各号に定める基準により、法第十四条の
D41: 尿検査 | AA41: ・ | AB41: 学校保健安全法施行規則第6条(検査の項目) | AO41: 措置をとらなければならない。
D42: その他の検査 | AO42: 一 疾病の予防処置を行うこと。
D43: （） | AA43: ・ | AB43: 「学校保健安全法施行規則の一部改正等について」(平成26年4月30日26文科ス第96号) ※ギョウ虫検査は、任意 | AO43: 二 必要な医療を受けるよう指示すること。
C45: ③ 健康診断の当日に欠席した児童を再受診させているか。 | AO45: 三 必要な検査、予防接種等を受けるよう指示すること。
AO46: 四 療養のため必要な期間学校において学習しないよう指導すること。
C47: ＜「いる」場合、その方法及び費用負担について記入すること。＞ | AO47: 五 特別支援学級への編入について指導及び助言を行うこと。
AA48: （時期） | AO48: 六 学習又は運動・作業の軽減、停止、変更等を行うこと。
AA49: ・ | AB49: 学校保健安全法施行規則第5条第1項ただし書き | AO49: 七 修学旅行、対外運動競技等への参加を制限すること。
AO50: 八 机又は腰掛の調整、座席の変更及び学級の編制の適正を図ること。
AA51: （事後措置） | AO51: 九 その他発育、健康状態等に応じて適当な保健指導を行うこと。
C52: ④ 健康診断の結果について、保護者へ通知しているか。 | AA52: ・ | AB52: 学校保健安全法施行規則第9条第1項
C54: 【感染症・食中毒対策】 | AA54: ・ | AB54: 保育所における感染症対策ガイドライン（2018年改訂版）（2023（令和5）年5月一部改訂）
C55: (5) 感染症等の発生の状況
C56: ① 前年度に発生した感染症の主な病名を記入すること。
C57: （新設園は当年度の監査調書提出月までを記入すること。）
C58: 病名 | U58: 延べ人数
C68: ② 病気回復後の登園の際､治癒の確認をどのように行っているか｡

Sheet No27
B2: －保育所運営No.２７（分園）－ | AR2: 目次に戻る
B4: 児童の健康管理・安全管理 | AA4: 特 記 事 項
C6: (6) 感染症等の対策状況
C7: ① 保育室等、トイレ、厨房内の清掃及び消毒を行っているか。 | AA7: ・ | AB7: 「児童福祉施設の設備と運営基準」第10条
AA8: ※ | AB8: 「保育室等」とは乳児室、ほふく室、保育室又は遊戯室をいう。
D9: ＜清掃回数＞
D10: ・乳児室（ほふく室） | M10: １日 | Q10: 回、・保育室 １日 | Z10: 回
C12: ② 哺乳瓶は衛生的に管理しているか。
D13: ○ 管理方法（消毒方法、保管方法等を記述）
C18: ③ 食事の前､トイレの後､外出から戻った時などの手洗いが十分 | AA18: ・ | AB18: 「児童福祉施設における衛生管理の改善充実及び食中毒発生の予防について」（H9.6.30 児企第16号）
D19: できているか。
C21: ④ 歯ブラシ、コップ、タオルなど一人一人のものを使用しているか。
D23: ・ 「いない」場合、対応策
C29: ⑤ ビニールプール等を使用して水遊びをする際には、水に入る前に
D30: 腰等を中心に体をよく洗うとともに、こまめに水の入れ替えを行う
D31: など水の汚染防止に努めているか。
C33: ⑥ 予防接種実施状況を把握しているか。
C35: ⑦ 感染症の集団発生等に際して、市町村保育主管課及び管轄保
D36: 健所への報告体制がとられているか。
AA37: ・ | AB37: 「社会福祉施設等における感染症等発生時に係る報告について」 （平成17年2月22日健発第0222002号・薬食発第0222001号・雇児発第0222001号・社援発第0222002号・老発第0222001号）
C39: ⑧ その他感染症等の対策として行っていることがあれば記入すること。
AA42: ① | AB42: 死亡者又は重篤患者が1週間以内に2名以上
AA43: ② | AB43: 同一感染者が10名以上 全利用者の半数以上
AA45: ③ | AB45: 他に施設長が必要と認めた場合
AA46: 上記の場合、市町村保健所に報告・指示を受ける。
C47: (7) 受動喫煙防止対策を進めているか。
AA49: (喫煙をする際の配慮義務等)
AA50: ・ | AB50: 健康増進法第27条第2項
AA51: (定義) | AS51: (参考：印刷不用）
AA52: ・ | AB52: 健康増進法第28条第4号、第5号イ、第13号 | AS52: ◯保育所保育指針解説 第3章1(3)⑨ ⑨ 乳幼児突然死症候群（SIDS） 乳幼児突然死症候群（SIDS：Sudden Infant Death Syndrome）は、何の予兆や既往歴もないまま乳幼児が死に至る、原因の分からない病気で、窒息などの事故とは異なる。日本での発症頻度はおよそ出生6,000 人から7,000 人に１人と推定され、生後２か月から６か月に多く、稀には１歳以上で発症することがある。 SIDS は、うつぶせ、仰向けのどちらでも発症するが、寝かせる際にうつぶせに寝かせた時の方がSIDS の発生率が高いということが研究者の調査から分かっており、園児の顔が見える仰向けに寝かせることが重要である。また、睡眠時に園児を一人にしないこと、寝かせ方に配慮を行うこと、安全な睡眠環境を整えることは、窒息事故を未然に防ぐことにつながるものである。 人工乳（粉ミルク）がSIDS を引き起こすわけではないが、母乳で育てられている赤ちゃんの方がSIDS の発症率が低いということが研究者の調査から分かっている。喜んで母乳を飲み、体重が順調に増えているなら、できるだけ母乳を与えることが望ましい。 また、たばこは、SIDS 発症の大きな危険因子であり、妊婦や乳児の近くでの喫煙は不適切である。これには身近な人の理解も大切であり、日頃から喫煙者に協力を求めることが大切である。 入所の際には、こうしたSIDS に関する情報を保護者に提供することが求められる。
C53: 【乳幼児突然死症候群の防止対策】 | AA53: (特定施設等における喫煙の禁止等)
AA54: ・ | AB54: 健康増進法第29条第1項第１号イ
C55: (8) 睡眠時の乳幼児の状況を定期的に確認するなど、乳幼児突然死 | AA55: (特定施設等の管理権原者等の責務)
D56: 症候群（SIDS）の防止対策を行っているか。 | AA56: ・ | AB56: 健康増進法第30条第1～2項
D57: ＜「いる」場合＞
C58: ① 対象児童年齢及び確認周期
D59: ＊0歳児 | I59: 分毎 | S59: 記録は | AA59: ・ | AB59: 保育所保育指針解説 第3章1(3)⑨
D60: ＊1歳児 | I60: 分毎 | K60: ・ | M60: 該当なし | S60: 記録は | AB60: 乳幼児突然死症候群（SIDS）
D61: ＊2歳児 | I61: 分毎 | K61: ・ | M61: 該当なし | S61: 記録は
D62: ＊3歳児以上 | I62: 分毎 | K62: ・ | M62: 該当なし | S62: 記録は
C64: ② 具体的対策

Sheet No28
B2: －保育所運営No.２８（分園）－ | AO2: 目次に戻る
B4: 児童の健康管理・安全管理 | AB4: 特 記 事 項
AB5: 特定教育・保育施設及び地域型ホいう事業並びに特定子ども・子育て支援施設等の運営に関する基準
C6: 【不適切な保育の未然防止】
C7: (9) 障害児を含め、入所児童に対する虐待やその心身に有害な影響を | AB7: ・ | AC7: （虐待等の禁止） 第25条 特定教育・保育施設の職員は、教育・保育給付認定子どもに対し、児童福祉法第33条の十各号に掲げる行為その他当該教育・保育給付認定子どもの心身に有害な影響を与える行為をしてはならない。
D8: 与える行為の防止及び発生時の対応に関する措置を講じているか。
D10: ○「いる」場合、具体的に記入すること。
C14: 【児童虐待防止対策】
C15: (10) 児童虐待防止に関する職員研修を実施しているか。 | AB15: ※ | AC15: 児童虐待防止対策の園内研修を実施している場合は、調書№18 (19)-③-イに研修内容等を記載すること
D17: ○「いる」場合、具体的に記入すること。
C21: (11) 日々の子どもの状況や着替え等から虐待の早期発見に努めて
D22: いるか。 | AP22: (参考：印刷不用）
D23: ○「いる」場合、具体的に記入すること。 | AQ23: 根拠法令・通知等（印刷不要）
AP25: ・ | AQ25: 児童虐待の防止等に関する法律第5条
AQ26: 学校、児童福祉施設、病院その他児童の福祉に業務上関係のある団体及び学校の教職員、児童福祉施設の職員、医師、保健師、弁護士その他児童の福祉に職務上関係のある者は、児童虐待を発見しやすい立場にあることを自覚し、児童虐待の早期発見に努めなければならない。 ２ 前項に規定する者は、児童虐待の予防その他の児童虐待の防止並びに児童虐待を受けた児童の保護及び自立の支援に関する国及び地方公共団体の施策に協力するよう努めなければならない。 ３ 第一項に規定する者は、正当な理由がなく、その職務に関して知り得た児童虐待を受けたと思われる児童に関する秘密を漏らしてはならない。 ４ 前項の規定その他の守秘義務に関する法律の規定は、第二項の規定による国及び地方公共団体の施策に協力するように努める義務の遵守を妨げるものとして解釈してはならない。 ５ 学校及び児童福祉施設は、児童及び保護者に対して、児童虐待の防止のための教育又は啓発に努めなければならない。
C27: (12) 児童虐待が疑われる状況が生じたときは、速やかに園長に報告
D28: する体制は整っているか。
C30: (13) 児童虐待の疑いのある児童を発見した場合、関係機関への通告 | AB30: （児童虐待の早期発見）
D31: 義務があるが、通告を行っているか。 | AB31: ･ | AC31: 児童虐待の防止等に関する法律第5条
AB32: （児童虐待に係る通告）
C33: (14) 児童虐待が疑われる児童を発見した場合の市町村等との連携・協力 | AB33: ･ | AC33: 児童虐待の防止等に関する法律第6条
D34: 体制について具体的に記入すること。
AB35: ･ | AC35: 児童福祉法第25条
AB36: ･ | AC36: 保育所保育指針第3章1(1)ウ
C38: 【安全管理対策】
C39: (15) 「安全計画」の策定状況について | AP39: ・ | AQ39: 児童虐待の防止等に関する法律第6条第1項
C40: ① 安全計画を策定しているか。 | AB40: ・ | AC40: 児童福祉施設の設備及び運営に関する基準第6条第3項 | AQ40: 児童虐待を受けたと思われる児童を発見した者は、速やかに、これを市町村、都道府県の設置する福祉事務所若しくは児童相談所又は児童委員を介して市町村、都道府県の設置する福祉事務所若しくは児童相談所に通告しなければならない。
D41: ＜「いる」場合＞
C43: ② 策定した安全計画を職員に周知しているか。
C45: ③ 安全計画に基づく必要な研修及び訓練を定期的に実施して
D46: いるか。 | AP46: ・ | AQ46: 児童福祉施設の設備及び運営に関する基準第6条第3項
AQ47: 児童福祉施設（助産施設、児童遊園及び児童家庭支援センターを除く。以下この条及び次条において同じ。）は、児童の安全の確保を図るため、当該児童福祉施設の設備の安全点検、職員、児童等に対する施設外での活動、取組等を含めた児童福祉施設での生活その他の日常生活における安全に関する指導、職員の研修及び訓練その他児童福祉施設における安全に関する事項についての計画（以下この条において「安全計画」という。）を策定し、当該安全計画に従い必要な措置を講じなければならない。 ２ 児童福祉施設は、職員に対し、安全計画について周知するとともに、前項の研修及び訓練を定期的に実施しなければならない。 ３ 保育所及び児童発達支援センターは、児童の安全の確保に関して保護者との連携が図られるよう、保護者に対し、安全計画に基づく取組の内容等について周知しなければならない。 ４ 児童福祉施設は、定期的に安全計画の見直しを行い、必要に応じて安全計画の変更を行うものとする。
C48: ④ 保護者に対し、安全計画に基づく取組の内容等について周知
D49: しているか。
C51: ⑤ 安全計画の定期的な見直しを行い、 必要に応じて変更を行っているか。
C55: (16)「業務継続計画」の策定状況について | AB55: ※ 業務継続計画とは、感染症や非常災害の発生時において、利用者に対する支援の提供を継続的に実施するため及び非常時の体制で早期の業務再開を図るための計画
C56: ① 業務継続計画を策定しているか。
D57: ＜「いる」場合＞
C59: ② 策定した業務継続計画を職員に周知しているか。
AP60: (業務継続計画の策定等)児童福祉施設の設備と運営基準 第9条の3 児童福祉施設は、感染症や非常災害の発生時において、利用者に対する支援の提供を継続的に実施するための、及び非常時の体制で早期の業務再開を図るための計画(以下この条において「業務継続計画」という。)を策定し、当該業務継続計画に従い必要な措置を講ずるよう努めなければならない。 ２ 児童福祉施設は、職員に対し、業務継続計画について周知するとともに、必要な研修及び訓練を定期的に実施するよう努めなければならない。 ３ 児童福祉施設は、定期的に業務継続計画の見直しを行い、必要に応じて業務継続計画の変更を行うよう努めるものとする。 (令4厚労令159(令4厚労令167)・全改)
C62: ③ 業務継続計画に基づく必要な研修及び訓練を定期的に実施しているか
C65: ④ 業務継続計画の定期的な見直しを行い、必要に応じて変更を行っているか。

Sheet No29
B2: －保育所運営No.２９（分園）－ | AP2: 目次に戻る
B4: 児童の健康管理・安全管理 | AB4: 特 記 事 項
C6: (17) 施設設備面における安全確保について
AB7: ・ | AC7: 保育所保育指針第3章3（2）
C8: ① 門扉等には、常時施錠し、園児の飛び出し事故の防止に努めて | AB8: ・ | AC8: 「児童福祉施設における事故防止について」（昭和46年7月31日児発第418号）
D9: いるか。
C11: ② 門、囲障、外灯の点灯、窓、出入口、避難口、鍵等の施錠状況を
D12: 点検しているか。
C14: ③ 危険な設備、場所等への囲障の設置及びその鍵等の施錠の状況を
D15: 点検しているか。
C17: ④ 自動警報装置、防犯監視システム等を設置している場合、作動状況
D18: の点検等を行っているか。 | AC18: 「児童福祉施設等における児童の安全の確保について」（平成13年6月15日雇児総発第402号）
C22: (18) 保育所の所外活動に対する安全確保について
C24: ① 引率者は、参加児童数、移動場所に応じて十分な人数となって
D25: いるか。
C27: ② 携帯電話等の連絡体制は図れているか。
C30: ③ 所外活動の場所・移動方法などの安全確認は行っているか。
C33: ④ 送迎用車輌（通園バス）や行事用等車輌を使用する際の | AB33: 「こどもの出欠状況に関する情報の確認、バス送迎に当たっての安全管理等の徹底について」(令和4年11月14日事務連絡)
D34: 運行の安全管理マニュアル等を整備しているか。

Sheet No30
B2: －保育所運営No.３０（分園）－ | AN2: 目次に戻る
B4: 児童の健康管理・安全管理 | AA4: 特 記 事 項
C6: (19) 児童の送迎等について
C7: ① 保護者付き添いが原則であるが、常時、保護者以外の者が登降園に
D8: 付き添っている児童がいるか。
C9: ＜「いる」場合＞
D10: その理由を把握しているか。
C12: ② 保護者以外の者が迎えに来た場合に、その都度保護者に確認して
D13: いるか。
C15: ③ 欠席連絡等がない園児について保護者に確認しているか。また、 | AA15: ・ | AB15: 「こどもの出欠状況に関する情報の確認の再徹底について」(令和５年９月11日事務連絡)
D16: 職員間で情報を共有しているか。
C18: (20) 遊具、建物設備（保育室、廊下、便所、屋外遊戯場等）等の安全
D19: 点検を行っているか。
C20: ＜「いる」場合＞
C21: ① 点検記録は整備しているか。
C23: ② 点検結果は、全職員に周知され、具体的に改善されているか。
C26: (21) 児童の事故発生の状況（医療機関への受診を要した受傷など)
C27: ① 前年度の発生状況（新設園は、監査調書提出月の前月まで記入すること。）
C28: 発生月日 | G28: 発生時間帯 | M28: 事 故 の 概 要 （年齢、発生状況 など） | Y28: 処 理 の 状 況
C40: ※欄が不足する場合は、別紙に作成し添付すること。
AA41: ・ | AB41: 特定教育・保育施設及び特定地域型保育事業並びに特定子ども・子育て支援施設等の運営に関する基準（平成26年4月30日内閣府令第39号）第32条第2項
C42: ② 児童の事故が発生した場合には、速やかに保護者や市町村へ連絡し
D43: 記録を行うなど必要な措置を講じる体制にあるか。
C45: ③ 事故処理簿は、整備しているか。
AA46: ・ | AB46: 「特定教育・保育施設等における事故の報告等について」（令和5年12月14日 こ成安第142号、5教参学第30号） | AO46: ・意識不明事故の取扱い（「教育・保育施設等における事故の報告等について 」における意識不明事故の
C47: ④ 児童の重大事故が発生した場合に、市町村保育主管課へ書面にて | AO47: 取扱いについて こども家庭庁通知 令和5年12月14日付 事務連絡 別紙 一部抜粋）
D48: 事故報告を行っているか。 | AP48: 意識不明に関する市町村への報告要否の判断基準
AP49: (1)「事故」が原因である場合（市町村への報告 「必要」）
AA50: ※ | AB50: 報告の対象となる重大事故の範囲 ①死亡事故 ②意識不明事故（どんな刺激にも反応しない状態に陥ったもの） ③治療に要する期間が 30 日以上の負傷や疾病を伴う重篤な事故 | AQ50: 事故の具体例・・・転倒、衝突、誤嚥、食物アレルギー、熱中症等
AP51: (2) 明らかに「病気」が原因である場合 （市町村への報告 「不要」）
C52: (22) 職員の共通理解と所内体制について | AQ52: ※ ただし、当初は「病気」が原因であると判断された場合でも、１週間経過後も意識が回復しない場合は、
C53: ① 安全管理に関し、職員会議で取りあげるなど職員の共通理解を | AQ53: その時点で市町村へ報告する。
D54: 図っているか。 | AQ54: ※ 病気の具体例・・・てんかん、けいれん（熱性・無熱性・憤怒）等
AP55: (3) 原因が「不明」な場合 （市町村への報告 「必要」）
C56: ② 不審者対策、感染症及び疾病、消防防災訓練等を含めた危機管理 | AA56: （事故防止及び安全対策） | AQ56: ※ 報告後、その原因が「事故」又は「病気」であることが判明した場合には、その旨を市町村へ追加報告する。
D57: マニュアル等が策定されているか。 | AA57: （災害への備え）
D58: ＜「いる」場合＞ | AA58: ・ | AB58: 保育所保育指針第3章3(2)、4
D59: ・危機管理マニュアル等は、全職員に周知しているか。
AA60: (危険等発生時対処要領の作成等)
AA61: ・学校保健安全法第29条
C62: ③ 事故の発生・不審者の立入りなどに備え、職員の役割分担・連絡体制 | AA62: ・ | AB62: 保育所保育指針第３章(健康及び安全)
D63: が確保されているか。

Sheet No31
B2: －保育所運営No.３１（分園）－ | AN2: 目次に戻る
B4: 非常災害対策の状況 | Z4: 特 記 事 項
B6: １１ 非常災害対策の状況 | Z6: （防火管理者）
C7: (1) 防火管理者は届け出ているか。 | Z7: ･ | AA7: 消防法第8条第2項
G8: （直近の届出日 | O8: 年 | Q8: 月 | S8: 日 | T8: ）、 | Z8: ※ | AA8: 異動等で防火管理者が欠けた場合は、直ちに選任し、所轄消防署に届出ること。
D10: ○ 防火管理者の職氏名
F11: 職名 | M11: 氏名
Z12: （防火管理に係る消防計画）
C13: (2) 消防計画は届出（変更）を適正に行っているか。 | Z13: ･ | AA13: 消防法施行規則第3条第1項
G14: （直近の届出日 | O14: 年 | Q14: 月 | S14: 日 | T14: ）、 | Z14: ※ | AA14: 増改築に伴う計画の変更届に留意すること。
C17: (3) 避難及び消火に対する訓練の実施状況について | Z17: （児童福祉施設と非常災害）
Z18: ･
AP19: 根拠法令・通知等（印刷不要）
D20: ① 避難訓練及び消火訓練の記録はあるか。 | Z20: ※ | AA20: 図上訓練、反省会、不審者対策訓練、交通安全指導は、避難及び消火訓練とみなさない。
AO21: ・ | AP21: 条例第第７条
AP22: 児童福祉施設においては、消火器等の消火用具、非常口その他非常災害に必要な設備を設けるとともに、非常災害に対する具体的計画を立て、これに対する不断の注意と訓練をするように努めなければならない。 2 前項の訓練のうち、避難及び消火に対する訓練は、少なくとも毎月１回は、これを行わなければならない。
Z23: ※ | AA23: 避難場所までの誘導を含めて訓練と見なす。
D24: ② 実施状況
D25: ・既設保育所は前年度の状況、新設保育所は本年度の状況について、該当する内容を全てチェックすること。
C26: 実施月日 | H26: 曜日 | J26: 訓練内容 | AE26: 備考
C27: 4月 | G27: 日 | K27: 避難 | O27: 消火・ | S27: その他 | V27: ( | AD27: ）
C28: 5月 | G28: 日 | K28: 避難 | O28: 消火・ | S28: その他 | V28: ( | AD28: ）
C29: 6月 | G29: 日 | K29: 避難 | O29: 消火・ | S29: その他 | V29: ( | AD29: ）
C30: 7月 | G30: 日 | K30: 避難 | O30: 消火・ | S30: その他 | V30: ( | AD30: ）
C31: 8月 | G31: 日 | K31: 避難 | O31: 消火・ | S31: その他 | V31: ( | AD31: ）
C32: 9月 | G32: 日 | K32: 避難 | O32: 消火・ | S32: その他 | V32: ( | AD32: ）
C33: 10月 | G33: 日 | K33: 避難 | O33: 消火・ | S33: その他 | V33: ( | AD33: ）
C34: 11月 | G34: 日 | K34: 避難 | O34: 消火・ | S34: その他 | V34: ( | AD34: ）
C35: 12月 | G35: 日 | K35: 避難 | O35: 消火・ | S35: その他 | V35: ( | AD35: ）
C36: 1月 | G36: 日 | K36: 避難 | O36: 消火・ | S36: その他 | V36: ( | AD36: ）
C37: 2月 | G37: 日 | K37: 避難 | O37: 消火・ | S37: その他 | V37: ( | AD37: ）
C38: 3月 | G38: 日 | K38: 避難 | O38: 消火・ | S38: その他 | V38: ( | AD38: ）
D39: ※消防署の立ち会い訓練は、備考欄にその旨記入すること。 | Z39: （児童福祉施設の設備と運営に関する基準）
D40: ※不審者、地震、津波、Jアラート訓練は、その他へ日付と項目を記入すること | Z40: 第6条 児童福祉施設を除く。第九条の三及び第10条第二項において同じ。）においては、軽便消火器等の消火用具、非常口その他非常災害に必要な設備を設けるとともに、非常災害に対する具体的計画を立て、これに対する不断の注意と訓練をするように努めなければならない。 ２ 前項の訓練のうち、避難及び消火に対する訓練は、少なくとも毎月一回は、これを行わなければならない。
D41: ③ 地域との協力体制は、
D43: ④ 保護者への連絡体制は、整備しているか。
E44: （非常時連絡表）
C46: (4) 消防計画は職員に周知され、非常災害時の分担表が事務室等に
D47: 掲示しているか。
Z48: ※ | AA48: 非常時の連絡網は最新のものを作成すること。
C49: (5) 消防設備、火気使用設備、器具等の定期点検の状況について
Z50: （消防用設備等又は特殊消防用設備等の点検及び報告）
D51: ① 業者点検を行っているか
D52: ＜｢いる｣場合＞ | Z52: ・ | AA52: 消防法第17条の3の3
D53: ・ | E53: 直近2回の点検年月日 | Z53: ・ | AA53: 消防法施行規則第31条の6
E54: 1 | I54: 年 | L54: 月 | O54: 日 異常： | U54: 有 | X54: 無
E55: 2 | I55: 年 | L55: 月 | O55: 日 異常： | U55: 有 | X55: 無
D57: ② 自主点検を行っているか | Q57: いる | S57: ・ | U57: いない
D58: ＜｢いる｣場合＞
D59: ・ | E59: 記録しているか。 | Q59: いる | S59: ・ | U59: いない

Sheet No32
B2: －保育所運営No.３２（分園）－ | AN2: 目次に戻る
B4: 非常災害対策の状況、保育所の情報提供の状況 | Z4: 特 記 事 項
C6: (6) 消防用設備等の点検結果は、消防署へ報告しているか。 | Z6: （消防用設備等又は特殊消防用設備等の点検及び報告）
H7: (報告日 年 | Q7: 月 | T7: 日 | U7: )
Z8: ・ | AA8: 消防法施行規則第31条の6第3項
C9: (7) 消防署の立入検査は、 | Z9: (資料提出命令、報告の徴収及び消防職員の立入検査)
H10: (検査日 年 | N10: 年 | Q10: 月 | T10: 日 | U10: ）
Z11: ・ | AA11: 消防法第4条
C12: ○ 指示事項はあるか | Z12: ※ | AA12: 指示事項が改善されていない場合には早急に改善すること。
D13: ＜｢ある｣場合＞
D14: ア 指示事項の内容は、
D22: イ 指示事項に対する改善状況は
AO27: 根拠法令・通知等（印刷不要）
AO29: 児童福祉法第48条の4
C30: (8) 非常口、避難経路、消火器等の付近に障害物を置いていないか。 | Z30: ・ | AA30: 教育・保育施設等における事故防止及び事故発生児の対応のためのガイドライン | AO30: 保育所は、当該保育所が主として利用される地域の住民に対してその行う保育に関し情報の提供を行い、並びにその行う保育に支障がない限りにおいて、乳児、幼児等の保育に関する相談に応じ、及び助言を行うよう努めなければならない。 ２ 保育所に勤務する保育士は、乳児、幼児等の保育に関する相談に応じ、及び助言を行うために必要な知識及び技能の修得、維持及び向上に努めなければならない。
C33: (9) ピアノ､ロッカー等の転倒防止対策や子どもの頭上にある物品等 | Z33: （災害への備え）
D34: の落下防止対策をするなど、安全確保に配慮した耐震対策等は行 | Z34: ・ | AA34: 保育所保育指針第3章4
D35: っているか。
Z36: （保育に関する情報提供）
B37: 1２ 保育所の情報提供等の状況 | Z37: ・ | AA37: 児童福祉法第48条の4
AA38: 保育所は、当該保育所が主として利用される地域住民に対してその行う保育に関し情報の提供を行う。
C39: (1) 地域住民に対して情報の提供を行っているか。
D41: ・「いる」の場合、どのように行っているか。
AA42: ※情報提供に努める事項
AB43: ① | AC43: １日の過ごし方
AB44: ② | AC44: 年間行事予定
AB45: ③ | AC45: 保育所の保育方針
AB46: ④ | AC46: 職員の状況
AB47: ⑤ | AC47: その他保育所が実施している保育内容に関する事項
C49: (2) 保育所保育の専門性を活かした子育て支援及び地域との連携の状況
D50: について | Z50: (地域の保護者等に対する子育て支援)
C51: ① 地域の保護者等に対する子育て支援の有無 | Z51: ・ | AA51: 保育所保育指針第4章3(1)ア
E52: ・ 「ある」の場合、子育て支援の状況
C57: ② 地域の関係機関等との連携の有無 | Z57: ・ | AA57: 保育所保育指針第4章3(2)
E58: ・ 「ある」の場合、連携の状況
